Workbook

Sheet Visibility (hidden)
I2: Hide Based on Characteristic
B3: ComponentVisibility | C3: Hide Row(s) | E3: Hide Colum(s) | K3: IsPrograms
B4: SheetName | C4: StartRow | D4: EndRow | E4: StartCol | F4: EndCol | G4: Visible | H4: Description | I4: Force True | J4: Force False | K4: Program True
B5: Annual Operating Budget | G5: =OR(ComponentVisibility[[#This Row],[Force True]],AND(ComponentVisibility[[#This Row],[Program True]],NOT(ComponentVisibility[[#This Row],[Force False]]))) -> FALSE | I5: =IF(LEFT(vmPPA,3)="(1)",FALSE,IF(LEFT(vmPPA,4)="(2a)",TRUE,IF(LEFT(vmPPA,4)="(2b)",FALSE,IF(LEFT(vmPPA,4)="(2c)",TRUE,IF(LEFT(vmPPA,4)="(2d)",TRUE,IF(LEFT(vmPPA,4)="(2e)",TRUE,IF(LEFT(vmPPA,4)="(2f)",TRUE,IF(LEFT(vmPPA,4)="(2g)",TRUE)))))))) -> FALSE | K5: FALSE
B6: Application Support | G6: =OR(ComponentVisibility[[#This Row],[Force True]],AND(ComponentVisibility[[#This Row],[Program True]],NOT(ComponentVisibility[[#This Row],[Force False]]))) -> FALSE | I6: =OR(vmPPA=Overview!$AN$5,vmPPA=Overview!$AN$6,vmPPA=Overview!$AN$7,vmPPA=Overview!$AN$8,vmPPA=Overview!$AN$9,vmPPA=Overview!$AN$10,vmPPA=Overview!$AN$11,vmPPA=Overview!$AN$12) -> FALSE | K6: FALSE
B7: Cash Flow | G7: =OR(ComponentVisibility[[#This Row],[Force True]],AND(ComponentVisibility[[#This Row],[Program True]],NOT(ComponentVisibility[[#This Row],[Force False]]))) -> FALSE | I7: =IF(LEFT(vmPPA,3)="(1)",TRUE,IF(LEFT(vmPPA,4)="(2a)",FALSE,IF(LEFT(vmPPA,4)="(2b)",TRUE,IF(LEFT(vmPPA,4)="(2c)",FALSE,IF(LEFT(vmPPA,4)="(2d)",FALSE,IF(LEFT(vmPPA,4)="(2e)",FALSE,IF(LEFT(vmPPA,4)="(2f)",FALSE,IF(LEFT(vmPPA,4)="(2g)",FALSE)))))))) -> FALSE | K7: FALSE
B8: Certifications & Legal Status | G8: =OR(ComponentVisibility[[#This Row],[Force True]],AND(ComponentVisibility[[#This Row],[Program True]],NOT(ComponentVisibility[[#This Row],[Force False]]))) -> FALSE | I8: =IF(LEFT(vmPPA,3)="(1)",TRUE,IF(LEFT(vmPPA,4)="(2a)",TRUE,IF(LEFT(vmPPA,4)="(2b)",TRUE,IF(LEFT(vmPPA,4)="(2c)",FALSE,IF(LEFT(vmPPA,4)="(2d)",FALSE,IF(LEFT(vmPPA,4)="(2e)",FALSE,IF(LEFT(vmPPA,4)="(2f)",FALSE,IF(LEFT(vmPPA,4)="(2g)",FALSE)))))))) -> FALSE | K8: FALSE
B9: Dev Budget | G9: =OR(ComponentVisibility[[#This Row],[Force True]],AND(ComponentVisibility[[#This Row],[Program True]],NOT(ComponentVisibility[[#This Row],[Force False]]))) -> FALSE | I9: =IF(LEFT(vmPPA,3)="(1)",TRUE,IF(LEFT(vmPPA,4)="(2a)",FALSE,IF(LEFT(vmPPA,4)="(2b)",TRUE,IF(LEFT(vmPPA,4)="(2c)",FALSE,IF(LEFT(vmPPA,4)="(2d)",FALSE,IF(LEFT(vmPPA,4)="(2e)",FALSE,IF(LEFT(vmPPA,4)="(2f)",FALSE,IF(LEFT(vmPPA,4)="(2g)",FALSE)))))))) -> FALSE | K9: FALSE
B10: Dev Budget - Navigation Center | G10: =OR(ComponentVisibility[[#This Row],[Force True]],AND(ComponentVisibility[[#This Row],[Program True]],NOT(ComponentVisibility[[#This Row],[Force False]]))) -> FALSE | I10: =IF(LEFT(vmPPA,3)="(1)",FALSE,IF(LEFT(vmPPA,4)="(2a)",TRUE,IF(LEFT(vmPPA,4)="(2b)",FALSE,IF(LEFT(vmPPA,4)="(2c)",FALSE,IF(LEFT(vmPPA,4)="(2d)",FALSE,IF(LEFT(vmPPA,4)="(2e)",FALSE,IF(LEFT(vmPPA,4)="(2f)",FALSE,IF(LEFT(vmPPA,4)="(2g)",FALSE)))))))) -> FALSE | K10: FALSE
B11: Dev Sources | G11: =OR(ComponentVisibility[[#This Row],[Force True]],AND(ComponentVisibility[[#This Row],[Program True]],NOT(ComponentVisibility[[#This Row],[Force False]]))) -> FALSE | I11: =IF(LEFT(vmPPA,3)="(1)",TRUE,IF(LEFT(vmPPA,4)="(2a)",FALSE,IF(LEFT(vmPPA,4)="(2b)",TRUE,IF(LEFT(vmPPA,4)="(2c)",FALSE,IF(LEFT(vmPPA,4)="(2d)",FALSE,IF(LEFT(vmPPA,4)="(2e)",FALSE,IF(LEFT(vmPPA,4)="(2f)",FALSE,IF(LEFT(vmPPA,4)="(2g)",FALSE)))))))) -> FALSE | K11: FALSE
B12: Developer Fee | G12: =OR(ComponentVisibility[[#This Row],[Force True]],AND(ComponentVisibility[[#This Row],[Program True]],NOT(ComponentVisibility[[#This Row],[Force False]]))) -> FALSE | I12: =IF(LEFT(vmPPA,3)="(1)",TRUE,IF(LEFT(vmPPA,4)="(2a)",FALSE,IF(LEFT(vmPPA,4)="(2b)",TRUE,IF(LEFT(vmPPA,4)="(2c)",FALSE,IF(LEFT(vmPPA,4)="(2d)",FALSE,IF(LEFT(vmPPA,4)="(2e)",FALSE,IF(LEFT(vmPPA,4)="(2f)",FALSE,IF(LEFT(vmPPA,4)="(2g)",FALSE)))))))) -> FALSE | K12: FALSE
B13: Developer Fee | C13: =ROW('Developer Fee'!A9) -> 9 | D13: =ROW('Developer Fee'!A9) -> 9 | G13: =OR(ComponentVisibility[[#This Row],[Force True]],AND(ComponentVisibility[[#This Row],[Program True]],NOT(ComponentVisibility[[#This Row],[Force False]]))) -> FALSE | I13: =vmADM2403="Yes" -> FALSE | K13: FALSE
B14: Developer Fee | C14: =ROW('Developer Fee'!A11) -> 11 | D14: =ROW('Developer Fee'!A25) -> 25 | G14: =OR(ComponentVisibility[[#This Row],[Force True]],AND(ComponentVisibility[[#This Row],[Program True]],NOT(ComponentVisibility[[#This Row],[Force False]]))) -> FALSE | I14: =vmADM2403="No" -> FALSE | K14: FALSE
B15: Developer Fee | C15: =ROW('Developer Fee'!A26) -> 26 | D15: =ROW('Developer Fee'!A28) -> 28 | G15: =OR(ComponentVisibility[[#This Row],[Force True]],AND(ComponentVisibility[[#This Row],[Program True]],NOT(ComponentVisibility[[#This Row],[Force False]]))) -> TRUE | I15: =OR(LEFT(vmDF,1)="9",LEFT(vmDF,1)="4",AND(vmProjectDevType="New Construction",vmDF="No Tax Credits")) -> TRUE | K15: FALSE
B16: Developer Fee | C16: =ROW('Developer Fee'!A29) -> 29 | D16: =ROW('Developer Fee'!A37) -> 37 | G16: =OR(ComponentVisibility[[#This Row],[Force True]],AND(ComponentVisibility[[#This Row],[Program True]],NOT(ComponentVisibility[[#This Row],[Force False]]))) -> FALSE | I16: =OR(LEFT(vmDF,1)="9",AND(vmProjectDevType="New Construction",vmDF="No Tax Credits")) -> FALSE | K16: FALSE
B17: Developer Fee | C17: =ROW('Developer Fee'!A38) -> 38 | D17: =ROW('Developer Fee'!A56) -> 56 | G17: =OR(ComponentVisibility[[#This Row],[Force True]],AND(ComponentVisibility[[#This Row],[Program True]],NOT(ComponentVisibility[[#This Row],[Force False]]))) -> TRUE | I17: =LEFT(vmDF,1)="4" -> TRUE | K17: FALSE
B18: Developer Fee | C18: =ROW('Developer Fee'!A57) -> 57 | D18: =ROW('Developer Fee'!A78) -> 78 | G18: =OR(ComponentVisibility[[#This Row],[Force True]],AND(ComponentVisibility[[#This Row],[Program True]],NOT(ComponentVisibility[[#This Row],[Force False]]))) -> FALSE | I18: =IF(AND(vmProjectDevType="New Construction",vmDF="No Tax Credits"),FALSE,vmDF="No Tax Credits") -> FALSE | K18: FALSE
B19: Development Info | C19: =ROW('Development Info'!A53) -> 53 | D19: =ROW('Development Info'!A69) -> 69 | G19: =OR(ComponentVisibility[[#This Row],[Force True]],AND(ComponentVisibility[[#This Row],[Program True]],NOT(ComponentVisibility[[#This Row],[Force False]]))) -> FALSE | I19: =IF(LEFT(vmPPA,3)="(1)",TRUE,IF(LEFT(vmPPA,4)="(2a)",FALSE,IF(LEFT(vmPPA,4)="(2b)",FALSE))) -> FALSE | K19: FALSE
B20: Development Info | G20: =OR(ComponentVisibility[[#This Row],[Force True]],AND(ComponentVisibility[[#This Row],[Program True]],NOT(ComponentVisibility[[#This Row],[Force False]]))) -> FALSE | I20: =IF(LEFT(vmPPA,3)="(1)",TRUE,IF(LEFT(vmPPA,4)="(2a)",TRUE,IF(LEFT(vmPPA,4)="(2b)",TRUE,IF(LEFT(vmPPA,4)="(2c)",FALSE,IF(LEFT(vmPPA,4)="(2d)",FALSE,IF(LEFT(vmPPA,4)="(2e)",FALSE,IF(LEFT(vmPPA,4)="(2f)",FALSE,IF(LEFT(vmPPA,4)="(2g)",FALSE)))))))) -> FALSE | K20: FALSE
B21: Env & Land Use | G21: =OR(ComponentVisibility[[#This Row],[Force True]],AND(ComponentVisibility[[#This Row],[Program True]],NOT(ComponentVisibility[[#This Row],[Force False]]))) -> FALSE | I21: =IF(LEFT(vmPPA,3)="(1)",TRUE,IF(LEFT(vmPPA,4)="(2a)",TRUE,IF(LEFT(vmPPA,4)="(2b)",TRUE,IF(LEFT(vmPPA,4)="(2c)",FALSE,IF(LEFT(vmPPA,4)="(2d)",FALSE,IF(LEFT(vmPPA,4)="(2e)",FALSE,IF(LEFT(vmPPA,4)="(2f)",FALSE,IF(LEFT(vmPPA,4)="(2g)",FALSE)))))))) -> FALSE | K21: FALSE
B22: HCD Reserves Calculator | C22: =ROW('High-Cost Verification'!A35) -> 35 | D22: =ROW('High-Cost Verification'!A51) -> 51 | G22: =OR(ComponentVisibility[[#This Row],[Force True]],AND(ComponentVisibility[[#This Row],[Program True]],NOT(ComponentVisibility[[#This Row],[Force False]]))) -> FALSE | I22: =vmTRPF="Yes" -> FALSE | K22: FALSE
B23: HCD Reserves Calculator | G23: =OR(ComponentVisibility[[#This Row],[Force True]],AND(ComponentVisibility[[#This Row],[Program True]],NOT(ComponentVisibility[[#This Row],[Force False]]))) -> FALSE | I23: =IF(LEFT(vmPPA,3)="(1)",TRUE,IF(LEFT(vmPPA,4)="(2a)",FALSE,IF(LEFT(vmPPA,4)="(2b)",TRUE,IF(LEFT(vmPPA,4)="(2c)",FALSE,IF(LEFT(vmPPA,4)="(2d)",FALSE,IF(LEFT(vmPPA,4)="(2e)",FALSE,IF(LEFT(vmPPA,4)="(2f)",FALSE,IF(LEFT(vmPPA,4)="(2g)",FALSE)))))))) -> FALSE | K23: FALSE
B24: High-Cost Verification | C24: =ROW('High-Cost Verification'!A23) -> 23 | D24: =ROW('High-Cost Verification'!A44) -> 44 | G24: =OR(ComponentVisibility[[#This Row],[Force True]],AND(ComponentVisibility[[#This Row],[Program True]],NOT(ComponentVisibility[[#This Row],[Force False]]))) -> TRUE | I24: =vmHighE="Yes" -> TRUE | K24: FALSE
B25: High-Cost Verification | G25: =OR(ComponentVisibility[[#This Row],[Force True]],AND(ComponentVisibility[[#This Row],[Program True]],NOT(ComponentVisibility[[#This Row],[Force False]]))) -> FALSE | I25: =IF(LEFT(vmPPA,3)="(1)",TRUE,IF(LEFT(vmPPA,4)="(2a)",FALSE,IF(LEFT(vmPPA,4)="(2b)",TRUE,IF(LEFT(vmPPA,4)="(2c)",FALSE,IF(LEFT(vmPPA,4)="(2d)",FALSE,IF(LEFT(vmPPA,4)="(2e)",FALSE,IF(LEFT(vmPPA,4)="(2f)",FALSE,IF(LEFT(vmPPA,4)="(2g)",FALSE)))))))) -> FALSE | K25: FALSE
B26: Legislative Contacts | G26: =OR(ComponentVisibility[[#This Row],[Force True]],AND(ComponentVisibility[[#This Row],[Program True]],NOT(ComponentVisibility[[#This Row],[Force False]]))) -> FALSE | I26: =OR(vmPPA=Overview!$AN$5,vmPPA=Overview!$AN$6,vmPPA=Overview!$AN$7,vmPPA=Overview!$AN$8,vmPPA=Overview!$AN$9,vmPPA=Overview!$AN$10,vmPPA=Overview!$AN$11,vmPPA=Overview!$AN$12) -> FALSE | K26: FALSE
B27: Operating | G27: =OR(ComponentVisibility[[#This Row],[Force True]],AND(ComponentVisibility[[#This Row],[Program True]],NOT(ComponentVisibility[[#This Row],[Force False]]))) -> FALSE | I27: =IF(LEFT(vmPPA,3)="(1)",TRUE,IF(LEFT(vmPPA,4)="(2a)",FALSE,IF(LEFT(vmPPA,4)="(2b)",TRUE,IF(LEFT(vmPPA,4)="(2c)",FALSE,IF(LEFT(vmPPA,4)="(2d)",FALSE,IF(LEFT(vmPPA,4)="(2e)",FALSE,IF(LEFT(vmPPA,4)="(2f)",FALSE,IF(LEFT(vmPPA,4)="(2g)",FALSE)))))))) -> FALSE | K27: FALSE
B28: Overview | C28: =ROW(Overview!A8) -> 8 | D28: =ROW(Overview!A10) -> 10 | G28: =OR(ComponentVisibility[[#This Row],[Force True]],AND(ComponentVisibility[[#This Row],[Program True]],NOT(ComponentVisibility[[#This Row],[Force False]]))) -> FALSE | I28: =IF(LEFT(vmPPA,3)="(1)",FALSE,IF(LEFT(vmPPA,4)="(2a)",FALSE,IF(LEFT(vmPPA,4)="(2b)",FALSE,IF(LEFT(vmPPA,4)="(2c)",TRUE,IF(LEFT(vmPPA,4)="(2d)",TRUE,IF(LEFT(vmPPA,4)="(2e)",TRUE,IF(LEFT(vmPPA,4)="(2f)",TRUE,IF(LEFT(vmPPA,4)="(2g)",TRUE)))))))) -> FALSE | K28: FALSE
B29: Overview | C29: =ROW(Overview!A13) -> 13 | D29: =ROW(Overview!A16) -> 16 | G29: =OR(ComponentVisibility[[#This Row],[Force True]],AND(ComponentVisibility[[#This Row],[Program True]],NOT(ComponentVisibility[[#This Row],[Force False]]))) -> FALSE | I29: =OtherHCDfunds="Yes" -> FALSE | K29: FALSE
B30: Rental Development Team | G30: =OR(ComponentVisibility[[#This Row],[Force True]],AND(ComponentVisibility[[#This Row],[Program True]],NOT(ComponentVisibility[[#This Row],[Force False]]))) -> FALSE | I30: =IF(LEFT(vmPPA,3)="(1)",TRUE,IF(LEFT(vmPPA,4)="(2a)",FALSE,IF(LEFT(vmPPA,4)="(2b)",TRUE,IF(LEFT(vmPPA,4)="(2c)",FALSE,IF(LEFT(vmPPA,4)="(2d)",FALSE,IF(LEFT(vmPPA,4)="(2e)",FALSE,IF(LEFT(vmPPA,4)="(2f)",FALSE,IF(LEFT(vmPPA,4)="(2g)",FALSE)))))))) -> FALSE | K30: FALSE
B31: Selection Criteria - Scoring | G31: =OR(ComponentVisibility[[#This Row],[Force True]],AND(ComponentVisibility[[#This Row],[Program True]],NOT(ComponentVisibility[[#This Row],[Force False]]))) -> FALSE | I31: =OR(vmPPA=Overview!$AN$5,vmPPA=Overview!$AN$6,vmPPA=Overview!$AN$7,vmPPA=Overview!$AN$8,vmPPA=Overview!$AN$9,vmPPA=Overview!$AN$10,vmPPA=Overview!$AN$11,vmPPA=Overview!$AN$12) -> FALSE | K31: FALSE
B32: Sponsor Org Docs | G32: =OR(ComponentVisibility[[#This Row],[Force True]],AND(ComponentVisibility[[#This Row],[Program True]],NOT(ComponentVisibility[[#This Row],[Force False]]))) -> FALSE | I32: =OR(vmPPA=Overview!$AN$5,vmPPA=Overview!$AN$6,vmPPA=Overview!$AN$7,vmPPA=Overview!$AN$8,vmPPA=Overview!$AN$9,vmPPA=Overview!$AN$10,vmPPA=Overview!$AN$11,vmPPA=Overview!$AN$12) -> FALSE | K32: FALSE
B33: Supportive Services Costs | G33: =OR(ComponentVisibility[[#This Row],[Force True]],AND(ComponentVisibility[[#This Row],[Program True]],NOT(ComponentVisibility[[#This Row],[Force False]]))) -> FALSE | I33: =IF(LEFT(vmPPA,3)="(1)",TRUE,IF(LEFT(vmPPA,4)="(2a)",FALSE,IF(LEFT(vmPPA,4)="(2b)",TRUE,IF(LEFT(vmPPA,4)="(2c)",FALSE,IF(LEFT(vmPPA,4)="(2d)",FALSE,IF(LEFT(vmPPA,4)="(2e)",FALSE,IF(LEFT(vmPPA,4)="(2f)",FALSE,IF(LEFT(vmPPA,4)="(2g)",FALSE)))))))) -> FALSE | K33: FALSE
B34: Supportive Services Costs | C34: =ROW('Supportive Services Costs'!A6) -> 6 | D34: =ROW('Supportive Services Costs'!A7) -> 7 | G34: =OR(ComponentVisibility[[#This Row],[Force True]],AND(ComponentVisibility[[#This Row],[Program True]],NOT(ComponentVisibility[[#This Row],[Force False]]))) -> FALSE | I34: =OR(vmSSCLNotice2405="Yes",vmSSCLNotice2405="No") -> FALSE | K34: FALSE
B35: Supportive Services Costs | C35: =ROW('Supportive Services Costs'!A9) -> 9 | D35: =ROW('Supportive Services Costs'!A22) -> 22 | G35: =OR(ComponentVisibility[[#This Row],[Force True]],AND(ComponentVisibility[[#This Row],[Program True]],NOT(ComponentVisibility[[#This Row],[Force False]]))) -> FALSE | I35: =vmSSCLNotice2405="No" -> FALSE | K35: FALSE
B36: Supportive Services Costs | C36: =ROW('Supportive Services Costs'!A24) -> 24 | D36: =ROW('Supportive Services Costs'!A38) -> 38 | G36: =OR(ComponentVisibility[[#This Row],[Force True]],AND(ComponentVisibility[[#This Row],[Program True]],NOT(ComponentVisibility[[#This Row],[Force False]]))) -> FALSE | I36: =vmSSCLNotice2405="Yes" -> FALSE | K36: FALSE
B37: Unit Mix | G37: =OR(ComponentVisibility[[#This Row],[Force True]],AND(ComponentVisibility[[#This Row],[Program True]],NOT(ComponentVisibility[[#This Row],[Force False]]))) -> FALSE | I37: =IF(LEFT(vmPPA,3)="(1)",TRUE,IF(LEFT(vmPPA,4)="(2a)",FALSE,IF(LEFT(vmPPA,4)="(2b)",TRUE,IF(LEFT(vmPPA,4)="(2c)",FALSE,IF(LEFT(vmPPA,4)="(2d)",FALSE,IF(LEFT(vmPPA,4)="(2e)",FALSE,IF(LEFT(vmPPA,4)="(2f)",FALSE,IF(LEFT(vmPPA,4)="(2g)",FALSE)))))))) -> FALSE | K37: FALSE

Sheet PLHA Coverpage
B3: Permanent Local Housing Allocation (PLHA) Program
B5: Notice of Funding Availability (NOFA) May 01, 2025
B7: Non-Entitlement Local Government Competitive Application
B24: State of California
B25: Gavin Newsom, Governor
B27: Business, Consumer Services and Housing Agency
B28: Tomiquia Moss, Secretary
B29: https://www.bcsh.ca.gov/
B31: Department of Housing and Community Development
B32: Gustavo Velasquez, Director
B33: 651 Bannon Street, Sacramento, CA 95811
B34: Telephone: (916) 263-2771
B35: PLHA Program Email: CPLHA@hcd.ca.gov
B36: https://www.hcd.ca.gov/grants-and-funding/programs-active/permanent-local-housing-allocation
A38: V.1 | B38: CPLHA Application 05/01/2025
B40: End of Document

Sheet Instructions
B2: Instructions
B4: When opening this file, a yellow banner at the top may appear with a button that says, "Enable Editing", and/or "Enable Macros". It is essential that you click this box(es) so that the macros are enabled. Enabling macros is necessary for full workbook/application functionality. WARNING: Partial functionality of this application/workbook WILL BE LOST when using Apple Mac Computers. The Department highly recommends using PC Computers and Microsoft Office 2013 or newer to complete the application.
E5: Microsoft has recently added blocking of macros by default, if this happens when you open the application, please follow the instructions in the Word document added as an icon to the left (double-click to open).
B8: Application materials must be submitted electronically via the HCD portal system. Requirements for uploading the Application Workbook and required supporting
B9: documentation, including naming conventions, are described in the application instructions available at | Y9: https://www.hcd.ca.gov/grants-and-funding/programs-active/permanent-local-housing-allocation
B10: Permanent Local Housing Allocation Program 2024 Non-Entitlement Local Government Competitive applications will be accepted as set forth in the NOFA.
B11: Application must be completed on the Department’s forms and cannot be altered or modified by the Sponsor/Applicant. Excel Application must be in Excel format, not a PDF document.
B12: If the Sponsor/Applicant discover any errors within application, use the Application Support tab and email the entire workbook to | AE12: cplha@hcd.ca.gov
B13: It is recommended that Applicant(s) start from top to bottom and left to right for a better understanding and functionality of this application.
B14: Additional instructions and guidance are given throughout the Application in "red" text and in cell comments. Cell Notes/Comments are very important to read as some of these will provide directions for completing your application.
B15: "Yellow" cells | F15: are for Applicant input. It is very important that you answer ALL yellow cells, failure to provide all information may disqualify your application from consideration or may negatively impact your point score.
B16: "Orange" cells | F16: are required attachments. Failure to provide the required attachments and documentation may disqualify your application from consideration or may negatively impact your point score. Electronically attached files must use the naming convention in the Application.
B17: "Blue" cells | F17: are self-score points awarded in the "Scoring" worksheet. These are automated calculations based on the inputs provided by the Sponsor/Applicant.
B18: "Red" cells | F18: indicate the Applicant(s) has failed to meet a requirement of the program, threshold, scoring, upload, or certification.
B19: Disclosure of Application: Information provided in the application will become a public record available for review by the public, pursuant to the California Public Records Act (Government Code Sections 6250-6276.48). As such, any materials provided are subject to disclosure to any person making a request under this Act. The Department cautions Applicants to use discretion in providing information not specifically requested, including but not limited to, bank account numbers, social security numbers, personal phone numbers, and home addresses. By providing this information to the Department, the Applicant is waiving any claim of confidentiality and consents to the disclosure of submitted material upon request.
B21: End of Document

Sheet Overview
B2: Overview
B3: Proposed Activity §401; Funding Limits/Request NOFA
B4: (a) Select below the proposed Activity you are applying for. Note: you may only apply for one Project or one Program Activity and the eligible Activity must take place within the jurisdiction of the Applicant.
AN5: (1) Development of a new or substantial rehabilitation of a multifamily rental housing project that is Affordable to households at or below 60% of AMI, but which is not currently restricted as Affordable housing
B6: Fully describe the proposed Activity above. If your proposed program Activity is assistance to persons who are experiencing homelessness or At-risk of homelessness (2d), describe all subactivities. | AN6: (2a) Development of a navigation center
AN7: (2b) New construction, rehabilitation, or preservation of permanent or transitional rental housing
B8: File Name: | E8: Activity Schedule | M8: Submit a timeline and schedule for the proposed activity | AG8: Uploaded to HCD? | AN8: (2c) Operating costs for navigation centers
B9: File Name: | E9: Activity Plan | M9: Submit a detailed plan discussing the proposed activity | AG9: Uploaded to HCD? | AN9: (2d) Rapid rehousing
B10: File Name: | E10: Activity Guidelines | M10: Submit guidelines for determining amount of funds to be provided | AG10: Uploaded to HCD? | AN10: (2e) Rental assistance
B11: Funding limit | F11: =IF(B5="","",IF(OR(B5=AN5,B5=AN6,B5=AN7),5000000,1000000)) ->  | I11: Funds requested including admin expenses (min. $500,000) | Z11: Admin limit 5% | AD11: =IF(B5="","",(MIN(F11,W11)*0.05)) ->  | AG11: Admin requested | AN11: (2f) Supportive and case management services
B12: Have you applied, do you plan to apply, or have you been awarded other HCD program funds for the proposed Activity? | AN12: (2g) Street outreach
B13: Other HCD Program(s) Name(s): | P13: Funding Amount | U13: Funding Status | AC13: NOFA Date | AF13: Award Date/Expected Award Date
B18: Applicant §400
B19: (a) Eligible Applicants for this non-entitlement competitive allocation described in §100(b)(3) are limited to non-entitlement local governments. For development of Rental Housing Projects, Sponsor(s) must be co-Applicant(s). If there are two co-Applicants (two General Partners) both must complete and submit co-applicant information and documentation.
B21: Applicant Name | AC21: Organization Type: | AH21: Local Government
B22: Address | S22: City | AA22: County | AG22: State | AJ22: Zip
B23: Auth Rep: Name | N23: Title | U23: Email | AF23: Phone
B24: Contact: Name | N24: Title | U24: Email | AF24: Phone
B25: File Name: | E25: App Cert & Legal | M25: Reference 'Certifications & Legal Status' worksheet. Only complete Certification part. | AG25: Uploaded to HCD?
B26: File Name | E26: App TIN Form | M26: Taxpayer Identification Number (TIN) on the PLHA webpage. | AG26: Uploaded to HCD?
B27: Co-Applicant 1 Name | AE27: Organization Type:
B28: Address | S28: City | AA28: County | AG28: State | AJ28: Zip
B29: Auth Rep: Name | N29: Title | U29: Email | AF29: Phone
B30: Contact: Name | N30: Title | U30: Email | AF30: Phone
B31: File Name: | E31: Co-App1 Cert & Legal | M31: Reference 'Certifications & Legal Status' worksheet. | AG31: Uploaded to HCD?
B32: File Name: | E32: Co-App1 OrgDoc1, OrgDoc2, etc… | M32: Reference Sponsor Org Docs worksheet | AG32: Uploaded to HCD?
B33: File Name: | E33: Co-App1 OrgChart | M33: Sponsor Organization Chart | AG33: Uploaded to HCD?
B34: File Name: | E34: Co-App1 Signature Block | M34: Signature Block - upload in Microsoft Word document. | AG34: Uploaded to HCD?
B35: File Name | E35: Co-App1 Payee Data Record | M35: Payee Data Record STD-204 on the PLHA webpage. | AG35: Uploaded to HCD?
B36: File Name: | E36: Co-App1 Cert of Good Standing | M36: Must be dated 30 days or less from the application due date. | AG36: Uploaded to HCD?
B37: File Name: | E37: Co-App1 Tax-Exempt Status | M37: Evidence of tax-exempt status from IRS and from FTB for Corporations. | AG37: Uploaded to HCD?
B38: Co-Applicant 2 Name | AE38: Organization Type:
B39: Address | S39: City | AA39: County | AG39: State | AJ39: Zip
B40: Auth Rep: Name | N40: Title | U40: Email | AF40: Phone
B41: Contact: Name | N41: Title | U41: Email | AF41: Phone
B42: File Name: | E42: Co-App2 Cert & Legal | M42: Reference 'Certifications & Legal Status' worksheet. | AG42: Uploaded to HCD?
B43: File Name: | E43: Co-App2 OrgDoc1, OrgDoc2, etc… | M43: Reference Sponsor Org Docs worksheet | AG43: Uploaded to HCD?
B44: File Name: | E44: Co-App2 OrgChart | M44: Sponsor Organization Chart | AG44: Uploaded to HCD?
B45: File Name: | E45: Co-App2 Signature Block | M45: Signature Block - upload in Microsoft Word document. | AG45: Uploaded to HCD?
B46: File Name | E46: Co-App2 Payee Data Record | M46: Payee Data Record STD-204 on the PLHA webpage. | AG46: Uploaded to HCD?
B47: File Name: | E47: Co-App2 Cert of Good Standing | M47: Must be dated 30 days or less from the application due date. | AG47: Uploaded to HCD?
B48: File Name: | E48: Co-App2 Tax-Exempt Status | M48: Evidence of tax-exempt status from IRS and from FTB for Corporations. | AG48: Uploaded to HCD?
B49: Threshold Requirements §402
B50: (a) Does the Applicant have a Housing Element that has been adopted by the jurisdiction’s governing body by the application due date and subsequently determined to be in substantial compliance with state Housing Element Law pursuant to GC §65585. Current Housing Element compliance status can be obtained by referencing the Department’s website at https://www.hcd.ca.gov/housing-elements-hcd
B51: (b) Has the Applicant submitted to HCD the Annual Progress Report (APR) required by GC §65400 for the current or prior year by the application due date?
B52: (c)(2) and (3) Submission of an application by the Applicant and one or more co-Applicants must be authorized by resolutions of the governing boards of both the Applicant and all co-Applicants. Applicants may use their own resolution format as long as it contains ALL of the authorizations as in the sample. The person attesting to the resolution signing cannot be the same person authorized to execute the documents in the name of the Applicant. If more than one authorized signatory is identified, state whether both signatories are required or only one signatory is required to submit and execute Program docs. If the application is being signed by a designee of the authorized signatory, the Applicant must also submit a designee letter or other proof of signing authority.
B53: File Name | E53: App Reso | M53: Copy of the local government Resolution - sample on the PLHA webpage. | AG53: Uploaded to HCD?
B54: File Name | E54: Co-App1 Reso | M54: Copy of the Resolution - sample on the PLHA webpage. | AG54: Uploaded to HCD?
B55: File Name | E55: Co-App2 Reso | M55: Copy of the Resolution - sample on the PLHA webpage. | AG55: Uploaded to HCD?
B57: End of Document

Sheet Development Info (hidden)
B2: Multifamily Rental Housing (MF) or Navigation Center (NC)
B3: Development Name | W3: Type | AE3: County | AN3: =IF(Y3="Substantial Rehabilitation",TRUE,FALSE) -> FALSE
B4: If the Development is known under another name(s) or was formerly known under another name(s), provide the name(s).
B5: Address | Y5: City | AH5: Zip
B6: Census Tract #1 | I6: APN #1 | O6: Census Tract #2 | V6: APN #2 | AB6: Census Tract 3 | AH6: APN #3
B7: =IF(Overview!B5=Overview!AN6,"Number of persons who will have overnight shelter","Number of units in the Development:") -> Number of units in the Development: | P7: MF only: Number of rental units in the Development that will be restricted to 60% of AMI or less:
B8: Projected Construction Start Date: | N8: Projected Construction Completion Date: | AC8: Projected Perm Close Date:
B9: Rehabilitation Projects only (rows 10-13)
B10: MF Substantial Rehabilitation projects only: | L10: Total rehabilitation costs (must complete Dev Budget worksheet): | AC10: ='Dev Budget'!S31 -> 0 | AF10: Rehab cost per unit: | AK10: =IFERROR(AC10/N7,0) -> 0
B11: Rehabilitation projects only: Provide a description of the current condition of the structure(s) and a general description of the overall scope of work. Include a discussion of any proposed modification to the unit configurations, unit mix, need for seismic retrofit, or modifications in use (e.g., commercial/tourist hotel to SRO or studio apartments). All projects must submit a Physical Needs Assessment (PNA) or Capital Needs Assessment (CNA) by a qualified independent third party contractor, which supports the proposed scope of work. Both the contractor and the PNA are subject to HCD approval. Include in the CNA upload, the current rent roll and tenant income and household size information, submit by unit.
B12: File Name: | E12: Rehab Description | M12: Narrative of current condition of structure(s) and description of overall scope of work. Include a discussion of any proposed modification to unit configurations, unit mix, need for seismic retrofit, or modifications in use (e.g., commercial/tourist hotel to SRO). | AG12: Uploaded to HCD?
B13: File Name: | E13: CNA | M13: PNA or CNA by qualified independent third party contractor. | AG13: Uploaded to HCD?
B14: Explain any specific development issues (demolition, relocation, environmental, historical, topography, etc.) at the Development site.
B16: File Name: | E16: EFC1; EFC2; EFC3; etc. | M16: Provide Enforceable Funding Commitments for development funding sources. | AG16: Uploaded to HCD?
B17: MF only: Does market study demonstrate financial feasibility? - Must submit a market study that meets the requirements specified in TCAC Regs §10322(h)(10)
B18: File Name: | E18: Market Study | M18: MF only: Completed market study prepared or updated within one year prior to the application due date. | AG18: Uploaded to HCD?
B19: (c)(4) Site Control: Does Sponsor have Site Control of the Development? If yes, enter form of site control and most recent execution date below.
B20: Form of site control: | AA20: Most recent document execution date:
B21: If leasehold estate, answer the following: | J21: Is rent based on restricted land value? | S21: Is acquisition cost $0 in Development Budget? | AC21: Prepaid lease loan used? If Yes, answer (a-c) below
B22: (a) Funding amount based on the Present Value of lease payments? | S22: (b) Lender requesting Res. Receipts (not permissible) | AC22: (c) Has loan amount been entered as a finance cost?
B23: Purchase price of the site(s): | M23: Appraised value: | U23: MF only: has Applicant completed any other units in this subdivision?
B24: Describe any special circumstances regarding site control:
B26: File Name: | E26: Site Control | M26: Provide appropriate documentation to demonstrate the form of site control indicated above. | AG26: Uploaded to HCD?
B27: File Name: | E27: Prelim | M27: Provide the Preliminary Title Report to verify the accuracy of the site control document. | AG27: Uploaded to HCD?
B28: File Name: | E28: Appraisal | M28: If available, provide a current appraisal of the site(s). If land and/or acquisition costs are shown on the Dev Budget, provide an appraisal report dated within 24 months prior to the application due date. | AG28: Uploaded to HCD?
B29: File Name: | E29: Site Map | M29: Provide a site map of proposed site. | AG29: Uploaded to HCD?
B30: (c)(4) Status of all discretionary local land use approvals: Provide a listing and status of all discretionary local land use approvals, excluding design review, required to complete the Development that have been granted, submitted or to be applied for to the appropriate local agencies, or consistent with local planning documents. This information must match the information provided on the Verification of the Status of Environmental Review and Land Use Entitlements worksheet.
B31: Agency / Issuer | N31: Land Use Approval Date | R31: Approval Type | AA31: Type and Comments
AA32: Site Plan Review
AA33: Conditional Use Permits
AA34: Zoning Approval
B38: (c)(4) Environmental: is the Development free from adverse environmental conditions that are economically infeasible to remove and cannot be mitigated?
B39: Attach all available Phase I and Phase II Environmental Site Assessments (ESA) prepared or updated within 12 months prior to the application due date. Include any follow-up analysis, (e.g., asbestos or lead-based paint analysis), or information on mitigation completed. It is NOT necessary to include a copy of the Database Records Search section of the ESA.
B40: File Name | E40: Env Report 1 | AG40: Uploaded to HCD?
B41: File Name | E41: Env Report 2 | AG41: Uploaded to HCD?
B42: File Name | E42: Env Report 3 | AG42: Uploaded to HCD?
B43: File Name | E43: Env Report 4 | AG43: Uploaded to HCD?
B44: File Name | E44: Env Report 5 | AG44: Uploaded to HCD?
B45: Soils/engineering/geotechnical: has a site report been prepared?
B46: File Name: | E46: Soils-Engineering-Geo | M46: Attach the Soils, Engineering, or Geotechnical report. | AG46: Uploaded to HCD?
B47: File Name: | E47: Rehab Env Reports | M47: Attach the lead-based paint, mold, and asbestos reports related to rehab | AG47: Uploaded to HCD?
B48: (c)(4) and NOFA II(D)(1)(d)(4) Are at least 40% of the permanent funds committed for the Development Project (must complete "Dev Sources' worksheet)?
B49: Americans with Disabilities Act
B50: Sponsor certifies Development will comply with Americans with Disabilities Act and its implementing regulations.
B51: Violence Against Women Act
B52: Sponsor certifies Development will comply with Violence Against Women Act.
B53: Davis-Bacon Wage & State Prevailing Wage Requirements
B54: Sponsor certifies the Development will comply with Davis-Bacon wage requirements and State prevailing wage law, as set forth in Labor Code Section 1720 et seq., which requires the payment of prevailing wages unless the Development meets one of the exceptions of Labor Code 1720(c) as determined by the Department of Industrial Relations (DIR). Sponsors are urged to seek professional advice as to how to comply with State prevailing wage law.
B55: If your Development requires demolition of existing residential units, are the number of bedrooms in the proposed Development at least equal to the total number of bedrooms in the demolished structures per UMR §8303(b)? Explain below how this requirement is satisfied including how many bedrooms in the units to be demolished and how many replacement units.
B57: Tenant Selection UMR §8305
B58: Sponsor certifies the Development will comply with the requirements of UMR §8305 as applicable.
B59: Fair Housing Act
B60: Does Development propose to restrict occupancy based on gender or age? If yes, include in legal opinion how Development satisfies fair housing laws (include supporting materials). Attach a specific legal opinion labeled "Fair Housing" with supporting materials describing how the Development complies with fair housing laws. For senior Developments, attach evidence that units are lawfully restricted to senior households in compliance with state and federal fair housing laws.
B61: File Name: | E61: Fair Housing | M61: Legal opinion with supporting materials describing how Development complies. | AG61: Uploaded to HCD?
B62: Pet Friendly Housing Act
B63: Sponsor certifies that residents of the housing development will be authorized to own or otherwise maintain one or more common household pets pursuant to the Pet Friendly Housing Act of 2017 (California Health & Safety Code, Section 50466)
B64: Tax Credits (TC)
B65: Type (Select One) | I65: Federal | M65: Proposed Equity Investor Contribution ($) | AA65: Anticipated TC Factor | AI65: App. Rate
I66: State | M66: Proposed Equity Investor Contribution ($) | AA66: Anticipated TC Factor | AI66: App. Rate
B67: Timeframe for Applying for tax credits | K67: Proposed Month | S67: Proposed Year | Y67: If already awarded, enter TCAC Reservation date:
B68: Projected TCAC/CDLAC Application Date (if applicable)
B69: File Name: | E69: Tax Credit Reservation | M69: If Development has received a tax credit reservation, attach documentation. | AG69: Uploaded to HCD?
B71: End of Document

Sheet Legislative Contacts (hidden)
B2: Legislative and Congressional Information
B3: Provide the Legislative and Congressional information for the applicant and each activity location (if different than applicant location).
B4: To locate or verify the Legislative and Congressional information, click on the respective links below and enter the applicant office location zip code, the activity location site zip code(s) (i.e. zip code(s) where activities are performed), and any additional activity location site(s), as applicable.
B5: California State Assembly | N5: California State Senate | AA5: U.S. House of Representatives
B6: Applicant Office Location
J7: District # | R7: First Name | AA7: Last Name
B8: State Assembly Member
B9: State Senate Member
B10: US House of Representatives
B11: Activity Location 1 (if different from applicant location)
J12: District # | R12: First Name | AA12: Last Name
B13: State Assembly Member
B14: State Senate Member
B15: US House of Representatives
B16: Activity Location 2 (if different from applicant location)
J17: District # | R17: First Name | AA17: Last Name
B18: State Assembly Member
B19: State Senate Member
B20: US House of Representatives
B21: Activity Location 3 (if different from applicant location)
J22: District # | R22: First Name | AA22: Last Name
B23: State Assembly Member
B24: State Senate Member
B25: US House of Representatives
B26: Activity Location 4 (if different from applicant location)
J27: District # | R27: First Name | AA27: Last Name
B28: State Assembly Member
B29: State Senate Member
B30: US House of Representatives
B31: Activity Location 5 (if different from applicant location)
J32: District # | R32: First Name | AA32: Last Name
B33: State Assembly Member
B34: State Senate Member
B35: US House of Representatives
B37: End of Document

Sheet Rental Development Team (hidden)
B2: Rental Development Team
B3: Owner/Borrower Entity
B4: Legal Name | AB4: Organization Type
B5: Address | W5: City | AD5: State | AI5: Zip
B6: Auth Rep Name | O6: Title | V6: Email | AH6: Phone
B7: Contact Name | O7: Title | V7: Email | AH7: Phone
B8: Address | W8: City | AD8: State | AI8: Zip
B9: File Name | E9: Bwr Applicant Reso | M9: Copy of the local government Resolution - sample on the PLHA webpage. | AG9: Uploaded to HCD?
B10: File Name: | E10: Bwr Cert & Legal | M10: Reference 'Certifications & Legal Status' Worksheet. | AG10: Uploaded to HCD?
B11: File Name: | E11: Bwr OrgDoc1, OrgDoc2, etc… | M11: Reference Sponsor Org Docs worksheet | AG11: Uploaded to HCD?
B12: File Name: | E12: Bwr OrgChart | M12: Sponsor Organization Chart | AG12: Uploaded to HCD?
B13: File Name: | E13: Bwr Signature Block | M13: Signature Block - upload in Microsoft Word Document. | AG13: Uploaded to HCD?
B14: File Name | E14: Bwr Payee Data Record | M14: Payee Data Record STD-204 on the PLHA webpage. | AG14: Uploaded to HCD?
B15: File Name: | E15: Bwr Cert of Good Standing | M15: Must be dated 30 days or less from the application due date. | AG15: Uploaded to HCD?
B16: File Name: | E16: Bwr Tax-Exempt Status | M16: Evidence of tax-exempt status from IRS and from FTB for Corporations. | AG16: Uploaded to HCD?
B17: Managing General Partner
B18: Legal Name | AB18: Organization Type
B19: Address | W19: City | AD19: State | AI19: Zip
B20: Auth Rep Name | O20: Title | V20: Email | AH20: Phone
B21: Contact Name | O21: Title | V21: Email | AH21: Phone
B22: Address | W22: City | AD22: State | AI22: Zip
B23: File Name | E23: MGP Applicant Reso | M23: Copy of the local government Resolution - sample on the PLHA webpage. | AG23: Uploaded to HCD?
B24: File Name: | E24: MGP Cert & Legal | M24: Reference 'Certifications & Legal Status' Worksheet. | AG24: Uploaded to HCD?
B25: File Name: | E25: MGP OrgDoc1, OrgDoc2, etc… | M25: Reference Sponsor Org Docs worksheet | AG25: Uploaded to HCD?
B26: File Name: | E26: MGP OrgChart | M26: Sponsor Organization Chart | AG26: Uploaded to HCD?
B27: File Name: | E27: MGP Signature Block | M27: Signature Block - upload in Microsoft Word Document. | AG27: Uploaded to HCD?
B28: File Name | E28: MGP Payee Data Record | M28: Payee Data Record STD-204 on the PLHA webpage. | AG28: Uploaded to HCD?
B29: File Name: | E29: MGP Cert of Good Standing | M29: Must be dated 30 days or less from the application due date. | AG29: Uploaded to HCD?
B30: File Name: | E30: MGP Tax-Exempt Status | M30: Evidence of tax-exempt status from IRS and from FTB for Corporations. | AG30: Uploaded to HCD?
B31: Administrative General Partner #1
B32: Legal Name | AB32: Organization Type
B33: Address | W33: City | AD33: State | AI33: Zip
B34: Auth Rep Name | O34: Title | V34: Email | AH34: Phone
B35: Contact Name | O35: Title | V35: Email | AH35: Phone
B36: Address | W36: City | AD36: State | AI36: Zip
B37: File Name | E37: AGP Applicant Reso | M37: Copy of the local government Resolution - sample on the PLHA webpage. | AG37: Uploaded to HCD?
B38: File Name: | E38: AGP Cert & Legal | M38: Reference 'Certifications & Legal Status' Worksheet. | AG38: Uploaded to HCD?
B39: File Name: | E39: AGP OrgDoc1, OrgDoc2, etc… | M39: Reference Sponsor Org Docs worksheet | AG39: Uploaded to HCD?
B40: File Name: | E40: AGP OrgChart | M40: Sponsor Organization Chart | AG40: Uploaded to HCD?
B41: File Name: | E41: AGP Signature Block | M41: Signature Block - upload in Microsoft Word Document. | AG41: Uploaded to HCD?
B42: File Name | E42: AGP Payee Data Record | M42: Payee Data Record STD-204 on the PLHA webpage. | AG42: Uploaded to HCD?
B43: File Name: | E43: AGP Cert of Good Standing | M43: Must be dated 30 days or less from the application due date. | AG43: Uploaded to HCD?
B44: File Name: | E44: AGP Tax-Exempt Status | M44: Evidence of tax-exempt status from IRS and from FTB for Corporations. | AG44: Uploaded to HCD?
B45: Property Management Agent
B46: Legal Name | Q46: Contact Name | AC46: Email
B47: Phone | I47: Address | W47: City | AE47: State | AI47: Zip
B48: Financial Consultant
B49: Legal Name | Q49: Contact Name | AC49: Email
B50: Phone | I50: Address | W50: City | AE50: State | AI50: Zip
B51: Lead (primary) Service Provider
B52: Legal Name | Q52: Contact Name | AC52: Email
B53: Phone | I53: Address | W53: City | AE53: State | AI53: Zip
B54: Borrower Legal Counsel
B55: Legal Name | Q55: Contact Name | AC55: Email
B56: Phone | I56: Address | W56: City | AE56: State | AI56: Zip
B57: General Contractor
B58: Legal Name | Q58: Contact Name | AC58: Email
B59: Phone | I59: Address | W59: City | AE59: State | AI59: Zip
B60: Architect
B61: Legal Name | Q61: Contact Name | AC61: Email
B62: Phone | I62: Address | W62: City | AE62: State | AI62: Zip
B63: Development Funding Source
B64: Legal Name | Q64: Contact Name | AC64: Email
B65: Phone | I65: Address | W65: City | AE65: State | AI65: Zip
B66: Development Funding Source
B67: Legal Name | Q67: Contact Name | AC67: Email
B68: Phone | I68: Address | W68: City | AE68: State | AI68: Zip
B69: Development Funding Source
B70: Legal Name | Q70: Contact Name | AC70: Email
B71: Phone | I71: Address | W71: City | AE71: State | AI71: Zip
B72: Development Funding Source
B73: Legal Name | Q73: Contact Name | AC73: Email
B74: Phone | I74: Address | W74: City | AE74: State | AI74: Zip
B75: Rent/Operating Subsidy Source
B76: Legal Name | Q76: Contact Name | AC76: Email
B77: Phone | I77: Address | W77: City | AE77: State | AI77: Zip
B78: Rent/Operating Subsidy Source
B79: Legal Name | Q79: Contact Name | AC79: Email
B80: Phone | I80: Address | W80: City | AE80: State | AI80: Zip
B82: End of Document

Sheet Annual Operating Budget (hidden)
B2: Annual Operating Budget - Rapid Rehousing, Rental Assistance, Street Outreach Supportive Services and Navigation Centers
B4: Revenue | P4: Amount | T4: Comments
B5: Grants
B6: Grant (specify) | P6: 0
B7: Grant (specify) | P7: 0
B8: Grant (specify) | P8: 0
B9: Grant (specify) | P9: 0
B10: Grant (specify) | P10: 0
B11: Grant (specify) | P11: 0
B12: Total Grants | P12: =SUM(P6:S11) -> 0
B13: Other Revenue
B14: Other (specify) | P14: 0
B15: Other (specify) | P15: 0
B16: Other (specify) | P16: 0
B17: Total Other Revenue | P17: =SUM(P14:S16) -> 0
B18: Total Revenue | P18: =P13+P17 -> 0
B19: Operating Expenses | P19: Amount | T19: Comments
B20: Personnel
B21: Salary & Wages | P21: 0
B22: Employee Benefits including insurance | P22: 0
B23: Payroll Taxes | P23: 0
B24: Other (specify) | P24: 0
B25: Other (specify) | P25: 0
B26: Total Personnel Expenses | P26: =SUM(P21:S25) -> 0
B27: Supplies
B28: Supplies (Office) | P28: 0
B29: Supplies (Program) | P29: 0
B30: Books | P30: 0
B31: Other (specify) | P31: 0
B32: Other (specify) | P32: 0
B33: Total Supplies Expenses | P33: =SUM(P28:S32) -> 0
B34: Services and Other
B35: Office Equipment Repair and Maintenance | P35: 0
B36: Office Rent / Mortgage Payment | P36: 0
B37: Property and Liability Insurance | P37: 0
B38: Legal Expense | P38: 0
B39: Professional Fees (Consultants) | P39: 0
B40: Bookkeeping Fees/Accounting Services | P40: 0
B41: Travel (Staff/Local) | P41: 0
B42: Telephone | P42: 0
B43: Internet | P43: 0
B44: Postage | P44: 0
B45: Utilities | P45: 0
B46: Real Estate Taxes | P46: 0
B47: Other Taxes and Permits | P47: 0
B48: Security | P48: 0
B49: Building Repairs and Maintenance | P49: 0
B50: Other (specify) | P50: 0
B51: Other (specify) | P51: 0
B52: Other (specify) | P52: 0
B53: Total Services and Other Expenses | P53: =SUM(P35:S52) -> 0
B54: Navigation Centers only (rows 54-56)
B55: Food | P55: 0
B56: Required Reserves (explain in comments) | P56: 0
B57: Debt Service (explain in comments) | P57: 0
B58: Total Navigation Center Expenses | P58: =SUM(P55:S57) -> 0
B59: Total Operating Expenses | P59: =P26+P33+P53+P58 -> 0
B60: Excess/(Deficit) | P60: =P18-P59 -> 0
B62: End of Document

Sheet Dev Budget - Navigation Center (hidden)
B2: Development Budget | C2: Navigation Center Sources of Funds
B3: Uses of Funds | C3: PLHA | J3: Total Sources
B4: LAND COST/ACQUISITION
B5: Land Cost or Value | J5: =SUM(C5:I5) -> 0
B6: Demolition | J6: =SUM(C6:I6) -> 0
B7: Legal | J7: 0
B8: Land Lease Rent Prepayment | J8: =SUM(C8:I8) -> 0
B9: Total Land Cost or Value | C9: =SUM(C5:C8) -> 0 | D9: 0 | E9: 0 | F9: 0 | G9: 0 | H9: 0 | I9: =SUM(I5:I8) -> 0 | J9: =SUM(J5:J8) -> 0
B10: Existing Improvements Cost or Value | J10: =SUM(C10:I10) -> 0
B11: Off-Site Improvements | J11: =SUM(C11:I11) -> 0
B12: Total Acquisition Cost | C12: =SUM(C10:C11) -> 0 | D12: 0 | E12: 0 | F12: 0 | G12: 0 | H12: 0 | I12: =SUM(I10:I11) -> 0 | J12: =SUM(J10:J11) -> 0
B13: Total Land Cost / Acquisition Cost | C13: =SUM(C9+C12) -> 0 | D13: 0 | E13: 0 | F13: 0 | G13: 0 | H13: 0 | I13: =SUM(I9+I12) -> 0 | J13: 0
B14: Predevelopment Interest/Holding Cost | J14: =SUM(C14:I14) -> 0
B15: Assumed, Accrued Interest on Existing Debt (Rehab/Acq) | J15: =SUM(C15:I15) -> 0
B16: Excess Purchase Price Over Appraisal | J16: 0
B17: Relocation Expenses | J17: =SUM(C17:H17) -> 0
B18: =IF('Development Info'!Y3<>"Navigation Center Rehab","NEW CONSTRUCTION","REHABILITATION") -> NEW CONSTRUCTION
B19: Site Work | J19: =SUM(C19:I19) -> 0
B20: Structures | J20: =SUM(C20:I20) -> 0
B21: General Requirements | J21: 0
B22: Contractor Overhead | J22: 0
B23: Contractor Profit | J23: 0
B24: Prevailing Wages | J24: 0
B25: General Liability Insurance | J25: 0
B26: Other: (Specify) | J26: 0
B27: Other: (Specify) | J27: 0
B28: Other: (Specify) | J28: 0
B29: Other: (Specify) | J29: 0
B30: Other: (Specify) | J30: 0
B31: Other: (Specify) | J31: =SUM(C31:I31) -> 0
B32: =IF('Development Info'!Y3<>"Navigation Center Rehab","Total New Construction Costs","Total Rehabilitation Costs") -> Total New Construction Costs | C32: =SUM(C19:C31) -> 0 | D32: =SUM(D19:D31) -> 0 | E32: 0 | F32: 0 | G32: 0 | H32: 0 | I32: =SUM(I19:I31) -> 0 | J32: 0
B33: ARCHITECTURAL FEES
B34: Design | J34: =SUM(C34:I34) -> 0
B35: Supervision | J35: =SUM(C35:I35) -> 0
B36: Total Architectural Costs | C36: =SUM(C34:C35) -> 0 | D36: =SUM(D34:D35) -> 0 | E36: 0 | F36: 0 | G36: 0 | H36: 0 | I36: 0 | J36: =SUM(J34:J35) -> 0
B37: SURVEY & ENGINEERING
B38: Total Survey & Engineering | J38: =SUM(C38:I38) -> 0
B39: CONSTRUCTION INTEREST & FEES
B40: Construction Loan Interest | J40: =SUM(C40:I40) -> 0
B41: Origination Fee | J41: =SUM(C41:I41) -> 0
B42: Credit Enhancement/Application Fee | J42: 0
B43: Bond Premium | J43: 0
B44: Cost of Issuance | J44: 0
B45: Title & Recording | J45: 0
B46: Taxes | J46: 0
B47: Insurance | J47: 0
B48: Other: (Specify) | J48: 0
B49: Other: (Specify) | J49: 0
B50: Other: (Specify) | J50: 0
B51: Total Construction Interest & Fees | C51: =SUM(C40:C50) -> 0 | D51: =SUM(D40:D50) -> 0 | E51: 0 | F51: 0 | G51: 0 | H51: 0 | I51: =SUM(I40:I50) -> 0 | J51: =SUM(J40:J50) -> 0
B52: PERMANENT FINANCING
B53: Loan Origination Fee | J53: =SUM(C53:I53) -> 0
B54: Credit Enhancement/Application Fee | J54: =SUM(C54:I54) -> 0
B55: Title & Recording | J55: 0
B56: Taxes | J56: 0
B57: Insurance | J57: 0
B58: Other: (Specify) | J58: 0
B59: Other: (Specify) | J59: 0
B60: Total Permanent Financing Costs | C60: =SUM(C53:C59) -> 0 | D60: 0 | E60: 0 | F60: 0 | G60: 0 | H60: 0 | I60: 0 | J60: =SUM(J53:J59) -> 0
B61: Subtotals Forward | C61: =SUM(C9+C12+C14+C15+C16+C17+C32+C36+C38+C51+C60) -> 0 | D61: 0 | E61: 0 | F61: 0 | G61: 0 | H61: 0 | I61: 0 | J61: =SUM(J9+J12+J14+J15+J16+J17+J32+J36+J38+J51+J60) -> 0
B62: LEGAL FEES
B63: Legal Paid by Applicant | J63: =SUM(C63:I63) -> 0
B64: Other: (Specify) | J64: =SUM(C64:I64) -> 0
B65: Other: (Specify) | J65: 0
B66: Total Attorney Costs | C66: =SUM(C63:C65) -> 0 | D66: =SUM(D63:D65) -> 0 | E66: 0 | F66: 0 | G66: 0 | H66: 0 | I66: =SUM(I63:I65) -> 0 | J66: =SUM(J63:J65) -> 0
B67: RESERVES
B68: Operating Reserve | J68: =SUM(C68:I68) -> 0
B69: Replacement Reserve | J69: =SUM(C69:I69) -> 0
B70: Other: (Specify) | J70: 0
B71: Other: (Specify) | J71: 0
B72: Other: (Specify) | J72: 0
B73: Total Reserve Costs | C73: =SUM(C68:C72) -> 0 | D73: 0 | E73: 0 | F73: 0 | G73: 0 | H73: 0 | I73: 0 | J73: =SUM(J68:J72) -> 0
B74: CONTINGENCY COSTS
B75: Construction Hard Cost Contingency | J75: =SUM(C75:I75) -> 0
B76: Soft Cost Contingency | J76: =SUM(C76:I76) -> 0
B77: Total Contingency Costs | C77: =SUM(C75:C76) -> 0 | D77: 0 | E77: 0 | F77: 0 | G77: 0 | H77: 0 | I77: =SUM(I75:I76) -> 0 | J77: =SUM(J75:J76) -> 0
B78: OTHER PROJECT COSTS
B79: TCAC App/Allocation/Monitoring Fees | J79: =SUM(C79:I79) -> 0
B80: Environmental Audit | J80: =SUM(C80:I80) -> 0
B81: Local Development Impact Fees | J81: 0
B82: Permit Processing Fees | J82: 0
B83: Capital Fees | J83: 0
B84: Marketing | J84: 0
B85: Furnishings | J85: 0
B86: Market Study | J86: 0
B87: Accounting/Reimbursable | J87: 0
B88: Appraisal Costs | J88: 0
B89: Other: (Specify) | J89: 0
B90: Other: (Specify) | J90: 0
B91: Other: (Specify) | J91: 0
B92: Other: (Specify) | J92: 0
B93: Other: (Specify) | J93: 0
B94: Other: (Specify) | J94: 0
B95: Total Other Costs | C95: =SUM(C79:C94) -> 0 | D95: =SUM(D79:D94) -> 0 | E95: 0 | F95: 0 | G95: 0 | H95: 0 | I95: =SUM(I79:I94) -> 0 | J95: =SUM(J79:J94) -> 0
B96: SUBTOTAL PROJECT COST | C96: =SUM(C61+C66+C73+C77+C95) -> 0 | D96: 0 | E96: 0 | F96: 0 | G96: 0 | H96: 0 | I96: 0 | J96: =SUM(J61+J66+J73+J77+J95) -> 0
B97: DEVELOPER COSTS
B98: Developer Overhead/Profit | J98: =SUM(C98:I98) -> 0
B99: Consultant/Processing Agent | J99: =SUM(C99:I99) -> 0
B100: Project Administration | J100: 0
B101: Broker Fees Paid to a Related Party | J101: 0
B102: Construction Oversight by Developer | J102: 0
B103: Other: (Specify) | J103: 0
B104: Total Developer Costs | C104: =SUM(C98:C103) -> 0 | D104: 0 | E104: 0 | F104: 0 | G104: 0 | H104: 0 | I104: =SUM(I98:I103) -> 0 | J104: =SUM(J98:J103) -> 0
B105: TOTAL PROJECT COST | C105: =SUM(C96+C104) -> 0 | D105: 0 | E105: 0 | F105: 0 | G105: 0 | H105: 0 | I105: =SUM(I96+I104) -> 0 | J105: =SUM(J96+J104) -> 0
B107: End of Document

Sheet Unit Mix (hidden)
B2: Rental Development Unit Mix | O2: Subsidy Program Name (Specify) | Q2: Subsidy Program Name (Specify)
A3: None | B3: # of Bedrms | C3: % of Area Median Income | D3: Total Units | E3: PLHA Assisted Units (60% AMI or less) | F3: Total Restricted Units | G3: Total Unrestricted Units | H3: Manager Units | I3: Special Needs Units | J3: Support Housing Units | K3: Restricted Monthly Rent | L3: Unrestricted Monthly Rent | M3: Proposed Monthly Rent | N3: 1Monthly Utility Allowance | O3: Monthly Rent Subsidy Amount | P3: Subsidy Units | Q3: Monthly Rent Subsidy Amount | R3: Subsidy Units | S3: # of Baths | T3: Square Feet | U3: Building Type | V3: Total Net Monthly Restricted Rent | W3: Total Net Monthly Proposed Rent | X3: Total Monthly Unrestricted Rent | Y3: =O2 -> Subsidy Program Name (Specify) | Z3: =Q2 -> Subsidy Program Name (Specify)
A4: 0.15 | F4: =IF(OR(C4="",C4="none"),0,D4) -> 0 | G4: =IF(OR(C4="",C4="none"),D4,0) -> 0 | K4: =IFERROR(INDEX('Rent Limits'!$A$1:$O$1045,MATCH(AA4,'Rent Limits'!$A$1:$A$1045,0),MATCH(B4,'Rent Limits'!$A$1:$O$1,0)),0) -> 0 | V4: =(UnitsTbls[[#This Row],[Restricted Monthly Rent]]-UnitsTbls[[#This Row],[1Monthly Utility Allowance]])*UnitsTbls[[#This Row],[Total Restricted Units]] -> 0 | W4: =(UnitsTbls[[#This Row],[Proposed Monthly Rent]]-UnitsTbls[[#This Row],[1Monthly Utility Allowance]])*UnitsTbls[[#This Row],[Total Restricted Units]] -> 0 | X4: =UnitsTbls[[#This Row],[Total Unrestricted Units]]*UnitsTbls[[#This Row],[Unrestricted Monthly Rent]] -> 0 | Y4: =UnitsTbls[[#This Row],[Monthly Rent Subsidy Amount]]*UnitsTbls[[#This Row],[Subsidy Units]] -> 0 | Z4: =UnitsTbls[[#This Row],[Monthly Rent Subsidy Amount ]]*UnitsTbls[[#This Row],[Subsidy Units ]] -> 0 | AA4: =CONCATENATE('Development Info'!$AG$3,'Unit Mix'!C4) -> 
A5: 0.2 | F5: 0 | G5: 0 | K5: =IFERROR(INDEX('Rent Limits'!$A$1:$O$1045,MATCH(AA5,'Rent Limits'!$A$1:$A$1045,0),MATCH(B5,'Rent Limits'!$A$1:$O$1,0)),0) -> 0 | V5: =(UnitsTbls[[#This Row],[Restricted Monthly Rent]]-UnitsTbls[[#This Row],[1Monthly Utility Allowance]])*UnitsTbls[[#This Row],[Total Restricted Units]] -> 0 | W5: =(UnitsTbls[[#This Row],[Proposed Monthly Rent]]-UnitsTbls[[#This Row],[1Monthly Utility Allowance]])*UnitsTbls[[#This Row],[Total Restricted Units]] -> 0 | X5: =UnitsTbls[[#This Row],[Total Unrestricted Units]]*UnitsTbls[[#This Row],[Unrestricted Monthly Rent]] -> 0 | Y5: =UnitsTbls[[#This Row],[Monthly Rent Subsidy Amount]]*UnitsTbls[[#This Row],[Subsidy Units]] -> 0 | Z5: =UnitsTbls[[#This Row],[Monthly Rent Subsidy Amount ]]*UnitsTbls[[#This Row],[Subsidy Units ]] -> 0 | AA5: =CONCATENATE('Development Info'!$AG$3,'Unit Mix'!C5) -> 
A6: 0.25 | F6: 0 | G6: 0 | K6: =IFERROR(INDEX('Rent Limits'!$A$1:$O$1045,MATCH(AA6,'Rent Limits'!$A$1:$A$1045,0),MATCH(B6,'Rent Limits'!$A$1:$O$1,0)),0) -> 0 | V6: =(UnitsTbls[[#This Row],[Restricted Monthly Rent]]-UnitsTbls[[#This Row],[1Monthly Utility Allowance]])*UnitsTbls[[#This Row],[Total Restricted Units]] -> 0 | W6: =(UnitsTbls[[#This Row],[Proposed Monthly Rent]]-UnitsTbls[[#This Row],[1Monthly Utility Allowance]])*UnitsTbls[[#This Row],[Total Restricted Units]] -> 0 | X6: =UnitsTbls[[#This Row],[Total Unrestricted Units]]*UnitsTbls[[#This Row],[Unrestricted Monthly Rent]] -> 0 | Y6: =UnitsTbls[[#This Row],[Monthly Rent Subsidy Amount]]*UnitsTbls[[#This Row],[Subsidy Units]] -> 0 | Z6: =UnitsTbls[[#This Row],[Monthly Rent Subsidy Amount ]]*UnitsTbls[[#This Row],[Subsidy Units ]] -> 0 | AA6: =CONCATENATE('Development Info'!$AG$3,'Unit Mix'!C6) -> 
A7: 0.3 | F7: 0 | G7: 0 | K7: =IFERROR(INDEX('Rent Limits'!$A$1:$O$1045,MATCH(AA7,'Rent Limits'!$A$1:$A$1045,0),MATCH(B7,'Rent Limits'!$A$1:$O$1,0)),0) -> 0 | V7: =(UnitsTbls[[#This Row],[Restricted Monthly Rent]]-UnitsTbls[[#This Row],[1Monthly Utility Allowance]])*UnitsTbls[[#This Row],[Total Restricted Units]] -> 0 | W7: =(UnitsTbls[[#This Row],[Proposed Monthly Rent]]-UnitsTbls[[#This Row],[1Monthly Utility Allowance]])*UnitsTbls[[#This Row],[Total Restricted Units]] -> 0 | X7: =UnitsTbls[[#This Row],[Total Unrestricted Units]]*UnitsTbls[[#This Row],[Unrestricted Monthly Rent]] -> 0 | Y7: =UnitsTbls[[#This Row],[Monthly Rent Subsidy Amount]]*UnitsTbls[[#This Row],[Subsidy Units]] -> 0 | Z7: =UnitsTbls[[#This Row],[Monthly Rent Subsidy Amount ]]*UnitsTbls[[#This Row],[Subsidy Units ]] -> 0 | AA7: =CONCATENATE('Development Info'!$AG$3,'Unit Mix'!C7) -> 
A8: 0.35 | F8: 0 | G8: 0 | K8: =IFERROR(INDEX('Rent Limits'!$A$1:$O$1045,MATCH(AA8,'Rent Limits'!$A$1:$A$1045,0),MATCH(B8,'Rent Limits'!$A$1:$O$1,0)),0) -> 0 | V8: =(UnitsTbls[[#This Row],[Restricted Monthly Rent]]-UnitsTbls[[#This Row],[1Monthly Utility Allowance]])*UnitsTbls[[#This Row],[Total Restricted Units]] -> 0 | W8: =(UnitsTbls[[#This Row],[Proposed Monthly Rent]]-UnitsTbls[[#This Row],[1Monthly Utility Allowance]])*UnitsTbls[[#This Row],[Total Restricted Units]] -> 0 | X8: =UnitsTbls[[#This Row],[Total Unrestricted Units]]*UnitsTbls[[#This Row],[Unrestricted Monthly Rent]] -> 0 | Y8: =UnitsTbls[[#This Row],[Monthly Rent Subsidy Amount]]*UnitsTbls[[#This Row],[Subsidy Units]] -> 0 | Z8: =UnitsTbls[[#This Row],[Monthly Rent Subsidy Amount ]]*UnitsTbls[[#This Row],[Subsidy Units ]] -> 0 | AA8: =CONCATENATE('Development Info'!$AG$3,'Unit Mix'!C8) -> 
A9: 0.4 | F9: 0 | G9: 0 | K9: =IFERROR(INDEX('Rent Limits'!$A$1:$O$1045,MATCH(AA9,'Rent Limits'!$A$1:$A$1045,0),MATCH(B9,'Rent Limits'!$A$1:$O$1,0)),0) -> 0 | V9: =(UnitsTbls[[#This Row],[Restricted Monthly Rent]]-UnitsTbls[[#This Row],[1Monthly Utility Allowance]])*UnitsTbls[[#This Row],[Total Restricted Units]] -> 0 | W9: =(UnitsTbls[[#This Row],[Proposed Monthly Rent]]-UnitsTbls[[#This Row],[1Monthly Utility Allowance]])*UnitsTbls[[#This Row],[Total Restricted Units]] -> 0 | X9: =UnitsTbls[[#This Row],[Total Unrestricted Units]]*UnitsTbls[[#This Row],[Unrestricted Monthly Rent]] -> 0 | Y9: =UnitsTbls[[#This Row],[Monthly Rent Subsidy Amount]]*UnitsTbls[[#This Row],[Subsidy Units]] -> 0 | Z9: =UnitsTbls[[#This Row],[Monthly Rent Subsidy Amount ]]*UnitsTbls[[#This Row],[Subsidy Units ]] -> 0 | AA9: =CONCATENATE('Development Info'!$AG$3,'Unit Mix'!C9) -> 
A10: 0.45 | F10: 0 | G10: 0 | K10: =IFERROR(INDEX('Rent Limits'!$A$1:$O$1045,MATCH(AA10,'Rent Limits'!$A$1:$A$1045,0),MATCH(B10,'Rent Limits'!$A$1:$O$1,0)),0) -> 0 | V10: =(UnitsTbls[[#This Row],[Restricted Monthly Rent]]-UnitsTbls[[#This Row],[1Monthly Utility Allowance]])*UnitsTbls[[#This Row],[Total Restricted Units]] -> 0 | W10: =(UnitsTbls[[#This Row],[Proposed Monthly Rent]]-UnitsTbls[[#This Row],[1Monthly Utility Allowance]])*UnitsTbls[[#This Row],[Total Restricted Units]] -> 0 | X10: =UnitsTbls[[#This Row],[Total Unrestricted Units]]*UnitsTbls[[#This Row],[Unrestricted Monthly Rent]] -> 0 | Y10: =UnitsTbls[[#This Row],[Monthly Rent Subsidy Amount]]*UnitsTbls[[#This Row],[Subsidy Units]] -> 0 | Z10: =UnitsTbls[[#This Row],[Monthly Rent Subsidy Amount ]]*UnitsTbls[[#This Row],[Subsidy Units ]] -> 0 | AA10: =CONCATENATE('Development Info'!$AG$3,'Unit Mix'!C10) -> 
A11: 0.5 | F11: 0 | G11: 0 | K11: =IFERROR(INDEX('Rent Limits'!$A$1:$O$1045,MATCH(AA11,'Rent Limits'!$A$1:$A$1045,0),MATCH(B11,'Rent Limits'!$A$1:$O$1,0)),0) -> 0 | V11: =(UnitsTbls[[#This Row],[Restricted Monthly Rent]]-UnitsTbls[[#This Row],[1Monthly Utility Allowance]])*UnitsTbls[[#This Row],[Total Restricted Units]] -> 0 | W11: =(UnitsTbls[[#This Row],[Proposed Monthly Rent]]-UnitsTbls[[#This Row],[1Monthly Utility Allowance]])*UnitsTbls[[#This Row],[Total Restricted Units]] -> 0 | X11: =UnitsTbls[[#This Row],[Total Unrestricted Units]]*UnitsTbls[[#This Row],[Unrestricted Monthly Rent]] -> 0 | Y11: =UnitsTbls[[#This Row],[Monthly Rent Subsidy Amount]]*UnitsTbls[[#This Row],[Subsidy Units]] -> 0 | Z11: =UnitsTbls[[#This Row],[Monthly Rent Subsidy Amount ]]*UnitsTbls[[#This Row],[Subsidy Units ]] -> 0 | AA11: =CONCATENATE('Development Info'!$AG$3,'Unit Mix'!C11) -> 
A12: 0.55 | F12: 0 | G12: 0 | K12: =IFERROR(INDEX('Rent Limits'!$A$1:$O$1045,MATCH(AA12,'Rent Limits'!$A$1:$A$1045,0),MATCH(B12,'Rent Limits'!$A$1:$O$1,0)),0) -> 0 | V12: =(UnitsTbls[[#This Row],[Restricted Monthly Rent]]-UnitsTbls[[#This Row],[1Monthly Utility Allowance]])*UnitsTbls[[#This Row],[Total Restricted Units]] -> 0 | W12: =(UnitsTbls[[#This Row],[Proposed Monthly Rent]]-UnitsTbls[[#This Row],[1Monthly Utility Allowance]])*UnitsTbls[[#This Row],[Total Restricted Units]] -> 0 | X12: =UnitsTbls[[#This Row],[Total Unrestricted Units]]*UnitsTbls[[#This Row],[Unrestricted Monthly Rent]] -> 0 | Y12: =UnitsTbls[[#This Row],[Monthly Rent Subsidy Amount]]*UnitsTbls[[#This Row],[Subsidy Units]] -> 0 | Z12: =UnitsTbls[[#This Row],[Monthly Rent Subsidy Amount ]]*UnitsTbls[[#This Row],[Subsidy Units ]] -> 0 | AA12: =CONCATENATE('Development Info'!$AG$3,'Unit Mix'!C12) -> 
A13: 0.6 | F13: 0 | G13: 0 | K13: =IFERROR(INDEX('Rent Limits'!$A$1:$O$1045,MATCH(AA13,'Rent Limits'!$A$1:$A$1045,0),MATCH(B13,'Rent Limits'!$A$1:$O$1,0)),0) -> 0 | V13: =(UnitsTbls[[#This Row],[Restricted Monthly Rent]]-UnitsTbls[[#This Row],[1Monthly Utility Allowance]])*UnitsTbls[[#This Row],[Total Restricted Units]] -> 0 | W13: =(UnitsTbls[[#This Row],[Proposed Monthly Rent]]-UnitsTbls[[#This Row],[1Monthly Utility Allowance]])*UnitsTbls[[#This Row],[Total Restricted Units]] -> 0 | X13: =UnitsTbls[[#This Row],[Total Unrestricted Units]]*UnitsTbls[[#This Row],[Unrestricted Monthly Rent]] -> 0 | Y13: =UnitsTbls[[#This Row],[Monthly Rent Subsidy Amount]]*UnitsTbls[[#This Row],[Subsidy Units]] -> 0 | Z13: =UnitsTbls[[#This Row],[Monthly Rent Subsidy Amount ]]*UnitsTbls[[#This Row],[Subsidy Units ]] -> 0 | AA13: =CONCATENATE('Development Info'!$AG$3,'Unit Mix'!C13) -> 
A14: 0.65 | F14: 0 | G14: 0 | K14: =IFERROR(INDEX('Rent Limits'!$A$1:$O$1045,MATCH(AA14,'Rent Limits'!$A$1:$A$1045,0),MATCH(B14,'Rent Limits'!$A$1:$O$1,0)),0) -> 0 | V14: =(UnitsTbls[[#This Row],[Restricted Monthly Rent]]-UnitsTbls[[#This Row],[1Monthly Utility Allowance]])*UnitsTbls[[#This Row],[Total Restricted Units]] -> 0 | W14: =(UnitsTbls[[#This Row],[Proposed Monthly Rent]]-UnitsTbls[[#This Row],[1Monthly Utility Allowance]])*UnitsTbls[[#This Row],[Total Restricted Units]] -> 0 | X14: =UnitsTbls[[#This Row],[Total Unrestricted Units]]*UnitsTbls[[#This Row],[Unrestricted Monthly Rent]] -> 0 | Y14: =UnitsTbls[[#This Row],[Monthly Rent Subsidy Amount]]*UnitsTbls[[#This Row],[Subsidy Units]] -> 0 | Z14: =UnitsTbls[[#This Row],[Monthly Rent Subsidy Amount ]]*UnitsTbls[[#This Row],[Subsidy Units ]] -> 0 | AA14: =CONCATENATE('Development Info'!$AG$3,'Unit Mix'!C14) -> 
A15: 0.7 | F15: 0 | G15: 0 | K15: =IFERROR(INDEX('Rent Limits'!$A$1:$O$1045,MATCH(AA15,'Rent Limits'!$A$1:$A$1045,0),MATCH(B15,'Rent Limits'!$A$1:$O$1,0)),0) -> 0 | V15: =(UnitsTbls[[#This Row],[Restricted Monthly Rent]]-UnitsTbls[[#This Row],[1Monthly Utility Allowance]])*UnitsTbls[[#This Row],[Total Restricted Units]] -> 0 | W15: =(UnitsTbls[[#This Row],[Proposed Monthly Rent]]-UnitsTbls[[#This Row],[1Monthly Utility Allowance]])*UnitsTbls[[#This Row],[Total Restricted Units]] -> 0 | X15: =UnitsTbls[[#This Row],[Total Unrestricted Units]]*UnitsTbls[[#This Row],[Unrestricted Monthly Rent]] -> 0 | Y15: =UnitsTbls[[#This Row],[Monthly Rent Subsidy Amount]]*UnitsTbls[[#This Row],[Subsidy Units]] -> 0 | Z15: =UnitsTbls[[#This Row],[Monthly Rent Subsidy Amount ]]*UnitsTbls[[#This Row],[Subsidy Units ]] -> 0 | AA15: =CONCATENATE('Development Info'!$AG$3,'Unit Mix'!C15) -> 
A16: 0.75 | F16: 0 | G16: 0 | K16: =IFERROR(INDEX('Rent Limits'!$A$1:$O$1045,MATCH(AA16,'Rent Limits'!$A$1:$A$1045,0),MATCH(B16,'Rent Limits'!$A$1:$O$1,0)),0) -> 0 | V16: =(UnitsTbls[[#This Row],[Restricted Monthly Rent]]-UnitsTbls[[#This Row],[1Monthly Utility Allowance]])*UnitsTbls[[#This Row],[Total Restricted Units]] -> 0 | W16: =(UnitsTbls[[#This Row],[Proposed Monthly Rent]]-UnitsTbls[[#This Row],[1Monthly Utility Allowance]])*UnitsTbls[[#This Row],[Total Restricted Units]] -> 0 | X16: =UnitsTbls[[#This Row],[Total Unrestricted Units]]*UnitsTbls[[#This Row],[Unrestricted Monthly Rent]] -> 0 | Y16: =UnitsTbls[[#This Row],[Monthly Rent Subsidy Amount]]*UnitsTbls[[#This Row],[Subsidy Units]] -> 0 | Z16: =UnitsTbls[[#This Row],[Monthly Rent Subsidy Amount ]]*UnitsTbls[[#This Row],[Subsidy Units ]] -> 0 | AA16: =CONCATENATE('Development Info'!$AG$3,'Unit Mix'!C16) -> 
A17: 0.8 | F17: 0 | G17: 0 | K17: =IFERROR(INDEX('Rent Limits'!$A$1:$O$1045,MATCH(AA17,'Rent Limits'!$A$1:$A$1045,0),MATCH(B17,'Rent Limits'!$A$1:$O$1,0)),0) -> 0 | V17: =(UnitsTbls[[#This Row],[Restricted Monthly Rent]]-UnitsTbls[[#This Row],[1Monthly Utility Allowance]])*UnitsTbls[[#This Row],[Total Restricted Units]] -> 0 | W17: =(UnitsTbls[[#This Row],[Proposed Monthly Rent]]-UnitsTbls[[#This Row],[1Monthly Utility Allowance]])*UnitsTbls[[#This Row],[Total Restricted Units]] -> 0 | X17: =UnitsTbls[[#This Row],[Total Unrestricted Units]]*UnitsTbls[[#This Row],[Unrestricted Monthly Rent]] -> 0 | Y17: =UnitsTbls[[#This Row],[Monthly Rent Subsidy Amount]]*UnitsTbls[[#This Row],[Subsidy Units]] -> 0 | Z17: =UnitsTbls[[#This Row],[Monthly Rent Subsidy Amount ]]*UnitsTbls[[#This Row],[Subsidy Units ]] -> 0 | AA17: =CONCATENATE('Development Info'!$AG$3,'Unit Mix'!C17) -> 
A18: 0.85 | F18: 0 | G18: 0 | K18: =IFERROR(INDEX('Rent Limits'!$A$1:$O$1045,MATCH(AA18,'Rent Limits'!$A$1:$A$1045,0),MATCH(B18,'Rent Limits'!$A$1:$O$1,0)),0) -> 0 | V18: =(UnitsTbls[[#This Row],[Restricted Monthly Rent]]-UnitsTbls[[#This Row],[1Monthly Utility Allowance]])*UnitsTbls[[#This Row],[Total Restricted Units]] -> 0 | W18: =(UnitsTbls[[#This Row],[Proposed Monthly Rent]]-UnitsTbls[[#This Row],[1Monthly Utility Allowance]])*UnitsTbls[[#This Row],[Total Restricted Units]] -> 0 | X18: =UnitsTbls[[#This Row],[Total Unrestricted Units]]*UnitsTbls[[#This Row],[Unrestricted Monthly Rent]] -> 0 | Y18: =UnitsTbls[[#This Row],[Monthly Rent Subsidy Amount]]*UnitsTbls[[#This Row],[Subsidy Units]] -> 0 | Z18: =UnitsTbls[[#This Row],[Monthly Rent Subsidy Amount ]]*UnitsTbls[[#This Row],[Subsidy Units ]] -> 0 | AA18: =CONCATENATE('Development Info'!$AG$3,'Unit Mix'!C18) -> 
A19: 0.9 | F19: 0 | G19: 0 | K19: =IFERROR(INDEX('Rent Limits'!$A$1:$O$1045,MATCH(AA19,'Rent Limits'!$A$1:$A$1045,0),MATCH(B19,'Rent Limits'!$A$1:$O$1,0)),0) -> 0 | V19: =(UnitsTbls[[#This Row],[Restricted Monthly Rent]]-UnitsTbls[[#This Row],[1Monthly Utility Allowance]])*UnitsTbls[[#This Row],[Total Restricted Units]] -> 0 | W19: =(UnitsTbls[[#This Row],[Proposed Monthly Rent]]-UnitsTbls[[#This Row],[1Monthly Utility Allowance]])*UnitsTbls[[#This Row],[Total Restricted Units]] -> 0 | X19: =UnitsTbls[[#This Row],[Total Unrestricted Units]]*UnitsTbls[[#This Row],[Unrestricted Monthly Rent]] -> 0 | Y19: =UnitsTbls[[#This Row],[Monthly Rent Subsidy Amount]]*UnitsTbls[[#This Row],[Subsidy Units]] -> 0 | Z19: =UnitsTbls[[#This Row],[Monthly Rent Subsidy Amount ]]*UnitsTbls[[#This Row],[Subsidy Units ]] -> 0 | AA19: =CONCATENATE('Development Info'!$AG$3,'Unit Mix'!C19) -> 
A20: 0.95 | F20: 0 | G20: 0 | K20: =IFERROR(INDEX('Rent Limits'!$A$1:$O$1045,MATCH(AA20,'Rent Limits'!$A$1:$A$1045,0),MATCH(B20,'Rent Limits'!$A$1:$O$1,0)),0) -> 0 | V20: =(UnitsTbls[[#This Row],[Restricted Monthly Rent]]-UnitsTbls[[#This Row],[1Monthly Utility Allowance]])*UnitsTbls[[#This Row],[Total Restricted Units]] -> 0 | W20: =(UnitsTbls[[#This Row],[Proposed Monthly Rent]]-UnitsTbls[[#This Row],[1Monthly Utility Allowance]])*UnitsTbls[[#This Row],[Total Restricted Units]] -> 0 | X20: =UnitsTbls[[#This Row],[Total Unrestricted Units]]*UnitsTbls[[#This Row],[Unrestricted Monthly Rent]] -> 0 | Y20: =UnitsTbls[[#This Row],[Monthly Rent Subsidy Amount]]*UnitsTbls[[#This Row],[Subsidy Units]] -> 0 | Z20: =UnitsTbls[[#This Row],[Monthly Rent Subsidy Amount ]]*UnitsTbls[[#This Row],[Subsidy Units ]] -> 0 | AA20: =CONCATENATE('Development Info'!$AG$3,'Unit Mix'!C20) -> 
A21: 1 | F21: 0 | G21: 0 | K21: =IFERROR(INDEX('Rent Limits'!$A$1:$O$1045,MATCH(AA21,'Rent Limits'!$A$1:$A$1045,0),MATCH(B21,'Rent Limits'!$A$1:$O$1,0)),0) -> 0 | V21: =(UnitsTbls[[#This Row],[Restricted Monthly Rent]]-UnitsTbls[[#This Row],[1Monthly Utility Allowance]])*UnitsTbls[[#This Row],[Total Restricted Units]] -> 0 | W21: =(UnitsTbls[[#This Row],[Proposed Monthly Rent]]-UnitsTbls[[#This Row],[1Monthly Utility Allowance]])*UnitsTbls[[#This Row],[Total Restricted Units]] -> 0 | X21: =UnitsTbls[[#This Row],[Total Unrestricted Units]]*UnitsTbls[[#This Row],[Unrestricted Monthly Rent]] -> 0 | Y21: =UnitsTbls[[#This Row],[Monthly Rent Subsidy Amount]]*UnitsTbls[[#This Row],[Subsidy Units]] -> 0 | Z21: =UnitsTbls[[#This Row],[Monthly Rent Subsidy Amount ]]*UnitsTbls[[#This Row],[Subsidy Units ]] -> 0 | AA21: =CONCATENATE('Development Info'!$AG$3,'Unit Mix'!C21) -> 
A22: 1.05 | F22: 0 | G22: 0 | K22: =IFERROR(INDEX('Rent Limits'!$A$1:$O$1045,MATCH(AA22,'Rent Limits'!$A$1:$A$1045,0),MATCH(B22,'Rent Limits'!$A$1:$O$1,0)),0) -> 0 | V22: =(UnitsTbls[[#This Row],[Restricted Monthly Rent]]-UnitsTbls[[#This Row],[1Monthly Utility Allowance]])*UnitsTbls[[#This Row],[Total Restricted Units]] -> 0 | W22: =(UnitsTbls[[#This Row],[Proposed Monthly Rent]]-UnitsTbls[[#This Row],[1Monthly Utility Allowance]])*UnitsTbls[[#This Row],[Total Restricted Units]] -> 0 | X22: =UnitsTbls[[#This Row],[Total Unrestricted Units]]*UnitsTbls[[#This Row],[Unrestricted Monthly Rent]] -> 0 | Y22: =UnitsTbls[[#This Row],[Monthly Rent Subsidy Amount]]*UnitsTbls[[#This Row],[Subsidy Units]] -> 0 | Z22: =UnitsTbls[[#This Row],[Monthly Rent Subsidy Amount ]]*UnitsTbls[[#This Row],[Subsidy Units ]] -> 0 | AA22: =CONCATENATE('Development Info'!$AG$3,'Unit Mix'!C22) -> 
A23: 1.1 | F23: 0 | G23: 0 | K23: =IFERROR(INDEX('Rent Limits'!$A$1:$O$1045,MATCH(AA23,'Rent Limits'!$A$1:$A$1045,0),MATCH(B23,'Rent Limits'!$A$1:$O$1,0)),0) -> 0 | V23: =(UnitsTbls[[#This Row],[Restricted Monthly Rent]]-UnitsTbls[[#This Row],[1Monthly Utility Allowance]])*UnitsTbls[[#This Row],[Total Restricted Units]] -> 0 | W23: =(UnitsTbls[[#This Row],[Proposed Monthly Rent]]-UnitsTbls[[#This Row],[1Monthly Utility Allowance]])*UnitsTbls[[#This Row],[Total Restricted Units]] -> 0 | X23: =UnitsTbls[[#This Row],[Total Unrestricted Units]]*UnitsTbls[[#This Row],[Unrestricted Monthly Rent]] -> 0 | Y23: =UnitsTbls[[#This Row],[Monthly Rent Subsidy Amount]]*UnitsTbls[[#This Row],[Subsidy Units]] -> 0 | Z23: =UnitsTbls[[#This Row],[Monthly Rent Subsidy Amount ]]*UnitsTbls[[#This Row],[Subsidy Units ]] -> 0 | AA23: =CONCATENATE('Development Info'!$AG$3,'Unit Mix'!C23) -> 
A24: 1.15 | F24: 0 | G24: 0 | K24: =IFERROR(INDEX('Rent Limits'!$A$1:$O$1045,MATCH(AA24,'Rent Limits'!$A$1:$A$1045,0),MATCH(B24,'Rent Limits'!$A$1:$O$1,0)),0) -> 0 | V24: =(UnitsTbls[[#This Row],[Restricted Monthly Rent]]-UnitsTbls[[#This Row],[1Monthly Utility Allowance]])*UnitsTbls[[#This Row],[Total Restricted Units]] -> 0 | W24: =(UnitsTbls[[#This Row],[Proposed Monthly Rent]]-UnitsTbls[[#This Row],[1Monthly Utility Allowance]])*UnitsTbls[[#This Row],[Total Restricted Units]] -> 0 | X24: =UnitsTbls[[#This Row],[Total Unrestricted Units]]*UnitsTbls[[#This Row],[Unrestricted Monthly Rent]] -> 0 | Y24: =UnitsTbls[[#This Row],[Monthly Rent Subsidy Amount]]*UnitsTbls[[#This Row],[Subsidy Units]] -> 0 | Z24: =UnitsTbls[[#This Row],[Monthly Rent Subsidy Amount ]]*UnitsTbls[[#This Row],[Subsidy Units ]] -> 0 | AA24: =CONCATENATE('Development Info'!$AG$3,'Unit Mix'!C24) -> 
A25: 1.2 | F25: 0 | G25: 0 | K25: =IFERROR(INDEX('Rent Limits'!$A$1:$O$1045,MATCH(AA25,'Rent Limits'!$A$1:$A$1045,0),MATCH(B25,'Rent Limits'!$A$1:$O$1,0)),0) -> 0 | V25: =(UnitsTbls[[#This Row],[Restricted Monthly Rent]]-UnitsTbls[[#This Row],[1Monthly Utility Allowance]])*UnitsTbls[[#This Row],[Total Restricted Units]] -> 0 | W25: =(UnitsTbls[[#This Row],[Proposed Monthly Rent]]-UnitsTbls[[#This Row],[1Monthly Utility Allowance]])*UnitsTbls[[#This Row],[Total Restricted Units]] -> 0 | X25: =UnitsTbls[[#This Row],[Total Unrestricted Units]]*UnitsTbls[[#This Row],[Unrestricted Monthly Rent]] -> 0 | Y25: =UnitsTbls[[#This Row],[Monthly Rent Subsidy Amount]]*UnitsTbls[[#This Row],[Subsidy Units]] -> 0 | Z25: =UnitsTbls[[#This Row],[Monthly Rent Subsidy Amount ]]*UnitsTbls[[#This Row],[Subsidy Units ]] -> 0 | AA25: =CONCATENATE('Development Info'!$AG$3,'Unit Mix'!C25) -> 
F26: 0 | G26: 0 | K26: =IFERROR(INDEX('Rent Limits'!$A$1:$O$1045,MATCH(AA26,'Rent Limits'!$A$1:$A$1045,0),MATCH(B26,'Rent Limits'!$A$1:$O$1,0)),0) -> 0 | V26: =(UnitsTbls[[#This Row],[Restricted Monthly Rent]]-UnitsTbls[[#This Row],[1Monthly Utility Allowance]])*UnitsTbls[[#This Row],[Total Restricted Units]] -> 0 | W26: =(UnitsTbls[[#This Row],[Proposed Monthly Rent]]-UnitsTbls[[#This Row],[1Monthly Utility Allowance]])*UnitsTbls[[#This Row],[Total Restricted Units]] -> 0 | X26: =UnitsTbls[[#This Row],[Total Unrestricted Units]]*UnitsTbls[[#This Row],[Unrestricted Monthly Rent]] -> 0 | Y26: =UnitsTbls[[#This Row],[Monthly Rent Subsidy Amount]]*UnitsTbls[[#This Row],[Subsidy Units]] -> 0 | Z26: =UnitsTbls[[#This Row],[Monthly Rent Subsidy Amount ]]*UnitsTbls[[#This Row],[Subsidy Units ]] -> 0 | AA26: =CONCATENATE('Development Info'!$AG$3,'Unit Mix'!C26) -> 
F27: 0 | G27: 0 | K27: =IFERROR(INDEX('Rent Limits'!$A$1:$O$1045,MATCH(AA27,'Rent Limits'!$A$1:$A$1045,0),MATCH(B27,'Rent Limits'!$A$1:$O$1,0)),0) -> 0 | V27: =(UnitsTbls[[#This Row],[Restricted Monthly Rent]]-UnitsTbls[[#This Row],[1Monthly Utility Allowance]])*UnitsTbls[[#This Row],[Total Restricted Units]] -> 0 | W27: =(UnitsTbls[[#This Row],[Proposed Monthly Rent]]-UnitsTbls[[#This Row],[1Monthly Utility Allowance]])*UnitsTbls[[#This Row],[Total Restricted Units]] -> 0 | X27: =UnitsTbls[[#This Row],[Total Unrestricted Units]]*UnitsTbls[[#This Row],[Unrestricted Monthly Rent]] -> 0 | Y27: =UnitsTbls[[#This Row],[Monthly Rent Subsidy Amount]]*UnitsTbls[[#This Row],[Subsidy Units]] -> 0 | Z27: =UnitsTbls[[#This Row],[Monthly Rent Subsidy Amount ]]*UnitsTbls[[#This Row],[Subsidy Units ]] -> 0 | AA27: =CONCATENATE('Development Info'!$AG$3,'Unit Mix'!C27) -> 
F28: 0 | G28: 0 | K28: =IFERROR(INDEX('Rent Limits'!$A$1:$O$1045,MATCH(AA28,'Rent Limits'!$A$1:$A$1045,0),MATCH(B28,'Rent Limits'!$A$1:$O$1,0)),0) -> 0 | V28: =(UnitsTbls[[#This Row],[Restricted Monthly Rent]]-UnitsTbls[[#This Row],[1Monthly Utility Allowance]])*UnitsTbls[[#This Row],[Total Restricted Units]] -> 0 | W28: =(UnitsTbls[[#This Row],[Proposed Monthly Rent]]-UnitsTbls[[#This Row],[1Monthly Utility Allowance]])*UnitsTbls[[#This Row],[Total Restricted Units]] -> 0 | X28: =UnitsTbls[[#This Row],[Total Unrestricted Units]]*UnitsTbls[[#This Row],[Unrestricted Monthly Rent]] -> 0 | Y28: =UnitsTbls[[#This Row],[Monthly Rent Subsidy Amount]]*UnitsTbls[[#This Row],[Subsidy Units]] -> 0 | Z28: =UnitsTbls[[#This Row],[Monthly Rent Subsidy Amount ]]*UnitsTbls[[#This Row],[Subsidy Units ]] -> 0 | AA28: =CONCATENATE('Development Info'!$AG$3,'Unit Mix'!C28) -> 
F29: 0 | G29: 0 | K29: =IFERROR(INDEX('Rent Limits'!$A$1:$O$1045,MATCH(AA29,'Rent Limits'!$A$1:$A$1045,0),MATCH(B29,'Rent Limits'!$A$1:$O$1,0)),0) -> 0 | V29: =(UnitsTbls[[#This Row],[Restricted Monthly Rent]]-UnitsTbls[[#This Row],[1Monthly Utility Allowance]])*UnitsTbls[[#This Row],[Total Restricted Units]] -> 0 | W29: =(UnitsTbls[[#This Row],[Proposed Monthly Rent]]-UnitsTbls[[#This Row],[1Monthly Utility Allowance]])*UnitsTbls[[#This Row],[Total Restricted Units]] -> 0 | X29: =UnitsTbls[[#This Row],[Total Unrestricted Units]]*UnitsTbls[[#This Row],[Unrestricted Monthly Rent]] -> 0 | Y29: =UnitsTbls[[#This Row],[Monthly Rent Subsidy Amount]]*UnitsTbls[[#This Row],[Subsidy Units]] -> 0 | Z29: =UnitsTbls[[#This Row],[Monthly Rent Subsidy Amount ]]*UnitsTbls[[#This Row],[Subsidy Units ]] -> 0 | AA29: =CONCATENATE('Development Info'!$AG$3,'Unit Mix'!C29) -> 
D30: =SUM(D4:D29) -> 0 | E30: 0 | F30: 0 | G30: 0 | H30: 0 | I30: 0 | J30: 0 | K30: 0 | L30: 0 | M30: 0 | P30: =SUM(P4:P29) -> 0 | R30: =SUM(R4:R29) -> 0 | V30: =SUM(V4:V29) -> 0 | W30: =SUM(W4:W29) -> 0 | X30: =SUM(X4:X29) -> 0 | Y30: =SUM(Y4:Y29) -> 0 | Z30: =SUM(Z4:Z29) -> 0
B31: File: | D31: Utility Allowance | F31: 1Provide document showing current utility allowance chart, with relevant components circled. | L31: Uploaded to HCD? | P31: =12*V30 -> 0
P32: =12*W30 -> 0
P33: =12*X30 -> 0
B35: End of Document

Sheet Dev Sources (hidden)
B2: Sources of Funds
B3: Construction Period Sources of Funds
B4: Funding Committed by Application Due Date? | D4: Source Name (listed in order of lien priority) | G4: Source Type | H4: Local Support | I4: Lien No. | J4: Residential Amount | K4: Commercial Amount | L4: Total Amount | M4: Interest Rate | N4: Required Payment | O4: Loan Term (months) | P4: *Details of Deferred Costs
P5: Amount | Q5: Description
B6: 1 | C6: Yes | D6: HCD PLHA Funds | G6: State-HCD | H6: No | L6: =J6+K6 -> 0
B7: 2 | L7: =J7+K7 -> 0
B8: 3 | L8: 0
B9: 4 | L9: 0
B10: 5 | L10: 0
B11: 6 | L11: 0
B12: 7 | L12: 0
B13: 8 | L13: 0
B14: 9 | L14: 0
B15: 10 | L15: 0
B16: 11 | L16: 0
B17: 12 | L17: 0
B18: 13 | L18: 0
B19: 14 | L19: 0
B20: 15 | L20: 0
B21: 16 | L21: 0
B22: 17 | L22: 0
B23: 18 | L23: 0
B24: 19 | L24: 0
B25: 20 | D25: Deferred costs (detail at right) | J25: =P27 -> 0 | L25: 0
B26: 21 | D26: Equity Investor | L26: 0
D27: =SUMPRODUCT(($C$6:$C$26="Yes")*($L$6:$L$26)) -> 0 | E27: <Total funds committed | G27: =IF($L$27=0,0,$D$27/($L$27-$J$25)) -> 0 | H27: <% Funds committed | J27: =SUM(J6:J26) -> 0 | K27: =SUM(K6:K25) -> 0 | L27: =SUM(L6:L26) -> 0 | P27: =SUM(P6:P25) -> 0
B28: Permanent Sources of Funds
B29: Funding Committed by Application Due Date? | D29: Source Name (listed in order of lien priority) | G29: Source Type | H29: Local Support | I29: Lien No. | J29: Residential Amount | K29: Commercial Amount | L29: Total Amount | M29: Interest Rate | O29: Repayment Terms | Q29: Required Residential Debt Service | R29: Required Commercial Debt Service
M30: Type | N30: Rate | O30: Type | P30: Due in (yrs)
B31: 1 | C31: Yes | D31: HCD PHLA Funds | G31: State-HCD | H31: No | L31: =J31+K31 -> 0
B32: 2 | L32: =J32+K32 -> 0
B33: 3 | L33: 0
B34: 4 | L34: 0
B35: 5 | L35: 0
B36: 6 | L36: 0
B37: 7 | L37: 0
B38: 8 | L38: 0
B39: 9 | L39: 0
B40: 10 | L40: 0
B41: 12 | L41: 0
B42: 12 | L42: 0
B43: 13 | L43: 0
B44: 14 | D44: Private mortgage financing | L44: 0
B45: 15 | D45: Deferred costs | L45: 0
B46: 16 | D46: Equity Investor | L46: 0 | M46: Project Tax Credit Type:
G47: Totals | J47: =SUM(J31:J46) -> 0 | K47: =SUM(K31:K46) -> 0 | L47: =SUM(L31:L46) -> 0 | M47: Totals | Q47: =SUM(Q31:Q45) -> 0 | R47: =SUM(R31:R46) -> 0
D48: =SUMPRODUCT(($C$31:$C$46="Yes")*($L$31:$L$46)) -> 0 | E48: <Total funds committed | G48: =IF($L$47=0,0,$D$48/$L$47) -> 0 | H48: <% Funds committed
B49: File: | C49: Perm EFC #1, #2, etc | E49: Commitment letter or other evidence documenting permanent financing commitments (see Guidelines for explanation of funding commitments) | P49: Uploaded to HCD?
B50: Applicant comments: Include a description of ballon payments and unusual or extraordinary circumstances that have resulted in higher than expected project costs and provide a justification as to why these costs are reasonable.
B53: End of Document

Sheet Dev Budget (hidden)
B2: Residential Permanent Sources/Uses of Funds | T2: Commercial Sources | X2: Tax Credit Basis
B3: USES OF FUNDS | C3: ='Dev Sources'!$D$31 -> HCD PHLA Funds | D3: ='Dev Sources'!$D$32 -> 0 | E3: ='Dev Sources'!$D$33 -> 0 | F3: ='Dev Sources'!$D$34 -> 0 | G3: ='Dev Sources'!$D$35 -> 0 | H3: ='Dev Sources'!$D$36 -> 0 | I3: ='Dev Sources'!$D$37 -> 0 | J3: ='Dev Sources'!$D$38 -> 0 | K3: ='Dev Sources'!$D$39 -> 0 | L3: ='Dev Sources'!$D$40 -> 0 | M3: ='Dev Sources'!$D$41 -> 0 | N3: ='Dev Sources'!$D$42 -> 0 | O3: ='Dev Sources'!$D$43 -> 0 | P3: ='Dev Sources'!$D$44 -> Private mortgage financing | Q3: ='Dev Sources'!$D$45 -> Deferred costs | R3: ='Dev Sources'!$D$46 -> Equity Investor | S3: Total Residential Sources | T3: Total Commercial Sources | U3: Source Name (Specify) | V3: Source Name (Specify) | W3: Total Project Costs | X3: =IF(Taxcredit="","30% PVC for New Const/Rehab",IF(Taxcredit=0.09,"70% PVC for New Const/Rehab",IF(Taxcredit=0.04,"30% PVC for New Const/Rehab","N/A - No tax credits per Dev Sources"))) -> 30% PVC for New Const/Rehab | Y3: =IF(Taxcredit="","30% PVC for Acquisition",IF(Taxcredit=0.09,"30% PVC for Acquisition",IF(Taxcredit=0.04,"30% PVC for Acquisition","N/A - No tax credits per Dev Sources"))) -> 30% PVC for Acquisition
B5: Project Development Costs
B6: LAND COST/ACQUISITION
B7: Land Cost or Value | S7: =SUM(C7:R7) -> 0 | T7: =U7+V7 -> 0 | W7: =SUM(S7,T7) -> 0
B8: Demolition | S8: =SUM(C8:R8) -> 0 | T8: =U8+V8 -> 0 | W8: =SUM(S8,T8) -> 0
B9: Legal | S9: =SUM(C9:R9) -> 0 | T9: 0 | W9: 0
B10: Land Lease Rent Prepayment | S10: =SUM(C10:R10) -> 0 | T10: 0 | W10: 0
B11: Total Land Cost or Value | C11: =SUM(C7:C10) -> 0 | D11: 0 | E11: 0 | F11: 0 | G11: 0 | H11: 0 | I11: 0 | J11: 0 | K11: 0 | L11: 0 | M11: 0 | N11: 0 | O11: 0 | P11: 0 | Q11: 0 | R11: 0 | S11: 0 | T11: 0 | U11: =SUM(U7:U10) -> 0 | V11: 0 | W11: 0
B12: Existing Improvements Cost or Value | S12: =SUM(C12:R12) -> 0 | T12: 0 | W12: 0
B13: Off-Site Improvements | S13: =SUM(C13:R13) -> 0 | T13: 0 | W13: 0
B14: Total Acquisition Cost | C14: =SUM(C12:C13) -> 0 | D14: 0 | E14: 0 | F14: 0 | G14: 0 | H14: 0 | I14: 0 | J14: 0 | K14: 0 | L14: 0 | M14: 0 | N14: 0 | O14: 0 | P14: 0 | Q14: 0 | R14: 0 | S14: =SUM(S12:S13) -> 0 | T14: =U14+V14 -> 0 | U14: =SUM(U12:U13) -> 0 | V14: 0 | W14: =SUM(W12:W13) -> 0 | Y14: =SUM(Y12:Y13) -> 0
B15: Total Land Cost / Acquisition Cost | C15: =SUM(C11+C14) -> 0 | D15: =SUM(D11+D14) -> 0 | E15: 0 | F15: 0 | G15: 0 | H15: 0 | I15: 0 | J15: 0 | K15: 0 | L15: 0 | M15: 0 | N15: 0 | O15: 0 | P15: 0 | Q15: 0 | R15: 0 | S15: 0 | T15: 0 | U15: =SUM(U11+U14) -> 0 | V15: 0 | W15: =SUM(W11+W14) -> 0
B16: Predevelopment Interest/Holding Cost | S16: =SUM(C16:R16) -> 0 | T16: 0 | W16: =SUM(S16,T16) -> 0
B17: Assumed, Accrued Interest on Existing Debt (Rehab/Acq) | S17: =SUM(C17:R17) -> 0 | T17: 0 | W17: 0
B18: Excess Purchase Price Over Appraisal | S18: =SUM(C18:R18) -> 0 | T18: 0 | W18: 0
B19: REHABILITATION
B20: Site Work | S20: =SUM(C20:R20) -> 0 | T20: =U20+V20 -> 0 | W20: 0
B21: Structures | S21: 0 | T21: 0 | W21: 0
B22: General Requirements | S22: 0 | T22: 0 | W22: 0
B23: Contractor Overhead | S23: 0 | T23: 0 | W23: 0
B24: Contractor Profit | S24: 0 | T24: 0 | W24: 0
B25: Prevailing Wages | S25: 0 | T25: 0 | W25: 0
B26: General Liability Insurance | S26: 0 | T26: 0 | W26: 0
B27: Urban Greening | S27: 0 | T27: 0 | W27: 0
B28: Other Rehabilitation: (Specify) | S28: 0 | T28: 0 | W28: 0
B29: Other Rehabilitation: (Specify) | S29: 0 | T29: 0 | W29: 0
B30: Other Rehabilitation: (Specify) | S30: 0 | T30: 0 | W30: 0
B31: Total Rehabilitation Costs | C31: =SUM(C20:C30) -> 0 | D31: =SUM(D20:D30) -> 0 | E31: 0 | F31: 0 | G31: 0 | H31: 0 | I31: 0 | J31: 0 | K31: 0 | L31: 0 | M31: 0 | N31: 0 | O31: 0 | P31: 0 | Q31: 0 | R31: 0 | S31: 0 | T31: =SUM(T20:T30) -> 0 | U31: 0 | V31: 0 | W31: 0 | X31: =SUM(X20:X30) -> 0 | Y31: =SUM(Y20:Y30) -> 0
B32: Total Relocation Expenses | S32: =SUM(C32:R32) -> 0 | T32: 0 | W32: 0
B33: NEW CONSTRUCTION
B34: Site Work | S34: =SUM(C34:R34) -> 0 | T34: =U34+V34 -> 0 | W34: 0
B35: Structures | S35: =SUM(C35:R35) -> 0 | T35: 0 | W35: 0
B36: General Requirements | S36: 0 | T36: 0 | W36: 0
B37: Contractor Overhead | S37: 0 | T37: 0 | W37: 0
B38: Contractor Profit | S38: 0 | T38: 0 | W38: 0
B39: Prevailing Wages | S39: 0 | T39: 0 | W39: 0
B40: General Liability Insurance | S40: 0 | T40: 0 | W40: 0
B41: Urban Greening | S41: 0 | T41: 0 | W41: 0
B42: Other New Construction: (Specify) | S42: 0 | T42: 0 | W42: 0
B43: Other New Construction: (Specify) | S43: 0 | T43: 0 | W43: 0
B44: Other New Construction: (Specify) | S44: 0 | T44: 0 | W44: 0
B45: Total New Construction Costs | C45: =SUM(C34:C44) -> 0 | D45: =SUM(D34:D44) -> 0 | E45: =SUM(E34:E44) -> 0 | F45: 0 | G45: 0 | H45: 0 | I45: 0 | J45: 0 | K45: 0 | L45: 0 | M45: 0 | N45: 0 | O45: 0 | P45: 0 | Q45: 0 | R45: =SUM(R34:R44) -> 0 | S45: 0 | T45: 0 | U45: =SUM(U34:U44) -> 0 | V45: 0 | W45: 0 | X45: =SUM(X34:X44) -> 0 | Y45: =SUM(Y34:Y44) -> 0
B46: ARCHITECTURAL FEES
B47: Design | S47: =SUM(C47:R47) -> 0 | T47: =U47+V47 -> 0 | W47: =SUM(S47,T47) -> 0
B48: Supervision | S48: =SUM(C48:R48) -> 0 | T48: 0 | W48: 0
B49: Total Architectural Costs | C49: =SUM(C47:C48) -> 0 | D49: =SUM(D47:D48) -> 0 | E49: 0 | F49: 0 | G49: 0 | H49: 0 | I49: 0 | J49: 0 | K49: 0 | L49: 0 | M49: 0 | N49: 0 | O49: 0 | P49: 0 | Q49: 0 | R49: =SUM(R47:R48) -> 0 | S49: =SUM(S47:S48) -> 0 | T49: =U49+V49 -> 0 | U49: =SUM(U47:U48) -> 0 | V49: =SUM(V47:V48) -> 0 | W49: =SUM(W47:W48) -> 0 | X49: =SUM(X47:X48) -> 0 | Y49: 0
B50: Total Survey & Engineering | S50: =SUM(C50:R50) -> 0 | T50: 0 | W50: 0
B51: CONSTRUCTION INTEREST & FEES
B52: Construction Loan Interest | S52: =SUM(C52:R52) -> 0 | T52: =U52+V52 -> 0 | W52: 0
B53: Origination Fee | S53: 0 | T53: 0 | W53: 0
B54: Credit Enhancement/Application Fee | S54: 0 | T54: 0 | W54: 0
B55: Bond Premium | S55: 0 | T55: 0 | W55: 0
B56: Cost of Issuance | S56: 0 | T56: 0 | W56: 0
B57: Title & Recording | S57: 0 | T57: 0 | W57: 0
B58: Taxes | S58: 0 | T58: 0 | W58: 0
B59: Insurance | S59: 0 | T59: 0 | W59: 0
B60: Employment Reporting | S60: 0 | T60: 0 | W60: 0
B61: Other Construction Int. & Fees: (Specify) | S61: 0 | T61: 0 | W61: 0
B62: Other Construction Int. & Fees: (Specify) | S62: 0 | T62: 0 | W62: 0
B63: Other Construction Int. & Fees: (Specify) | S63: 0 | T63: 0 | W63: 0
B64: Other Construction Int. & Fees: (Specify) | S64: 0 | T64: 0 | W64: 0
B65: Total Construction Interest & Fees | C65: =SUM(C52:C64) -> 0 | D65: =SUM(D52:D64) -> 0 | E65: =SUM(E52:E64) -> 0 | F65: 0 | G65: 0 | H65: 0 | I65: 0 | J65: 0 | K65: 0 | L65: 0 | M65: 0 | N65: 0 | O65: 0 | P65: 0 | Q65: 0 | R65: 0 | S65: 0 | T65: 0 | U65: =SUM(U52:U64) -> 0 | V65: =SUM(V52:V64) -> 0 | W65: =SUM(W52:W64) -> 0 | X65: =SUM(X52:X64) -> 0 | Y65: =SUM(Y52:Y64) -> 0
B66: PERMANENT FINANCING
B67: Loan Origination Fee | S67: =SUM(C67:R67) -> 0 | T67: =U67+V67 -> 0 | W67: =SUM(S67,T67) -> 0
B68: Credit Enhancement/Application Fee | S68: 0 | T68: 0 | W68: 0
B69: Title & Recording | S69: 0 | T69: 0 | W69: 0
B70: Taxes | S70: 0 | T70: 0 | W70: 0
B71: Insurance | S71: 0 | T71: 0 | W71: 0
B72: Other Perm. Financing Costs: (Specify) | S72: 0 | T72: 0 | W72: 0
B73: Other Perm. Financing Costs: (Specify) | S73: 0 | T73: 0 | W73: 0
B74: Other Perm. Financing Costs: (Specify) | S74: 0 | T74: 0 | W74: 0
B75: Other Perm. Financing Costs: (Specify) | S75: 0 | T75: 0 | W75: 0
B76: Total Permanent Financing Costs | C76: =SUM(C67:C75) -> 0 | D76: 0 | E76: 0 | F76: 0 | G76: 0 | H76: 0 | I76: 0 | J76: 0 | K76: 0 | L76: 0 | M76: 0 | N76: 0 | O76: 0 | P76: 0 | Q76: 0 | R76: 0 | S76: 0 | T76: 0 | U76: =SUM(U67:U75) -> 0 | V76: 0 | W76: =SUM(W67:W75) -> 0
B77: Subtotals Forward | C77: =SUM(C11+C14+C16+C17+C18+C31+C32+C45+C49+C50+C65+C76) -> 0 | D77: =SUM(D11+D14+D16+D17+D18+D31+D32+D45+D49+D50+D65+D76) -> 0 | E77: 0 | F77: 0 | G77: 0 | H77: 0 | I77: 0 | J77: 0 | K77: 0 | L77: 0 | M77: 0 | N77: 0 | O77: 0 | P77: 0 | Q77: 0 | R77: 0 | S77: 0 | T77: =SUM(T11+T14+T16+T17+T18+T32+T45+T49+T50+T65+T76) -> 0 | U77: 0 | V77: 0 | W77: =SUM(W11+W14+W16+W17+W18+W32+W45+W49+W50+W65+W76) -> 0 | X77: =SUM(X13+X16+X17+X18+X31+X32+X45+X49+X50+X65) -> 0 | Y77: =SUM(Y14+Y16+Y17+Y18+Y31+Y32+Y45+Y49+Y50+Y65) -> 0
B78: LEGAL FEES
B79: Legal Paid by Applicant | S79: =SUM(C79:R79) -> 0 | T79: 0 | W79: =SUM(S79,T79) -> 0
B80: Other Attorney Costs: (Specify) | S80: =SUM(C80:R80) -> 0 | T80: 0 | W80: 0
B81: Other Attorney Costs: (Specify) | S81: =SUM(C81:R81) -> 0 | T81: 0 | W81: 0
B82: Other Attorney Costs: (Specify) | S82: =SUM(C82:R82) -> 0 | T82: 0 | W82: 0
B83: Total Attorney Costs | C83: =SUM(C78:C82) -> 0 | D83: =SUM(D78:D82) -> 0 | E83: =SUM(E78:E82) -> 0 | F83: 0 | G83: 0 | H83: 0 | I83: 0 | J83: 0 | K83: 0 | L83: 0 | M83: 0 | N83: 0 | O83: 0 | P83: 0 | Q83: 0 | R83: 0 | S83: 0 | T83: 0 | U83: 0 | V83: 0 | W83: 0 | X83: =SUM(X79:X82) -> 0 | Y83: 0
B84: RESERVES
B85: Operating Reserve | S85: =SUM(C85:R85) -> 0 | T85: =U85+V85 -> 0 | W85: =SUM(S85,T85) -> 0
B86: Replacement Reserve | S86: 0 | T86: 0 | W86: 0
B87: Transition Reserve | S87: 0 | T87: 0 | W87: 0
B88: Rent Reserve | S88: 0 | T88: 0 | W88: 0
B89: Other Reserve Costs: (Specify) | S89: 0 | T89: 0 | W89: 0
B90: Other Reserve Costs: (Specify) | S90: 0 | T90: 0 | W90: 0
B91: Other Reserve Costs: (Specify) | S91: 0 | T91: 0 | W91: 0
B92: Total Reserve Costs | C92: =SUM(C85:C91) -> 0 | D92: 0 | E92: 0 | F92: 0 | G92: 0 | H92: 0 | I92: 0 | J92: 0 | K92: 0 | L92: 0 | M92: 0 | N92: 0 | O92: 0 | P92: 0 | Q92: 0 | R92: 0 | S92: 0 | T92: 0 | U92: =SUM(U85:U91) -> 0 | V92: =SUM(V85:V91) -> 0 | W92: 0
B93: CONTINGENCY COSTS
B94: Construction Hard Cost Contingency | S94: =SUM(C94:R94) -> 0 | T94: =U94+V94 -> 0 | W94: =SUM(S94,T94) -> 0
B95: Soft Cost Contingency | S95: =SUM(C95:R95) -> 0 | T95: 0 | W95: 0
B96: Total Contingency Costs | C96: =SUM(C94:C95) -> 0 | D96: 0 | E96: 0 | F96: 0 | G96: 0 | H96: 0 | I96: 0 | J96: 0 | K96: 0 | L96: 0 | M96: 0 | N96: 0 | O96: 0 | P96: 0 | Q96: 0 | R96: 0 | S96: 0 | T96: 0 | U96: =SUM(U94:U95) -> 0 | V96: =SUM(V94:V95) -> 0 | W96: =SUM(W94:W95) -> 0 | X96: =SUM(X94:X95) -> 0 | Y96: =SUM(Y94:Y95) -> 0
B97: OTHER PROJECT COSTS
B98: TCAC App/Allocation/Monitoring Fees | S98: =SUM(C98:R98) -> 0 | T98: =U98+V98 -> 0 | W98: =SUM(S98,T98) -> 0
B99: Environmental Audit | S99: 0 | T99: 0 | W99: 0
B100: Local Development Impact Fees | S100: 0 | T100: 0 | W100: 0
B101: Permit Processing Fees | S101: 0 | T101: 0 | W101: 0
B102: Capital Fees | S102: 0 | T102: 0 | W102: 0
B103: Marketing | S103: 0 | T103: 0 | W103: 0
B104: Furnishings | S104: 0 | T104: 0 | W104: 0
B105: Market Study | S105: 0 | T105: 0 | W105: 0
B106: Accounting/Reimbursable | S106: 0 | T106: 0 | W106: 0
B107: Appraisal Costs | S107: 0 | T107: 0 | W107: 0
B108: Other Costs: (Specify) | S108: 0 | T108: 0 | W108: 0
B109: Other Costs: (Specify) | S109: 0 | T109: 0 | W109: 0
B110: Other Costs: (Specify) | S110: 0 | T110: 0 | W110: 0
B111: Other Costs: (Specify) | S111: 0 | T111: 0 | W111: 0
B112: Other Costs: (Specify) | S112: 0 | T112: 0 | W112: 0
B113: Other Costs: (Specify) | S113: 0 | T113: 0 | W113: 0
B114: Total Other Costs | C114: =SUM(C98:C113) -> 0 | D114: =SUM(D98:D113) -> 0 | E114: =SUM(E98:E113) -> 0 | F114: 0 | G114: 0 | H114: 0 | I114: 0 | J114: 0 | K114: 0 | L114: 0 | M114: 0 | N114: 0 | O114: 0 | P114: 0 | Q114: 0 | R114: 0 | S114: 0 | T114: 0 | U114: =SUM(U98:U113) -> 0 | V114: 0 | W114: =SUM(W98:W113) -> 0 | X114: =SUM(X99:X102,X104:X113) -> 0 | Y114: =SUM(Y99:Y102,Y104:Y113) -> 0
B115: SUBTOTAL PROJECT COST | C115: =SUM(C77+C83+C92+C96+C114) -> 0 | D115: =SUM(D77+D83+D92+D96+D114) -> 0 | E115: =SUM(E77+E83+E92+E96+E114) -> 0 | F115: 0 | G115: 0 | H115: 0 | I115: 0 | J115: 0 | K115: 0 | L115: 0 | M115: 0 | N115: 0 | O115: 0 | P115: 0 | Q115: 0 | R115: 0 | S115: 0 | T115: =U115+V115 -> 0 | U115: =SUM(U77+U83+U92+U96+U114) -> 0 | V115: =SUM(V77+V83+V92+V96+V114) -> 0 | W115: =SUM(W77+W83+W92+W96+W114) -> 0 | X115: =SUM(+X77+X83+X96+X114) -> 0 | Y115: =SUM(Y77+Y83+Y96+Y114) -> 0
B116: DEVELOPER COSTS
B117: Developer Overhead/Profit | S117: =SUM(C117:R117) -> 0 | T117: =U117+V117 -> 0 | W117: =SUM(S117,T117) -> 0
B118: Consultant/Processing Agent | S118: 0 | T118: 0 | W118: 0
B119: Project Administration | S119: 0 | T119: 0 | W119: 0
B120: Broker Fees Paid to a Related Party | S120: 0 | T120: 0 | W120: 0
B121: Construction Oversight by Developer | S121: 0 | T121: 0 | W121: 0
B122: Other Developer Costs: (Specify) | S122: 0 | T122: 0 | W122: 0
B123: Total Developer Costs | C123: =SUM(C117:C122) -> 0 | D123: 0 | E123: 0 | F123: 0 | G123: 0 | H123: 0 | I123: 0 | J123: 0 | K123: 0 | L123: 0 | M123: 0 | N123: 0 | O123: 0 | P123: 0 | Q123: 0 | R123: 0 | S123: 0 | T123: =U123+V123 -> 0 | U123: =SUM(U117:U122) -> 0 | V123: 0 | W123: =SUM(W117:W122) -> 0 | X123: =SUM(X117:X122) -> 0 | Y123: =SUM(Y117:Y122) -> 0
B124: Total Project Costs | C124: =SUM(C115+C123) -> 0 | D124: =SUM(D115+D123) -> 0 | E124: 0 | F124: 0 | G124: 0 | H124: 0 | I124: 0 | J124: 0 | K124: 0 | L124: 0 | M124: 0 | N124: 0 | O124: 0 | P124: 0 | Q124: 0 | R124: 0 | S124: 0 | T124: =SUM(T115+T123) -> 0 | U124: 0 | V124: 0 | W124: =SUM(W115+W123) -> 0 | X124: =X115+X123 -> 0 | Y124: =Y115+Y123 -> 0
X125: =X124 -> 0 | Y125: =Y124 -> 0
W126: Total Eligible Basis: | Y126: =SUM(X125:Y125) -> 0
B128: End of Document

Sheet Operating (hidden)
B2: =IF('Development Info'!G3="","",'Development Info'!G3) -> 
B3: Year 1 Annual Income and Expenses
B5: Employee Information | G5: Comments
B6: No. | C6: FTE | D6: Employee Job Title | E6: Salary/Wages | F6: Value of Free Rent
D7: On-Site Manager(s) | E7: 0 | F7: 0
D8: On-Site Assistant Manager(s) | E8: 0 | F8: 0
D9: Supportive Services Staff Supervisor(s) | E9: 0
D10: Supportive Services Coordinator, On-Site | E10: 0
D11: Other Supportive Services Staff (inc. Case Manager) | E11: 0
D12: On-Site Maintenance Employee(s) | E12: 0 | F12: 0
D13: On-Site Leasing Agent/Administrative Employee(s) | E13: 0 | F13: 0
D14: On-Site Security Employee(s) | E14: 0 | F14: 0
E15: 0 | F15: 0
E16: 0 | F16: 0
D17: Total Salaries and Value of Free Rent Units | E17: =SUM(E7:E16) -> 0 | F17: =SUM(F7:F16) -> 0
B18: 6711 | D18: Payroll Taxes | E18: 0 | F18: Show free rent as an expense?
B19: 6722 | D19: Workers Compensation | E19: 0 | I19: Count free rent as an
B20: 6723 | D20: Employee Benefits | E20: 0 | I20: expense?
D21: Employee(s) Payroll Taxes, Workers Comp. & Benefits | E21: =SUM(E18:E20) -> 0 | I21: =IF(F20="Yes",1,0) -> 0
D22: Total Employee(s) Expenses | E22: =E21+E17 -> 0
B25: Employee Units
B26: Income Limit | D26: Job Title(s) of Employee(s) Living On-Site | E26: Unit Type (No. of bdrms.) | F26: Square Footage | H26: Income Limit | I26: Job Title(s) of Employee(s) Living On-Site
E27: 0 | F27: 0 | H27: 0.6 | I27: On-Site Manager(s)
E28: 0 | F28: 0 | H28: 0.55 | I28: On-Site Assistant Manager(s)
E29: 0 | F29: 0 | H29: 0.5 | I29: On-Site Maintenance Employee(s)
E30: Total Square Footage | F30: =SUM(F27:F29) -> 0 | H30: None | I30: On-Site Leasing Agent/Administrative Employee(s)
B31: Year 1 Annual Operating Budget | H31: Other | I31: On-Site Security Employee(s)
B32: Acct. No. | D32: Revenue - Income | E32: Residential | F32: Commercial | G32: Comments | I32: Services Coordinator
B33: 5120/5140 | D33: Rent Revenue - Gross Potential | F33: 0
D34: Restricted Unit Rents | E34: ='Cash Flow'!E6 -> 0
D35: Unrestricted Unit Rents | E35: ='Cash Flow'!E7 -> 0
B36: 5121 | D36: Tenant Assistance Payments
D37: ='Unit Mix'!O2 -> Subsidy Program Name (Specify) | E37: ='Unit Mix'!Y30*12 -> 0
D38: ='Unit Mix'!Q2 -> Subsidy Program Name (Specify) | E38: ='Unit Mix'!Z30*12 -> 0
D39: Operating Subsidies | E39: 0
D40: Other: (specify) | E40: 0 | F40: 0
B41: 5910 | D41: Laundry and Vending Revenue | E41: 0
B42: 5170 | D42: Garage and Parking Spaces | E42: 0 | F42: 0
B43: 5990 | D43: Miscellaneous Rent Revenue | E43: 0 | F43: 0
D44: Gross Potential Income (GPI) | E44: =SUM(E33:E43) -> 0 | F44: =SUM(F33:F43) -> 0
D46: Vacancy Rate: Restricted Units | E46: 0.05
D47: Vacancy Rate: Unrestricted Units | E47: 0.05
D48: Vacancy Rate: Tenant Assistance Payments | E48: 0.05
D49: ="Vacancy Rate: " & D40 -> Vacancy Rate: Other: (specify) | E49: 0.05
D50: Vacancy Rate: Laundry & Vending & Other Income | E50: 0.05
D51: Vacancy Rate: Commercial Income | F51: 0.5
B52: 5220/5240 | D52: Vacancy Loss(es) | E52: =(E34*E46)+(E35*E47)+((E37+E38)*E48)+(E40*E49)+((E41+E42+E43)*E50) -> 0 | F52: =+F44*F51 -> 0
D53: Effective Gross Income (EGI) | E53: =+E44-E52 -> 0 | F53: =+F44-F52 -> 0
B54: Acct. No. | D54: Expenses | E54: Residential | F54: Commercial | G54: Comments
D56: Administrative Expenses: 6200/6300
B57: 6203 | D57: Conventions and Meetings | E57: 0 | F57: 0
B58: 6210 | D58: Advertising and Marketing | E58: 0 | F58: 0
B59: 6250 | D59: Other Renting Expenses | E59: 0 | F59: 0
B60: 6310 | D60: Office/Administrative Salaries -- from above | E60: =E13 -> 0 | F60: 0
B61: 6311 | D61: Office Expenses | E61: 0 | F61: 0
B62: 6312 | D62: Office or Model Apartment Rent | E62: 0 | F62: 0
B63: 6320 | D63: Management Fee | E63: 0 | F63: 0
B64: 6330 | D64: Site/Resident Manager(s) Salaries -- from above | E64: =E7+E8 -> 0 | F64: 0
B65: 6331 | D65: Administrative Free Rent Unit -- from above | E65: =IF(I21=1,F7+F8+F13,0) -> 0 | F65: 0
B66: 6340 | D66: Legal Expense -- Project | E66: 0 | F66: 0
B67: 6350 | D67: Audit Expense | E67: 0 | F67: 0
B68: 6351 | D68: Bookkeeping Fees/Accounting Services | E68: 0 | F68: 0
B69: 6390 | D69: Miscellaneous Administrative Expenses | E69: 0 | F69: 0
B70: 6263T | D70: Total Administrative Expenses | E70: =SUM(E57:E69) -> 0 | F70: =SUM(F57:F69) -> 0
B71: Acct. No. | D71: Expenses | E71: Residential | F71: Commercial | G71: Comments
D72: Utilities Expenses: 6400
B73: 6450 | D73: Electricity | E73: 0 | F73: 0
B74: 6451 | D74: Water | E74: 0 | F74: 0
B75: 6452 | D75: Gas | E75: 0 | F75: 0
B76: 6453 | D76: Sewer | E76: 0 | F76: 0
D77: Other Utilities: (specify) | E77: 0 | F77: 0
B78: 6400T | D78: Total Utilities Expenses | E78: =SUM(E73:E77) -> 0 | F78: =SUM(F73:F77) -> 0
D79: Operating and Maintenane Expenses: 6500 | G79: Comments
B80: 6510 | D80: Payroll -- from above | E80: =E12+E14+E15+E16 -> 0 | F80: 0
B81: 6515 | D81: Supplies | E81: 0 | F81: 0
B82: 6520 | D82: Contracts | E82: 0 | F82: 0
B83: 6521 | D83: Operating & Maintenance Free Rent Unit -- from above | E83: =IF(I21=1,F12+F15+F16,0) -> 0 | F83: 0
B84: 6525 | D84: Garbage and Trash Removal | E84: 0 | F84: 0
B85: 6530 | D85: Security Contract | E85: 0 | F85: 0
B86: 6531 | D86: Security Free Rent Unit -- from above | E86: =IF(I21=1,F14,0) -> 0 | F86: 0
B87: 6546 | D87: Heating/Cooling Repairs and Maintenance | E87: 0 | F87: 0
B88: 6548 | D88: Snow Removal | E88: 0 | F88: 0
B89: 6570 | D89: Vehicle & Maintenance Equipment Operation/Reports | E89: 0 | F89: 0
B90: 6590 | D90: Miscellaneous Operating and Maintenance Expenses | E90: 0 | F90: 0
B91: 6500T | D91: Total Operating & Maintenance Expenses | E91: =SUM(E80:E90) -> 0 | F91: =SUM(F80:F90) -> 0
D92: Taxes and Insurance: 6700 | G92: Comments
B93: 6710 | D93: Real Estate Taxes | E93: 0 | F93: 0
B94: 6711 | D94: Payroll Taxes (Project's Share) -- from above | E94: =E18 -> 0 | F94: 0
B95: 6720 | D95: Property and Liability Insurance (Hazard) | E95: 0 | F95: 0
B96: 6729 | D96: Other Insurance (e.g. Earthquake) | E96: 0 | F96: 0
B97: 6721 | D97: Fidelity Bond Insurance | E97: 0 | F97: 0
B98: 6722 | D98: Worker's Compensation -- from above | E98: =E19 -> 0 | F98: 0
B99: 6723 | D99: Health Insurance/Other Employee Benefits--from above | E99: =E20 -> 0 | F99: 0
B100: 6790 | D100: Miscellaneous Taxes, Licenses, Permits & Insurance | E100: 0 | F100: 0
B101: 6700T | D101: Total Taxes and Insurance | E101: =SUM(E93:E100) -> 0 | F101: =SUM(F93:F100) -> 0
D102: Supportive Services Costs: 6900 | G102: Comments | H102: Max allowed
B103: 6990 | D103: Staff Supervisor(s) Salaries - from above | E103: =E9 -> 0 | F103: 0 | H103: =(E104+E105)*0.1 -> 0
B104: 6990 | D104: Services Coordinator Salaries, On-Site - from above | E104: =E10 -> 0 | F104: 0
B105: 6990 | D105: Other Supportive Services Staff Salaries - from above | E105: =E11 -> 0 | F105: 0
B106: 6990 | D106: Supportive Services Admin Overhead | E106: 0 | F106: 0 | H106: =SUM(E103:E108)*0.15 -> 0
B107: 6990 | D107: Other Supportive Services Costs: (specify) | E107: 0 | F107: 0
B108: 6990 | D108: Other Supportive Services Costs: (specify) | E108: 0 | F108: 0
B109: 6900T | D109: Total Supportive Services Costs | E109: =SUM(E103:E108) -> 0 | F109: =SUM(F103:F108) -> 0 | H109: ='Supportive Services Costs'!#REF! -> 
D111: Total Operating Expenses | E111: =E70+E78+E91+E101+E109 -> 0 | F111: =F70+F78+F91+F101+F109 -> 0 | G111: Comments
D112: Funded Reserves: 7200 | E112: Residential | F112: Commercial
B113: 7210 | D113: Required Replacement Reserve Deposits | E113: 0 | F113: 0
B114: 7220 | D114: Other Reserves: (specify) | E114: 0 | F114: 0
B115: 7230 | D115: Other Reserves: (specify) | E115: 0 | F115: 0
B116: 7240 | D116: Other Reserves: (specify) | E116: 0 | F116: 0
D117: Total Reserves | E117: =SUM(E113:E116) -> 0 | F117: =SUM(F113:F116) -> 0
D118: Ground Lease | E118: Residential | F118: Commercial
D119: Ground Lease | E119: 0 | F119: 0
D120: Total Ground Lease | E120: =SUM(E119:E119) -> 0 | F120: =SUM(F119:F119) -> 0
D121: Net Operating Income | E121: =E53-E111-E117-E120 -> 0 | F121: =F53-F111-F117-F120 -> 0
D123: Financial Expenses: 6800 | G123: Comments
B124: 6820 | D124: 1st Mortgage Debt Service | E124: 0 | F124: 0
B125: 6830 | D125: 2nd Mortgage Debt Service | E125: 0 | F125: 0
B126: 6840 | D126: 3rd Mortgage Debt Service | E126: 0 | F126: 0
B127: 6890 | D127: Monitoring Fee | E127: 0 | F127: 0
B128: 6890 | D128: Miscellaneous Financial Expenses: (specify) | E128: 0 | F128: 0
B129: 6890 | D129: Miscellaneous Financial Expenses: (specify) | E129: 0 | F129: 0
B130: 6890 | D130: Miscellaneous Financial Expenses: (specify) | E130: 0 | F130: 0
B131: 6800T | D131: Total Financial Expenses | E131: =SUM(E124:E130) -> 0 | F131: =SUM(F124:F130) -> 0
D132: Cash Flow | E132: =+E121-E131 -> 0 | F132: =+F121-F131 -> 0
B134: 7190 | D134: Asset Management/Similar Fees | E134: 0 | F134: 0
E135: Per Year | F135: Per Month
B136: Total Operating Expenses Per Unit
B137: Without any Adjustments | E137: =IFERROR(E111/'Unit Mix'!D30,0) -> 0 | F137: =+E137/12 -> 0
B138: With the Value of Rent-Free Units Included | E138: =IFERROR(IF(I21=1,+(F17+E111)/'Unit Mix'!D30,E111/'Unit Mix'!D30),0) -> 0 | F138: =+E138/12 -> 0
B139: Without RE Taxes, Social Services Coordinator or Social Services/Social Programs and With the Value of Rent Fee Units Included | E139: =IFERROR((IF(I21=1,+((F17+E111)-(E93+E109))/'Unit Mix'!D30,(E111-(E93+E109))/'Unit Mix'!D30)),0) -> 0 | F139: =+E139/12 -> 0
B143: End of Document

Sheet Supportive Services Costs (hidden)
B2: Supportive Services Cost Limits per HCD Administrative Notice 24-05
B4: NOTE: This Supportive Services Cost Limit tool is only used for projects subject to the 2017 UMRs or subsequent amendments. Complete all yellow shaded cells. | U4: Has or will this Project receive HCD HOME, HOME-ARP, or NHTF funding: | AE4: Has or will this Project receive only HCD VHHP funding: | AO4: Fiscal Year | AP4: (1)(A) & (B) | AQ4: (2)(A) & (B) | AR4: (3) | AS4: (3) VHHP | AT4: 8314 (e)(1) | AU4: 8314 (e)(2) | AV4: 8314 (e)(3) | AW4: 8314 (e)(4)
AO5: 2025 | AP5: 10000 | AQ5: 4000 | AR5: 326 | AS5: 997 | AT5: 4971 | AU5: 3728 | AV5: 1281 | AW5: 305
B6: UMR §8301(t): “Supportive Services” - social, health, educational, income support and employment services and benefits, coordination of community building and educational activities, individualized needs assessment, and individualized assistance with obtaining services and benefits. | AO6: =+AO5+1 -> 2026 | AP6: =AP5*1.035 -> 10350 | AQ6: 4140 | AR6: 337.41 | AS6: 1031.895 | AT6: =AT5*1.025 -> 5095.275 | AU6: 3821.2 | AV6: 1313.025 | AW6: 312.625
B7: UMR §8301(u): “Supportive Services Costs” - the costs of providing tenants service coordination, case management, and direct resident and Supportive Services. It includes: (1) the cost of providing tenants with information on and referral to social, health, educational, income support and employment services and benefits, coordination of community building and educational activities, individualized needs assessment, and individualized assistance with obtaining services and benefits; (2) salaries, benefits, contracted services, telecommunication expenses, travel costs, supplies, office expenses, staff training, maintenance of on-site equipment used in services programs, such as computer labs, incidental costs related to resident events, and other similar costs approved by the Department. | AO7: =+AO6+1 -> 2027 | AP7: 10712.25 | AQ7: 4284.9 | AR7: 349.21935 | AS7: 1068.011325 | AT7: 5222.656875 | AU7: 3916.73 | AV7: 1345.850625 | AW7: 320.440625
AO8: =+AO7+1 -> 2028 | AP8: 11087.17875 | AQ8: 4434.8715 | AR8: 361.4420272 | AS8: 1105.391721 | AT8: 5353.223297 | AU8: 4014.64825 | AV8: 1379.496891 | AW8: 328.4516406
B9: a. Supportive Services Units: | J9: Total number units: | N9: =TotalUnits -> 0 | P9: Certification Year - select budget reporting period year: | AD9: Total Units | AF9: Max PUPY Expense | AI9: Max Costs | AO9: 2029 | AP9: 11475.23001 | AQ9: 4590.092002 | AR9: 374.0924982 | AS9: 1144.080432 | AT9: 5487.053879 | AU9: 4115.014456 | AV9: 1413.984313 | AW9: 336.6629316
B10: (1) Total number of units: (A) for supportive housing restricted to individuals or families experiencing chronic homelessness or homelessness, as defined consistent with Health and Safety Code (HSC) §50675.141; and (B) for supportive housing units restricted to occupancy by special needs populations under HCD programs subject to Administrative Notice 24-05 (“Special needs population” has the same meaning as set forth in individual program guidelines); units anticipated to be restricted to individuals or families experiencing chronic homelessness as defined consistent with HSC §50675.14. 1For units assisted by the HCD Veterans Housing and Homelessness Prevention (VHHP) program, this category includes Supportive Housing Units restricted to Veterans who are experiencing Chronic Homelessness, units restricted to persons who are experiencing Chronic Homelessness by another public agency program, Supportive Housing Units restricted to Veterans with a Disability Experiencing Homelessness, and other Units restricted to persons who are Veterans with a Disability Experiencing Homelessness. (Capitalized terms in this footnote have the same meaning as those set forth in the VHHP guidelines.) | AF10: =IFERROR(VLOOKUP(AB9,SSCLNotice2405[],2,FALSE),0) -> 0 | AI10: =IFERROR(AF10*AD10,"") -> 0 | AO10: 2030 | AP10: 11876.86306 | AQ10: 4750.745223 | AR10: 387.1857356 | AS10: 1184.123247 | AT10: 5624.230226 | AU10: 4217.889818 | AV10: 1449.333921 | AW10: 345.0795049
B11: (2) Total number of other units2 where the Sponsor, their affiliate, or a service provider under contract to provide Supportive Services at the Project has both: (A) qualified staff devoted exclusively to oversight and quality control of resident services in affordable housing, including the Project; and (B) a system to track and report on tenant outcomes, such as changes in employment status and income. Do not include units counted in category (1) above. 2For units assisted by the VHHP program, this category includes Units that are restricted to Extremely Low-Income households, but not to Veterans who are experiencing Chronic Homelessness or Veterans with a Disability Experiencing Homelessness. (Capitalized terms in this footnote have the same meaning as those set forth in the VHHP guidelines.) | AF11: =IFERROR(VLOOKUP(AB9,SSCLNotice2405[],3,FALSE),0) -> 0 | AI11: =IFERROR(AF11*AD11,"") -> 0 | AO11: 2031 | AP11: =AP10*1.025 -> 12173.78463 | AQ11: 4869.513853 | AR11: 396.865379 | AS11: 1225.56756 | AT11: 5764.835982 | AU11: 4323.337063 | AV11: 1485.567269 | AW11: 353.7064926
B12: (3) Except as noted below for the VHHP program, total number of units where the Sponsor, their affiliate, or a service provider under contract does not satisfy the requirements set forth in subsection (2) above3. Do not include units counted in categories (1) and (2) above. 3For units assisted by the VHHP program, the amount for this category of units will remain as currently allowed under this program. | AF12: =IFERROR(IF(AL4<>"Yes",VLOOKUP(AB9,SSCLNotice2405[],4,FALSE),VLOOKUP(AB9,SSCLNotice2405[],5,FALSE)),0) -> 0 | AI12: =IFERROR(AF12*AD12,"") -> 0 | AO12: 2032 | AP12: 12478.12925 | AQ12: 4991.251699 | AR12: 406.7870135 | AS12: 1268.462425 | AT12: 5908.956881 | AU12: 4431.42049 | AV12: 1522.70645 | AW12: 362.5491549
B13: (4) Maximum Supportive Services Costs | AD13: =SUM(AD10:AE12) -> 0 | AI13: =SUM(AI10:AM12) -> 0 | AO13: 2033 | AP13: 12790.08248 | AQ13: 5116.032992 | AR13: 416.9566888 | AS13: 1312.85861 | AT13: 6056.680804 | AU13: 4542.206002 | AV13: 1560.774112 | AW13: 371.6128837
AO14: 2034 | AP14: 13109.83454 | AQ14: 5243.933817 | AR14: 427.3806061 | AS14: 1358.808661 | AT14: 6208.097824 | AU14: 4655.761152 | AV14: 1599.793465 | AW14: 380.9032058
B15: b. Budgeted Supportive Services Costs | AF15: Max Allowable Amt | AO15: 2035 | AP15: 13437.58041 | AQ15: 5375.032162 | AR15: 438.0651212 | AS15: 1406.366964 | AT15: 6363.300269 | AU15: 4772.155181 | AV15: 1639.788301 | AW15: 390.425786
B16: (1) | C16: Staff Supervisor(s) Salaries - may not exceed 15% of on-site staff salaries* (b)(1) | AA16: =Operating!$E$103 -> 0 | AD16: <==== | AF16: =(AA17+AA18)*0.15 -> 0 | AO16: 2036 | AP16: 13773.51992 | AQ16: 5509.407966 | AR16: 449.0167492 | AS16: 1455.589808 | AT16: 6522.382776 | AU16: 4891.45906 | AV16: 1680.783009 | AW16: 400.1864306
B17: (2) | C17: On-Site Services Coordinator Salaries | AA17: =Operating!$E$104 -> 0 | AO17: 2037 | AP17: 14117.85791 | AQ17: 5647.143165 | AR17: 460.242168 | AS17: 1506.535451 | AT17: 6685.442345 | AU17: 5013.745537 | AV17: 1722.802584 | AW17: 410.1910914
B18: (3) | C18: On-Site other Supportive Services Staff Salaries | AA18: =Operating!$E$105 -> 0 | AO18: 2038 | AP18: 14470.80436 | AQ18: 5788.321745 | AR18: 471.7482222 | AS18: 1559.264192 | AT18: 6852.578404 | AU18: 5139.089175 | AV18: 1765.872648 | AW18: 420.4458687
B19: (4) | C19: =Operating!D107 -> Other Supportive Services Costs: (specify) | AA19: =Operating!$E$107 -> 0 | AO19: 2039 | AP19: 14832.57447 | AQ19: 5933.029788 | AR19: 483.5419277 | AS19: 1613.838439 | AT19: 7023.892864 | AU19: 5267.566405 | AV19: 1810.019465 | AW19: 430.9570154
B20: (5) | C20: =Operating!D108 -> Other Supportive Services Costs: (specify) | AA20: =Operating!$E$108 -> 0 | AO20: 2040 | AP20: 15203.38883 | AQ20: 6081.355533 | AR20: 495.6304759 | AS20: 1670.322784 | AT20: 7199.490186 | AU20: 5399.255565 | AV20: 1855.269951 | AW20: 441.7309408
B21: (6) | C21: Supportive Services Administrative Overhead - may not exceed 15% of Total Supportive Services Costs* (b)(2) | AA21: =Operating!$E$106 -> 0 | AD21: <==== | AF21: =SUM(AA16:AC21)*0.15 -> 0 | AO21: =+AO20+1 -> 2041 | AP21: =AP20*1.025 -> 15583.47355 | AQ21: =AQ20*1.025 -> 6233.389421 | AR21: =AR20*1.025 -> 508.0212378 | AS21: =AS20*1.035 -> 1728.784082 | AT21: =AT20*1.025 -> 7379.47744 | AU21: =AU20*1.025 -> 5534.236954 | AV21: =AV20*1.025 -> 1901.6517 | AW21: =AW20*1.025 -> 452.7742143
B22: (7) | C22: Total Budgeted Supportive Services Costs | AA22: =SUM(AA16:AC21) -> 0 | AD22: <==== | AF22: =AI13 -> 0
B24: a. Supportive Services Units: | J24: Total number units: | N24: =TotalUnits -> 0 | P24: Certification Year - select budget reporting period year: | AD24: Total Units | AF24: Max PUPY Expense | AI24: Max Costs
B25: (1) UMR §8314(e)(1): Total number of Supportive Housing (SH) units anticipated to be restricted to individuals or families experiencing chronic homelessness as defined consistent with Health and Safety Code (HSC) §50675.14. | AF25: =IFERROR(VLOOKUP(AB24,SSCLNotice2405[],6,FALSE),0) -> 0 | AI25: =IFERROR(AF25*AD25,"") -> 0
B26: (2) UMR §8314(e)(2): Total number of Supportive Housing (SH) units (other than those restricted to individuals or families experiencing chronic homelessness pursuant to HSC §50675.14), PLUS the total number of units restricted to occupancy by Special Needs Populations (SNP)* under any HCD program. (*click here for definition - §7301(s) of the MHP Regulations). Do not include units included in (1) above. | AF26: =IFERROR(VLOOKUP(AB24,SSCLNotice2405[],7,FALSE),0) -> 0 | AI26: =IFERROR(AF26*AD26,"") -> 0
B27: (3) UMR §8314(e)(3): Total number of units where the Sponsor, their affiliate, or a service provider under contract to provide Supportive Services at the Project has both: (A) qualified staff devoted exclusively to oversight and quality control of resident services in affordable housing, including the Project; and (B) a system to track and report on tenant outcomes, such as changes in employment status and income. Do not include units included in items (1) and (2) above. | AF27: =IFERROR(VLOOKUP(AB24,SSCLNotice2405[],8,FALSE),0) -> 0 | AI27: =IFERROR(AF27*AD27,"") -> 0
B28: (4) UMR §8314(e)(4): Total number of units anticipated to be offered Supportive Services provided by the Project Sponsor, a Sponsor affiliate, or contracted service provider that do not satisfy the criteria in items (1), (2) and (3) above. | AF28: =IFERROR(VLOOKUP(AB24,SSCLNotice2405[],9,FALSE),0) -> 0 | AI28: =IFERROR(AF28*AD28,"") -> 0
B29: (5) Maximum Supportive Services Costs | AD29: =SUM(AD25:AE28) -> 0 | AI29: =SUM(AI25:AM28) -> 0
B31: b. Budgeted Supportive Services Costs | AF31: Max Allowable Amt
B32: (1) | C32: Staff Supervisor(s) Salaries - may not exceed 10% of on-site staff salaries* §8314(f)(1) | AA32: =Operating!$E$103 -> 0 | AD32: <==== | AF32: =(AA33+AA34)*0.1 -> 0
B33: (2) | C33: On-Site Services Coordinator Salaries | AA33: =Operating!$E$104 -> 0
B34: (3) | C34: On-Site other Supportive Services Staff Salaries | AA34: =Operating!$E$105 -> 0
B35: (4) | C35: =Operating!D107 -> Other Supportive Services Costs: (specify) | AA35: =Operating!$E$107 -> 0
B36: (5) | C36: =Operating!D108 -> Other Supportive Services Costs: (specify) | AA36: =Operating!$E$108 -> 0
B37: (6) | C37: Supportive Services Admin. Overhead - may not exceed 15% of Total Supportive Services Costs* §8314(f)(2) | AA37: =Operating!$E$106 -> 0 | AD37: <==== | AF37: =SUM(AA32:AC37)*0.15 -> 0
B38: (7) | C38: Total Budgeted Supportive Services Costs | AA38: =SUM(AA32:AC37) -> 0 | AD38: <==== | AF38: =AI29 -> 0
B40: Sponsor/Applicant comments

Sheet HCD Reserves Calculator (hidden)
B2: HCD Reserve Requirements
B4: Project Name | F4: =ProjectName -> 0 | AA4: Number of Project Units: | AI4: =TotalUnits -> 0
B6: Replacement Reserve Calculator UMR §8309
B7: (a) | C7: 0.6% of New construction costs (structures excluding contractor profit, overhead, and general requirements and insurance): | AF7: =SUM('Dev Budget'!W34:W44)-'Dev Budget'!W36-'Dev Budget'!W37-'Dev Budget'!W38-'Dev Budget'!W40 -> 0 | AJ7: =$AF$7*0.006 -> 0
C8: $500 per unit: (This is a placeholder for rehab projects and may be subject to higher amount) | AF8: 500 | AJ8: =$AI$4*AF8 -> 0
B9: (b) | C9: Replacement Reserve Amount = New construction: lesser of (a) and (b); Rehab: (b) | AJ9: =IF(IsAcquisition,AJ8,MIN($AJ$7:$AM$8)) -> 0
C10: HCD Required Replacement Reserve Amount - included in "Operating budget" tab | AJ10: =AJ9 -> 0
B12: Operating Reserve Calculator
B13: 1 | D13: Total Operating Expenses Excluding On-Site Service Coordinator Salaries. Operating Budget Cell (E111) minus Operating Budget Cell (E105) | AF13: TAX CREDIT Project 3 Month Reserve Required | AJ13: NON-TAX CREDIT Project 4 Month Reserve Required
D14: (a) Total Operating Expenses: | P14: =Operating!E111 -> 0 | U14: Amount subject to reserve calculation: (a - b) | AB14: =SUM($P$14-$P$15) -> 0 | AF14: =$AB$14/12*3 -> 0 | AJ14: =$AB$14/12*4 -> 0
D15: (b) Minus: On-Site Service Coordinator Salaries: | P15: =Operating!E104 -> 0
B16: 2 | D16: Replacement Reserve amount from above: (Cell AJ10) | AB16: =$AJ$10 -> 0 | AF16: =$AB$16/12*3 -> 0 | AJ16: =$AB$16/12*4 -> 0
B17: 3 | D17: Debt Service (including all HCD 0.42% Fees and Bond Issuer Fee)
D18: Name of Lender Operating Budget cells (D124 to D130) | AB18: Annual Debt Service Amount | AF18: TAX CREDIT Project 3 Month Reserve Required | AJ18: NON-TAX CREDIT Project 4 Month Reserve Required
D19: =Operating!D124 -> 1st Mortgage Debt Service | AB19: =Operating!E124 -> 0 | AF19: =IFERROR(AB19/12*3,0) -> 0 | AJ19: =IFERROR(AB19/12*4,0) -> 0
D20: =Operating!D125 -> 2nd Mortgage Debt Service | AB20: =Operating!E125 -> 0 | AF20: =IFERROR(AB20/12*3,0) -> 0 | AJ20: =IFERROR(AB20/12*4,0) -> 0
D21: =Operating!D126 -> 3rd Mortgage Debt Service | AB21: =Operating!E126 -> 0 | AF21: =IFERROR(AB21/12*3,0) -> 0 | AJ21: 0
D22: =Operating!D127 -> Monitoring Fee | AB22: =Operating!E127 -> 0 | AF22: =IFERROR(AB22/12*3,0) -> 0 | AJ22: =IFERROR(AB22/12*4,0) -> 0
D23: =Operating!D128 -> Miscellaneous Financial Expenses: (specify) | AB23: =Operating!E128 -> 0 | AF23: =IFERROR(AB23/12*3,0) -> 0 | AJ23: =IFERROR(AB23/12*4,0) -> 0
D24: =Operating!D129 -> Miscellaneous Financial Expenses: (specify) | AB24: =Operating!E129 -> 0 | AF24: =IFERROR(AB24/12*3,0) -> 0 | AJ24: =IFERROR(AB24/12*4,0) -> 0
D25: =Operating!D130 -> Miscellaneous Financial Expenses: (specify) | AB25: =Operating!E130 -> 0 | AF25: =IFERROR(AB25/12*3,0) -> 0 | AJ25: 0
D26: Other (Specify) | AF26: =IFERROR(AB26/12*3,0) -> 0 | AJ26: 0
D27: Totals | AB27: =SUM(AB19:AE26) -> 0 | AF27: =SUM(AF19:AI26) -> 0 | AJ27: =SUM(AJ19:AM26) -> 0
B28: UMR Required Operating Reserve Amount: | AF28: =AF14+AF16+AF27 -> 0 | AJ28: =AJ14+AJ16+AJ27 -> 0
B29: If Reserve amounts are different than the required amount, enter Reserve amounts and how they are calculated below:
B32: Transition Reserve Pool Fee Calculator | L32: Pooled Transition Reserve Policy
B33: Does the Project propose use of Project-based rental assistance?
B35: Subsidy #1 | E35: =IF('Unit Mix'!$O$2<>"Subsidy Program Name (Specify)",'Unit Mix'!$O$2,"None") -> None | M35: Contract Term: (enter in years) | U35: Subsidy #2 | X35: =IF('Unit Mix'!$Q$2<>"Subsidy Program Name (Specify)",'Unit Mix'!$Q$2,"None") -> None | AF35: Contract Term: (enter in years)
B36: Bedroom Size | E36: Number of Units | I36: Net Contract Rent | M36: Annual Subsidy | U36: Bedroom Size | X36: Number of Units | AB36: Net Contract Rent | AF36: Annual Subsidy
B37: 0 | M37: =E37*I37*12 -> 0 | U37: 0 | AF37: =X37*AB37*12 -> 0
B38: 1 | M38: =E38*I38*12 -> 0 | U38: 1 | AF38: =X38*AB38*12 -> 0
B39: 2 | M39: 0 | U39: 2 | AF39: 0
B40: 3 | M40: 0 | U40: 3 | AF40: 0
B41: 4 | M41: =E41*I41*12 -> 0 | U41: 4 | AF41: =X41*AB41*12 -> 0
F42: Maximum Total Annual Subsidy | M42: =SUM(M37:P41) -> 0 | Y42: Maximum Total Annual Subsidy | AF42: =SUM(AF37:AI41) -> 0
B43: Pooled transition reserve fee for Subsidy #1 (15% of maximum total annual subsidy) | M43: =M42*0.15 -> 0 | U43: Pooled transition reserve fee for Subsidy #2 (15% of maximum total annual subsidy) | AF43: =AF42*0.15 -> 0
B45: Local Operating Subsidy Name:
B46: Total Operating Subsidy Amount
B47: Number of years included in total operating subsidy
B48: One year's worth of operating subsidy | M48: =IF(M46=0,0,M46/M47) -> 0
B49: Pooled transition reserve fee for Subsidy (15% of one year's worth of operating subsidy) | M49: =M48*0.15 -> 0
B51: Total Pooled Transition Reserve Fee | K51: =SUM(M43,AF43,M49) -> 0
B53: Applicant comments:
B56: End of Document

Sheet Cash Flow (hidden)
B2: =IF('Development Info'!G3="","",'Development Info'!G3) -> 
B3: Cash Flow Analysis
B4: Is Income from Restricted Units based on Restricted or Proposed Rents? | J4: Restricted Rents | L4: =IF(J4<>"Proposed Rents",1,0) -> 1
B5: Income From Housing Units | D5: Inflation | E5: Year 1 | F5: Year 2 | G5: Year 3 | H5: Year 4 | I5: Year 5 | J5: Year 6 | K5: Year 7 | L5: Year 8 | M5: Year 9 | N5: Year 10 | O5: Year 11 | P5: Year 12 | Q5: Year 13 | R5: Year 14 | S5: Year 15 | T5: Year 16 | U5: Year 17 | V5: Year 18 | W5: Year 19 | X5: Year 20 | Y5: Year 21 | Z5: Year 22 | AA5: Year 23 | AB5: Year 24 | AC5: Year 25 | AD5: Year 26 | AE5: Year 27 | AF5: Year 28 | AG5: Year 29 | AH5: Year 30 | AI5: Year 31 | AJ5: Year 32 | AK5: Year 33 | AL5: Year 34 | AM5: Year 35 | AN5: Year 36 | AO5: Year 37 | AP5: Year 38 | AQ5: Year 39 | AR5: Year 40
B6: Restricted Unit Rents | D6: 0.025 | E6: =IF(L4=1,'Unit Mix'!P31,'Unit Mix'!P32) -> 0 | F6: =E6*(1+$D$6) -> 0 | G6: 0 | H6: 0 | I6: 0 | J6: 0 | K6: 0 | L6: 0 | M6: 0 | N6: 0 | O6: 0 | P6: 0 | Q6: 0 | R6: 0 | S6: =R6*(1+$D$6) -> 0 | T6: =S6*(1+$D$6) -> 0 | U6: 0 | V6: 0 | W6: 0 | X6: 0 | Y6: 0 | Z6: 0 | AA6: 0 | AB6: 0 | AC6: 0 | AD6: 0 | AE6: 0 | AF6: 0 | AG6: 0 | AH6: 0 | AI6: 0 | AJ6: 0 | AK6: 0 | AL6: 0 | AM6: 0 | AN6: 0 | AO6: 0 | AP6: 0 | AQ6: 0 | AR6: 0
B7: Unrestricted Units | D7: 0.025 | E7: ='Unit Mix'!P33 -> 0 | F7: =E7*(1+$D$7) -> 0 | G7: 0 | H7: 0 | I7: 0 | J7: 0 | K7: 0 | L7: 0 | M7: 0 | N7: 0 | O7: 0 | P7: 0 | Q7: 0 | R7: 0 | S7: =R7*(1+$D$7) -> 0 | T7: =S7*(1+$D$7) -> 0 | U7: 0 | V7: 0 | W7: 0 | X7: 0 | Y7: 0 | Z7: 0 | AA7: 0 | AB7: 0 | AC7: 0 | AD7: 0 | AE7: 0 | AF7: 0 | AG7: 0 | AH7: 0 | AI7: 0 | AJ7: 0 | AK7: 0 | AL7: 0 | AM7: 0 | AN7: 0 | AO7: 0 | AP7: 0 | AQ7: 0 | AR7: 0
B8: Tenant Assistance Payments
B9: =Operating!D37 -> Subsidy Program Name (Specify) | D9: 0.025 | E9: =Operating!E37 -> 0 | F9: =E9*(1+$D$9) -> 0 | G9: =F9*(1+$D$9) -> 0 | H9: =G9*(1+$D$9) -> 0 | I9: 0 | J9: 0 | K9: 0 | L9: 0 | M9: 0 | N9: 0 | O9: 0 | P9: 0 | Q9: 0 | R9: 0 | S9: =R9*(1+$D$9) -> 0 | T9: =S9*(1+$D$9) -> 0 | U9: 0 | V9: 0 | W9: 0 | X9: 0 | Y9: 0 | Z9: 0 | AA9: 0 | AB9: 0 | AC9: 0 | AD9: 0 | AE9: 0 | AF9: 0 | AG9: 0 | AH9: 0 | AI9: 0 | AJ9: 0 | AK9: 0 | AL9: 0 | AM9: 0 | AN9: 0 | AO9: 0 | AP9: 0 | AQ9: 0 | AR9: 0
B10: =Operating!D38 -> Subsidy Program Name (Specify) | D10: 0.025 | E10: =Operating!E38 -> 0 | F10: =E10*(1+$D$10) -> 0 | G10: =F10*(1+$D$10) -> 0 | H10: =G10*(1+$D$10) -> 0 | I10: 0 | J10: 0 | K10: 0 | L10: 0 | M10: 0 | N10: 0 | O10: 0 | P10: 0 | Q10: 0 | R10: 0 | S10: =R10*(1+$D$10) -> 0 | T10: =S10*(1+$D$10) -> 0 | U10: 0 | V10: 0 | W10: 0 | X10: 0 | Y10: 0 | Z10: 0 | AA10: 0 | AB10: 0 | AC10: 0 | AD10: 0 | AE10: 0 | AF10: 0 | AG10: 0 | AH10: 0 | AI10: 0 | AJ10: 0 | AK10: 0 | AL10: 0 | AM10: 0 | AN10: 0 | AO10: 0 | AP10: 0 | AQ10: 0 | AR10: 0
B11: Operating Subsidies | D11: 0.02 | E11: =Operating!E39 -> 0 | F11: =E11*(1+$D$11) -> 0 | G11: =F11*(1+$D$11) -> 0 | H11: 0 | I11: 0 | J11: 0 | K11: 0 | L11: 0 | M11: 0 | N11: 0 | O11: 0 | P11: 0 | Q11: 0 | R11: 0 | S11: =R11*(1+$D$11) -> 0 | T11: =S11*(1+$D$11) -> 0 | U11: 0 | V11: 0 | W11: 0 | X11: 0 | Y11: 0 | Z11: 0 | AA11: 0 | AB11: 0 | AC11: 0 | AD11: 0 | AE11: 0 | AF11: 0 | AG11: 0 | AH11: 0 | AI11: 0 | AJ11: 0 | AK11: 0 | AL11: 0 | AM11: 0 | AN11: 0 | AO11: 0 | AP11: 0 | AQ11: 0 | AR11: 0
B12: =Operating!D40 -> Other: (specify) | D12: =D9 -> 0.025 | E12: 0 | F12: 0 | G12: 0 | H12: 0 | I12: 0 | J12: 0 | K12: 0 | L12: 0 | M12: 0 | N12: 0 | O12: 0 | P12: 0 | Q12: 0 | R12: 0 | S12: 0 | T12: 0 | U12: 0 | V12: 0 | W12: 0 | X12: 0 | Y12: 0 | Z12: 0 | AA12: 0 | AB12: 0 | AC12: 0 | AD12: 0 | AE12: 0 | AF12: 0 | AG12: 0 | AH12: 0 | AI12: 0 | AJ12: 0 | AK12: 0 | AL12: 0 | AM12: 0 | AN12: 0 | AO12: 0 | AP12: 0 | AQ12: 0 | AR12: 0
B13: Gross Potential Income - Housing | E13: =SUM(E6:E12) -> 0 | F13: 0 | G13: 0 | H13: 0 | I13: 0 | J13: 0 | K13: 0 | L13: 0 | M13: 0 | N13: 0 | O13: 0 | P13: 0 | Q13: 0 | R13: 0 | S13: 0 | T13: 0 | U13: 0 | V13: 0 | W13: 0 | X13: 0 | Y13: 0 | Z13: 0 | AA13: 0 | AB13: 0 | AC13: 0 | AD13: 0 | AE13: 0 | AF13: 0 | AG13: 0 | AH13: 0 | AI13: 0 | AJ13: 0 | AK13: 0 | AL13: 0 | AM13: 0 | AN13: 0 | AO13: 0 | AP13: 0 | AQ13: 0 | AR13: 0
B15: Other Income
B16: Laundry & Vending | D16: 0.025 | E16: =Operating!E41 -> 0 | F16: =E16*(1+$D$16) -> 0 | G16: 0 | H16: 0 | I16: 0 | J16: 0 | K16: 0 | L16: 0 | M16: 0 | N16: 0 | O16: 0 | P16: 0 | Q16: 0 | R16: 0 | S16: =R16*(1+$D$16) -> 0 | T16: =S16*(1+$D$16) -> 0 | U16: 0 | V16: 0 | W16: 0 | X16: 0 | Y16: 0 | Z16: 0 | AA16: 0 | AB16: 0 | AC16: 0 | AD16: 0 | AE16: 0 | AF16: 0 | AG16: 0 | AH16: 0 | AI16: 0 | AJ16: 0 | AK16: 0 | AL16: 0 | AM16: 0 | AN16: 0 | AO16: 0 | AP16: 0 | AQ16: 0 | AR16: 0
B17: Other Income | D17: 0.025 | E17: =Operating!E42+Operating!E43 -> 0 | F17: =E17*(1+$D$17) -> 0 | G17: 0 | H17: 0 | I17: 0 | J17: 0 | K17: 0 | L17: 0 | M17: 0 | N17: 0 | O17: 0 | P17: 0 | Q17: 0 | R17: 0 | S17: =R17*(1+$D$17) -> 0 | T17: =S17*(1+$D$17) -> 0 | U17: 0 | V17: 0 | W17: 0 | X17: 0 | Y17: 0 | Z17: 0 | AA17: 0 | AB17: 0 | AC17: 0 | AD17: 0 | AE17: 0 | AF17: 0 | AG17: 0 | AH17: 0 | AI17: 0 | AJ17: 0 | AK17: 0 | AL17: 0 | AM17: 0 | AN17: 0 | AO17: 0 | AP17: 0 | AQ17: 0 | AR17: 0
B18: Commercial Income | D18: 0.025 | E18: =Operating!F44 -> 0 | F18: =E18*(1+$D$18) -> 0 | G18: 0 | H18: 0 | I18: 0 | J18: 0 | K18: 0 | L18: 0 | M18: 0 | N18: 0 | O18: 0 | P18: 0 | Q18: 0 | R18: 0 | S18: =R18*(1+$D$18) -> 0 | T18: =S18*(1+$D$18) -> 0 | U18: 0 | V18: 0 | W18: 0 | X18: 0 | Y18: 0 | Z18: 0 | AA18: 0 | AB18: 0 | AC18: 0 | AD18: 0 | AE18: 0 | AF18: 0 | AG18: 0 | AH18: 0 | AI18: 0 | AJ18: 0 | AK18: 0 | AL18: 0 | AM18: 0 | AN18: 0 | AO18: 0 | AP18: 0 | AQ18: 0 | AR18: 0
B19: Gross Potential Income - Other | E19: =SUM(E16:E18) -> 0 | F19: 0 | G19: 0 | H19: 0 | I19: 0 | J19: 0 | K19: 0 | L19: 0 | M19: 0 | N19: 0 | O19: 0 | P19: 0 | Q19: 0 | R19: 0 | S19: 0 | T19: 0 | U19: 0 | V19: 0 | W19: 0 | X19: 0 | Y19: 0 | Z19: 0 | AA19: 0 | AB19: 0 | AC19: 0 | AD19: 0 | AE19: 0 | AF19: 0 | AG19: 0 | AH19: 0 | AI19: 0 | AJ19: 0 | AK19: 0 | AL19: 0 | AM19: 0 | AN19: 0 | AO19: 0 | AP19: 0 | AQ19: 0 | AR19: 0
B21: Gross Potential Income - Total | E21: =E13+E19 -> 0 | F21: 0 | G21: 0 | H21: 0 | I21: 0 | J21: 0 | K21: 0 | L21: 0 | M21: 0 | N21: 0 | O21: 0 | P21: 0 | Q21: 0 | R21: 0 | S21: 0 | T21: 0 | U21: 0 | V21: 0 | W21: 0 | X21: 0 | Y21: 0 | Z21: 0 | AA21: 0 | AB21: 0 | AC21: 0 | AD21: 0 | AE21: 0 | AF21: 0 | AG21: 0 | AH21: 0 | AI21: 0 | AJ21: 0 | AK21: 0 | AL21: 0 | AM21: 0 | AN21: 0 | AO21: 0 | AP21: 0 | AQ21: 0 | AR21: 0
B23: Vacancy Assumptions
B24: Restricted Units | D24: =Operating!E46 -> 0.05 | E24: =$D24*E6 -> 0 | F24: =$D24*F6 -> 0 | G24: 0 | H24: 0 | I24: 0 | J24: 0 | K24: 0 | L24: 0 | M24: 0 | N24: 0 | O24: 0 | P24: 0 | Q24: 0 | R24: 0 | S24: 0 | T24: 0 | U24: 0 | V24: 0 | W24: 0 | X24: 0 | Y24: 0 | Z24: 0 | AA24: 0 | AB24: 0 | AC24: 0 | AD24: 0 | AE24: 0 | AF24: 0 | AG24: 0 | AH24: 0 | AI24: 0 | AJ24: 0 | AK24: 0 | AL24: 0 | AM24: 0 | AN24: 0 | AO24: 0 | AP24: 0 | AQ24: 0 | AR24: 0
B25: Unrestricted Units | D25: =Operating!E47 -> 0.05 | E25: =$D25*E7 -> 0 | F25: 0 | G25: 0 | H25: 0 | I25: 0 | J25: 0 | K25: 0 | L25: 0 | M25: 0 | N25: 0 | O25: 0 | P25: 0 | Q25: 0 | R25: 0 | S25: 0 | T25: 0 | U25: 0 | V25: 0 | W25: 0 | X25: 0 | Y25: 0 | Z25: 0 | AA25: 0 | AB25: 0 | AC25: 0 | AD25: 0 | AE25: 0 | AF25: 0 | AG25: 0 | AH25: 0 | AI25: 0 | AJ25: 0 | AK25: 0 | AL25: 0 | AM25: 0 | AN25: 0 | AO25: 0 | AP25: 0 | AQ25: 0 | AR25: 0
B26: Tenant Assistance Payments | D26: =Operating!E48 -> 0.05 | E26: =$D26*(E9+E10) -> 0 | F26: =$D26*(F9+F10) -> 0 | G26: 0 | H26: 0 | I26: 0 | J26: 0 | K26: 0 | L26: 0 | M26: 0 | N26: 0 | O26: 0 | P26: 0 | Q26: 0 | R26: 0 | S26: 0 | T26: 0 | U26: 0 | V26: 0 | W26: 0 | X26: 0 | Y26: 0 | Z26: 0 | AA26: 0 | AB26: 0 | AC26: 0 | AD26: 0 | AE26: 0 | AF26: 0 | AG26: 0 | AH26: 0 | AI26: 0 | AJ26: 0 | AK26: 0 | AL26: 0 | AM26: 0 | AN26: 0 | AO26: 0 | AP26: 0 | AQ26: 0 | AR26: 0
B27: =Operating!D40 -> Other: (specify) | D27: =Operating!E49 -> 0.05 | E27: =$D27*E12 -> 0 | F27: =$D27*F12 -> 0 | G27: 0 | H27: 0 | I27: 0 | J27: 0 | K27: 0 | L27: 0 | M27: 0 | N27: 0 | O27: 0 | P27: 0 | Q27: 0 | R27: 0 | S27: 0 | T27: 0 | U27: 0 | V27: 0 | W27: 0 | X27: 0 | Y27: 0 | Z27: 0 | AA27: 0 | AB27: 0 | AC27: 0 | AD27: 0 | AE27: 0 | AF27: 0 | AG27: 0 | AH27: 0 | AI27: 0 | AJ27: 0 | AK27: 0 | AL27: 0 | AM27: 0 | AN27: 0 | AO27: 0 | AP27: 0 | AQ27: 0 | AR27: 0
B28: Laundry/Vending/Other Income | D28: =Operating!E50 -> 0.05 | E28: =$D28*(E16+E17) -> 0 | F28: =$D28*(F16+F17) -> 0 | G28: 0 | H28: 0 | I28: 0 | J28: 0 | K28: 0 | L28: 0 | M28: 0 | N28: 0 | O28: 0 | P28: 0 | Q28: 0 | R28: 0 | S28: 0 | T28: 0 | U28: 0 | V28: 0 | W28: 0 | X28: 0 | Y28: 0 | Z28: 0 | AA28: 0 | AB28: 0 | AC28: 0 | AD28: 0 | AE28: 0 | AF28: 0 | AG28: 0 | AH28: 0 | AI28: 0 | AJ28: 0 | AK28: 0 | AL28: 0 | AM28: 0 | AN28: 0 | AO28: 0 | AP28: 0 | AQ28: 0 | AR28: 0
B29: Commercial Income | D29: =Operating!F51 -> 0.5 | E29: =$D29*E18 -> 0 | F29: =$D29*F18 -> 0 | G29: 0 | H29: 0 | I29: 0 | J29: 0 | K29: 0 | L29: 0 | M29: 0 | N29: 0 | O29: 0 | P29: 0 | Q29: 0 | R29: 0 | S29: 0 | T29: 0 | U29: 0 | V29: 0 | W29: 0 | X29: 0 | Y29: 0 | Z29: 0 | AA29: 0 | AB29: 0 | AC29: 0 | AD29: 0 | AE29: 0 | AF29: 0 | AG29: 0 | AH29: 0 | AI29: 0 | AJ29: 0 | AK29: 0 | AL29: 0 | AM29: 0 | AN29: 0 | AO29: 0 | AP29: 0 | AQ29: 0 | AR29: 0
B30: Total Vacancy Loss | E30: =SUM(E24:E29) -> 0 | F30: =SUM(F24:F29) -> 0 | G30: 0 | H30: 0 | I30: 0 | J30: 0 | K30: 0 | L30: 0 | M30: 0 | N30: 0 | O30: 0 | P30: 0 | Q30: 0 | R30: 0 | S30: 0 | T30: 0 | U30: 0 | V30: 0 | W30: 0 | X30: 0 | Y30: 0 | Z30: 0 | AA30: 0 | AB30: 0 | AC30: 0 | AD30: 0 | AE30: 0 | AF30: 0 | AG30: 0 | AH30: 0 | AI30: 0 | AJ30: 0 | AK30: 0 | AL30: 0 | AM30: 0 | AN30: 0 | AO30: 0 | AP30: 0 | AQ30: 0 | AR30: 0
B32: Effective Gross Income | E32: =E21-E30 -> 0 | F32: 0 | G32: 0 | H32: 0 | I32: 0 | J32: 0 | K32: 0 | L32: 0 | M32: 0 | N32: 0 | O32: 0 | P32: 0 | Q32: 0 | R32: 0 | S32: 0 | T32: 0 | U32: 0 | V32: 0 | W32: 0 | X32: 0 | Y32: 0 | Z32: 0 | AA32: 0 | AB32: 0 | AC32: 0 | AD32: 0 | AE32: 0 | AF32: 0 | AG32: 0 | AH32: 0 | AI32: 0 | AJ32: 0 | AK32: 0 | AL32: 0 | AM32: 0 | AN32: 0 | AO32: 0 | AP32: 0 | AQ32: 0 | AR32: 0
B34: Operating Expenses & Reserve Deposits
B35: Residential Exp. (w/o Real Estate Taxes & Sup. Services) | D35: 0.035 | E35: =Operating!E111-Operating!E93-Operating!E109 -> 0 | F35: =(1+$D$35)*E35 -> 0 | G35: 0 | H35: 0 | I35: 0 | J35: 0 | K35: 0 | L35: 0 | M35: 0 | N35: 0 | O35: 0 | P35: 0 | Q35: 0 | R35: 0 | S35: =(1+$D$35)*R35 -> 0 | T35: =(1+$D$35)*S35 -> 0 | U35: 0 | V35: 0 | W35: 0 | X35: 0 | Y35: 0 | Z35: 0 | AA35: 0 | AB35: 0 | AC35: 0 | AD35: 0 | AE35: 0 | AF35: 0 | AG35: 0 | AH35: 0 | AI35: 0 | AJ35: 0 | AK35: 0 | AL35: 0 | AM35: 0 | AN35: 0 | AO35: 0 | AP35: 0 | AQ35: 0 | AR35: 0
B36: Real Estate Taxes | D36: 0.02 | E36: =Operating!E93 -> 0 | F36: =(1+$D$36)*E36 -> 0 | G36: =(1+$D$36)*F36 -> 0 | H36: 0 | I36: 0 | J36: 0 | K36: 0 | L36: 0 | M36: 0 | N36: 0 | O36: 0 | P36: 0 | Q36: 0 | R36: 0 | S36: =(1+$D$36)*R36 -> 0 | T36: =(1+$D$36)*S36 -> 0 | U36: 0 | V36: 0 | W36: 0 | X36: 0 | Y36: 0 | Z36: 0 | AA36: 0 | AB36: 0 | AC36: 0 | AD36: 0 | AE36: 0 | AF36: 0 | AG36: 0 | AH36: 0 | AI36: 0 | AJ36: 0 | AK36: 0 | AL36: 0 | AM36: 0 | AN36: 0 | AO36: 0 | AP36: 0 | AQ36: 0 | AR36: 0
B37: Supportive Services Costs | D37: 0.025 | E37: =Operating!E109 -> 0 | F37: =(1+$D$37)*E37 -> 0 | G37: =(1+$D$37)*F37 -> 0 | H37: =(1+$D$37)*G37 -> 0 | I37: 0 | J37: 0 | K37: 0 | L37: 0 | M37: 0 | N37: 0 | O37: 0 | P37: 0 | Q37: 0 | R37: 0 | S37: 0 | T37: 0 | U37: 0 | V37: 0 | W37: 0 | X37: 0 | Y37: 0 | Z37: 0 | AA37: 0 | AB37: 0 | AC37: 0 | AD37: 0 | AE37: 0 | AF37: 0 | AG37: 0 | AH37: 0 | AI37: 0 | AJ37: 0 | AK37: 0 | AL37: 0 | AM37: 0 | AN37: 0 | AO37: 0 | AP37: 0 | AQ37: 0 | AR37: 0
B38: Replacement Reserve | D38: 0 | E38: =Operating!E113+Operating!F113 -> 0 | F38: =(1+$D$38)*E38 -> 0 | G38: 0 | H38: 0 | I38: 0 | J38: 0 | K38: 0 | L38: 0 | M38: 0 | N38: 0 | O38: 0 | P38: 0 | Q38: 0 | R38: 0 | S38: =(1+$D$38)*R38 -> 0 | T38: =(1+$D$38)*S38 -> 0 | U38: 0 | V38: 0 | W38: 0 | X38: 0 | Y38: 0 | Z38: 0 | AA38: 0 | AB38: 0 | AC38: 0 | AD38: 0 | AE38: 0 | AF38: 0 | AG38: 0 | AH38: 0 | AI38: 0 | AJ38: 0 | AK38: 0 | AL38: 0 | AM38: 0 | AN38: 0 | AO38: 0 | AP38: 0 | AQ38: 0 | AR38: 0
B39: Other Reserves | D39: 0 | E39: =Operating!E114+Operating!E115+Operating!E116+Operating!F114+Operating!F115+Operating!F116 -> 0 | F39: =(1+$D$39)*E39 -> 0 | G39: =(1+$D$39)*F39 -> 0 | H39: 0 | I39: 0 | J39: 0 | K39: 0 | L39: 0 | M39: 0 | N39: 0 | O39: 0 | P39: 0 | Q39: 0 | R39: 0 | S39: =(1+$D$39)*R39 -> 0 | T39: =(1+$D$39)*S39 -> 0 | U39: 0 | V39: 0 | W39: 0 | X39: 0 | Y39: 0 | Z39: 0 | AA39: 0 | AB39: 0 | AC39: 0 | AD39: 0 | AE39: 0 | AF39: 0 | AG39: 0 | AH39: 0 | AI39: 0 | AJ39: 0 | AK39: 0 | AL39: 0 | AM39: 0 | AN39: 0 | AO39: 0 | AP39: 0 | AQ39: 0 | AR39: 0
B40: Ground Lease | D40: 0.02 | E40: =Operating!E119+Operating!F119 -> 0 | F40: =(1+$D$40)*E40 -> 0 | G40: =(1+$D$40)*F40 -> 0 | H40: 0 | I40: 0 | J40: 0 | K40: 0 | L40: 0 | M40: 0 | N40: 0 | O40: 0 | P40: 0 | Q40: 0 | R40: 0 | S40: =(1+$D$40)*R40 -> 0 | T40: =(1+$D$40)*S40 -> 0 | U40: 0 | V40: 0 | W40: 0 | X40: 0 | Y40: 0 | Z40: 0 | AA40: 0 | AB40: 0 | AC40: 0 | AD40: 0 | AE40: 0 | AF40: 0 | AG40: 0 | AH40: 0 | AI40: 0 | AJ40: 0 | AK40: 0 | AL40: 0 | AM40: 0 | AN40: 0 | AO40: 0 | AP40: 0 | AQ40: 0 | AR40: 0
B41: Commercial Expenses | D41: 0.035 | E41: =Operating!F111 -> 0 | F41: =(1+$D$41)*E41 -> 0 | G41: 0 | H41: 0 | I41: 0 | J41: 0 | K41: 0 | L41: 0 | M41: 0 | N41: 0 | O41: 0 | P41: 0 | Q41: 0 | R41: 0 | S41: =(1+$D$41)*R41 -> 0 | T41: =(1+$D$41)*S41 -> 0 | U41: 0 | V41: 0 | W41: 0 | X41: 0 | Y41: 0 | Z41: 0 | AA41: 0 | AB41: 0 | AC41: 0 | AD41: 0 | AE41: 0 | AF41: 0 | AG41: 0 | AH41: 0 | AI41: 0 | AJ41: 0 | AK41: 0 | AL41: 0 | AM41: 0 | AN41: 0 | AO41: 0 | AP41: 0 | AQ41: 0 | AR41: 0
B42: Total Expenses & Reserves | E42: =SUM(E35:E41) -> 0 | F42: 0 | G42: 0 | H42: 0 | I42: 0 | J42: 0 | K42: 0 | L42: 0 | M42: 0 | N42: 0 | O42: 0 | P42: 0 | Q42: 0 | R42: 0 | S42: 0 | T42: 0 | U42: 0 | V42: 0 | W42: 0 | X42: 0 | Y42: 0 | Z42: 0 | AA42: 0 | AB42: 0 | AC42: 0 | AD42: 0 | AE42: 0 | AF42: 0 | AG42: 0 | AH42: 0 | AI42: 0 | AJ42: 0 | AK42: 0 | AL42: 0 | AM42: 0 | AN42: 0 | AO42: 0 | AP42: 0 | AQ42: 0 | AR42: 0
B44: Net Operating Income | E44: =E32-E42 -> 0 | F44: 0 | G44: 0 | H44: 0 | I44: 0 | J44: 0 | K44: 0 | L44: 0 | M44: 0 | N44: 0 | O44: 0 | P44: 0 | Q44: 0 | R44: 0 | S44: 0 | T44: 0 | U44: 0 | V44: 0 | W44: 0 | X44: 0 | Y44: 0 | Z44: 0 | AA44: 0 | AB44: 0 | AC44: 0 | AD44: 0 | AE44: 0 | AF44: 0 | AG44: 0 | AH44: 0 | AI44: 0 | AJ44: 0 | AK44: 0 | AL44: 0 | AM44: 0 | AN44: 0 | AO44: 0 | AP44: 0 | AQ44: 0 | AR44: 0
B46: Debt Service
B47: 1st Mortgage | E47: =Operating!E124+Operating!F124 -> 0 | F47: =$E$47 -> 0 | G47: 0 | H47: 0 | I47: 0 | J47: 0 | K47: 0 | L47: 0 | M47: 0 | N47: 0 | O47: 0 | P47: 0 | Q47: 0 | R47: 0 | S47: 0 | T47: 0 | U47: 0 | V47: 0 | W47: 0 | X47: 0 | Y47: 0 | Z47: 0 | AA47: 0 | AB47: 0 | AC47: 0 | AD47: 0 | AE47: 0 | AF47: 0 | AG47: 0 | AH47: 0 | AI47: 0 | AJ47: 0 | AK47: 0 | AL47: 0 | AM47: 0 | AN47: 0 | AO47: 0 | AP47: 0 | AQ47: 0 | AR47: 0
B48: Bridge Loan (repaid from Investor equity) | E48: 0 | F48: 0 | G48: 0 | H48: 0 | I48: 0 | J48: 0 | K48: 0 | L48: 0 | M48: 0 | N48: 0 | O48: 0 | P48: 0 | Q48: 0 | R48: 0 | S48: 0
B49: 2nd Mortgage | E49: =Operating!E125+Operating!F125 -> 0 | F49: =$E$49 -> 0 | G49: 0 | H49: 0 | I49: 0 | J49: 0 | K49: 0 | L49: 0 | M49: 0 | N49: 0 | O49: 0 | P49: 0 | Q49: 0 | R49: 0 | S49: 0 | T49: 0 | U49: 0 | V49: 0 | W49: 0 | X49: 0 | Y49: 0 | Z49: 0 | AA49: 0 | AB49: 0 | AC49: 0 | AD49: 0 | AE49: 0 | AF49: 0 | AG49: 0 | AH49: 0 | AI49: 0 | AJ49: 0 | AK49: 0 | AL49: 0 | AM49: 0 | AN49: 0 | AO49: 0 | AP49: 0 | AQ49: 0 | AR49: 0
B50: 3rd Mortgage Debt Service | E50: =Operating!E126+Operating!F126 -> 0 | F50: =$E$50 -> 0 | G50: 0 | H50: 0 | I50: 0 | J50: 0 | K50: 0 | L50: 0 | M50: 0 | N50: 0 | O50: 0 | P50: 0 | Q50: 0 | R50: 0 | S50: 0 | T50: 0 | U50: 0 | V50: 0 | W50: 0 | X50: 0 | Y50: 0 | Z50: 0 | AA50: 0 | AB50: 0 | AC50: 0 | AD50: 0 | AE50: 0 | AF50: 0 | AG50: 0 | AH50: 0 | AI50: 0 | AJ50: 0 | AK50: 0 | AL50: 0 | AM50: 0 | AN50: 0 | AO50: 0 | AP50: 0 | AQ50: 0 | AR50: 0
B51: Monitoring Fee | D51: 0 | E51: =Operating!E127+Operating!F127 -> 0 | F51: =(1+$D$51)*E51 -> 0 | G51: =(1+$D$51)*F51 -> 0 | H51: 0 | I51: 0 | J51: 0 | K51: 0 | L51: 0 | M51: 0 | N51: 0 | O51: 0 | P51: 0 | Q51: 0 | R51: 0 | S51: 0 | T51: 0 | U51: 0 | V51: 0 | W51: 0 | X51: 0 | Y51: 0 | Z51: 0 | AA51: 0 | AB51: 0 | AC51: 0 | AD51: 0 | AE51: 0 | AF51: 0 | AG51: 0 | AH51: 0 | AI51: 0 | AJ51: 0 | AK51: 0 | AL51: 0 | AM51: 0 | AN51: 0 | AO51: 0 | AP51: 0 | AQ51: 0 | AR51: 0
B52: Misc. Financial Expenses: (specify) | E52: =Operating!E128+Operating!F128+Operating!E129+Operating!F129+Operating!E130+Operating!F130 -> 0 | F52: =$E$52 -> 0 | G52: =$E$52 -> 0 | H52: 0 | I52: 0 | J52: 0 | K52: 0 | L52: 0 | M52: 0 | N52: 0 | O52: 0 | P52: 0 | Q52: 0 | R52: 0 | S52: 0 | T52: =S52 -> 0 | U52: 0 | V52: 0 | W52: 0 | X52: 0 | Y52: 0 | Z52: 0 | AA52: 0 | AB52: 0 | AC52: 0 | AD52: 0 | AE52: 0 | AF52: 0 | AG52: 0 | AH52: 0 | AI52: 0 | AJ52: 0 | AK52: 0 | AL52: 0 | AM52: 0 | AN52: 0 | AO52: 0 | AP52: 0 | AQ52: 0 | AR52: 0
B53: Total Required Debt Service | E53: =SUM(E47:E52)-E48 -> 0 | F53: =SUM(F47:F52)-F48 -> 0 | G53: 0 | H53: 0 | I53: 0 | J53: 0 | K53: 0 | L53: 0 | M53: 0 | N53: 0 | O53: 0 | P53: 0 | Q53: 0 | R53: 0 | S53: 0 | T53: 0 | U53: 0 | V53: 0 | W53: 0 | X53: 0 | Y53: 0 | Z53: 0 | AA53: 0 | AB53: 0 | AC53: 0 | AD53: 0 | AE53: 0 | AF53: 0 | AG53: 0 | AH53: 0 | AI53: 0 | AJ53: 0 | AK53: 0 | AL53: 0 | AM53: 0 | AN53: 0 | AO53: 0 | AP53: 0 | AQ53: 0 | AR53: 0
B56: Cash Flow after all debt service | E56: =E44-E53 -> 0 | F56: 0 | G56: 0 | H56: 0 | I56: 0 | J56: 0 | K56: 0 | L56: 0 | M56: 0 | N56: 0 | O56: 0 | P56: 0 | Q56: 0 | R56: 0 | S56: 0 | T56: 0 | U56: 0 | V56: 0 | W56: 0 | X56: 0 | Y56: 0 | Z56: 0 | AA56: 0 | AB56: 0 | AC56: 0 | AD56: 0 | AE56: 0 | AF56: 0 | AG56: 0 | AH56: 0 | AI56: 0 | AJ56: 0 | AK56: 0 | AL56: 0 | AM56: 0 | AN56: 0 | AO56: 0 | AP56: 0 | AQ56: 0 | AR56: 0
B58: Debt Service Coverage Ratio (DSCR) | E58: =IF(E53<=0,0,((E44/E53))) -> 0 | F58: =IF(F53<=0,0,((F44/F53))) -> 0 | G58: 0 | H58: 0 | I58: 0 | J58: 0 | K58: 0 | L58: 0 | M58: 0 | N58: 0 | O58: 0 | P58: 0 | Q58: 0 | R58: 0 | S58: 0 | T58: 0 | U58: 0 | V58: 0 | W58: 0 | X58: 0 | Y58: 0 | Z58: 0 | AA58: 0 | AB58: 0 | AC58: 0 | AD58: 0 | AE58: 0 | AF58: 0 | AG58: 0 | AH58: 0 | AI58: 0 | AJ58: 0 | AK58: 0 | AL58: 0 | AM58: 0 | AN58: 0 | AO58: 0 | AP58: 0 | AQ58: 0 | AR58: 0
B59: Use of Cash Flow After Debt Service - HCD Projects
B60: Asset Mgmt./ Similar Fees | E60: =IF(E56>=E72,E72,MAX(0,E56)) -> 0 | F60: =IF(F56>=F72,F72,MAX(0,F56)) -> 0 | G60: =IF(G56>=G72,G72,MAX(0,G56)) -> 0 | H60: 0 | I60: 0 | J60: 0 | K60: 0 | L60: 0 | M60: 0 | N60: 0 | O60: 0 | P60: 0 | Q60: 0 | R60: 0 | S60: 0 | T60: 0 | U60: 0 | V60: 0 | W60: 0 | X60: 0 | Y60: 0 | Z60: 0 | AA60: 0 | AB60: 0 | AC60: 0 | AD60: 0 | AE60: 0 | AF60: 0 | AG60: 0 | AH60: 0 | AI60: 0 | AJ60: 0 | AK60: 0 | AL60: 0 | AM60: 0 | AN60: 0 | AO60: 0 | AP60: 0 | AQ60: 0 | AR60: 0
B61: Deferred Developer Fee prior to
B62: Distributions & residual receipt payments | E62: =IF(E56-E60<=$E$75,MAX(0,E56-E60),$E$75) -> 0 | F62: =IF(E73+F56-F60<=$E$75,MAX(0,F56-F60),$E$75-E73) -> 0 | G62: =IF(F73+G56-G60<=$E$75,MAX(0,G56-G60),$E$75-F73) -> 0 | H62: 0 | I62: 0 | J62: 0 | K62: 0 | L62: 0 | M62: 0 | N62: 0 | O62: 0 | P62: 0 | Q62: 0 | R62: 0 | S62: 0 | T62: 0 | U62: 0 | V62: 0 | W62: 0 | X62: 0 | Y62: 0 | Z62: 0 | AA62: 0 | AB62: 0 | AC62: 0 | AD62: 0 | AE62: 0 | AF62: 0 | AG62: 0 | AH62: 0 | AI62: 0 | AJ62: 0 | AK62: 0 | AL62: 0 | AM62: 0 | AN62: 0 | AO62: 0 | AP62: 0 | AQ62: 0 | AR62: 0
B63: Cash Available for Residual Receipts Loans
B64: and Sponsor Distributions | E64: =MAX(0,E56-E60-E62) -> 0 | F64: =MAX(0,F56-F60-F62) -> 0 | G64: =MAX(0,G56-G60-G62) -> 0 | H64: 0 | I64: 0 | J64: 0 | K64: 0 | L64: 0 | M64: 0 | N64: 0 | O64: 0 | P64: 0 | Q64: 0 | R64: 0 | S64: 0 | T64: 0 | U64: 0 | V64: 0 | W64: 0 | X64: 0 | Y64: 0 | Z64: 0 | AA64: 0 | AB64: 0 | AC64: 0 | AD64: 0 | AE64: 0 | AF64: 0 | AG64: 0 | AH64: 0 | AI64: 0 | AJ64: 0 | AK64: 0 | AL64: 0 | AM64: 0 | AN64: 0 | AO64: 0 | AP64: 0 | AQ64: 0 | AR64: 0
B65: Sponsor Distributions | D65: 0.5 | E65: =$D65*E64 -> 0 | F65: =+$D65*F64 -> 0 | G65: 0 | H65: 0 | I65: 0 | J65: 0 | K65: 0 | L65: 0 | M65: 0 | N65: 0 | O65: 0 | P65: 0 | Q65: 0 | R65: 0 | S65: 0 | T65: 0 | U65: 0 | V65: 0 | W65: 0 | X65: 0 | Y65: 0 | Z65: 0 | AA65: 0 | AB65: 0 | AC65: 0 | AD65: 0 | AE65: 0 | AF65: 0 | AG65: 0 | AH65: 0 | AI65: 0 | AJ65: 0 | AK65: 0 | AL65: 0 | AM65: 0 | AN65: 0 | AO65: 0 | AP65: 0 | AQ65: 0 | AR65: 0
B66: Jurisdiction Residual Payment | D66: 0.5 | E66: =$D66*E64 -> 0 | F66: =+$D66*F64 -> 0 | G66: 0 | H66: 0 | I66: 0 | J66: 0 | K66: 0 | L66: 0 | M66: 0 | N66: 0 | O66: 0 | P66: 0 | Q66: 0 | R66: 0 | S66: 0 | T66: 0 | U66: 0 | V66: 0 | W66: 0 | X66: 0 | Y66: 0 | Z66: 0 | AA66: 0 | AB66: 0 | AC66: 0 | AD66: 0 | AE66: 0 | AF66: 0 | AG66: 0 | AH66: 0 | AI66: 0 | AJ66: 0 | AK66: 0 | AL66: 0 | AM66: 0 | AN66: 0 | AO66: 0 | AP66: 0 | AQ66: 0 | AR66: 0
B67: Other Residual Payments | D67: 0 | E67: =$D67*E64 -> 0 | F67: =+$D67*F64 -> 0 | G67: 0 | H67: 0 | I67: 0 | J67: 0 | K67: 0 | L67: 0 | M67: 0 | N67: 0 | O67: 0 | P67: 0 | Q67: 0 | R67: 0 | S67: 0 | T67: 0 | U67: 0 | V67: 0 | W67: 0 | X67: 0 | Y67: 0 | Z67: 0 | AA67: 0 | AB67: 0 | AC67: 0 | AD67: 0 | AE67: 0 | AF67: 0 | AG67: 0 | AH67: 0 | AI67: 0 | AJ67: 0 | AK67: 0 | AL67: 0 | AM67: 0 | AN67: 0 | AO67: 0 | AP67: 0 | AQ67: 0 | AR67: 0
B68: Other Residual Payments | D68: 0 | E68: =$D68*E64 -> 0 | F68: =+$D68*F64 -> 0 | G68: 0 | H68: 0 | I68: 0 | J68: 0 | K68: 0 | L68: 0 | M68: 0 | N68: 0 | O68: 0 | P68: 0 | Q68: 0 | R68: 0 | S68: 0 | T68: 0 | U68: 0 | V68: 0 | W68: 0 | X68: 0 | Y68: 0 | Z68: 0 | AA68: 0 | AB68: 0 | AC68: 0 | AD68: 0 | AE68: 0 | AF68: 0 | AG68: 0 | AH68: 0 | AI68: 0 | AJ68: 0 | AK68: 0 | AL68: 0 | AM68: 0 | AN68: 0 | AO68: 0 | AP68: 0 | AQ68: 0 | AR68: 0
B69: Other Residual Payments | D69: 0 | E69: =$D69*E64 -> 0 | F69: =+$D69*F64 -> 0 | G69: 0 | H69: 0 | I69: 0 | J69: 0 | K69: 0 | L69: 0 | M69: 0 | N69: 0 | O69: 0 | P69: 0 | Q69: 0 | R69: 0 | S69: 0 | T69: 0 | U69: 0 | V69: 0 | W69: 0 | X69: 0 | Y69: 0 | Z69: 0 | AA69: 0 | AB69: 0 | AC69: 0 | AD69: 0 | AE69: 0 | AF69: 0 | AG69: 0 | AH69: 0 | AI69: 0 | AJ69: 0 | AK69: 0 | AL69: 0 | AM69: 0 | AN69: 0 | AO69: 0 | AP69: 0 | AQ69: 0 | AR69: 0
B70: Other Residual Payments | D70: 0 | E70: =$D70*E64 -> 0 | F70: =+$D70*F64 -> 0 | G70: 0 | H70: 0 | I70: 0 | J70: 0 | K70: 0 | L70: 0 | M70: 0 | N70: 0 | O70: 0 | P70: 0 | Q70: 0 | R70: 0 | S70: 0 | T70: 0 | U70: 0 | V70: 0 | W70: 0 | X70: 0 | Y70: 0 | Z70: 0 | AA70: 0 | AB70: 0 | AC70: 0 | AD70: 0 | AE70: 0 | AF70: 0 | AG70: 0 | AH70: 0 | AI70: 0 | AJ70: 0 | AK70: 0 | AL70: 0 | AM70: 0 | AN70: 0 | AO70: 0 | AP70: 0 | AQ70: 0 | AR70: 0
B72: Max Asset Mgmt/Similar Fees | D72: 0.035 | E72: =Operating!E134 -> 0 | F72: =(1+$D$72)*E72 -> 0 | G72: =(1+$D$72)*F72 -> 0 | H72: 0 | I72: 0 | J72: 0 | K72: 0 | L72: 0 | M72: 0 | N72: 0 | O72: 0 | P72: 0 | Q72: 0 | R72: 0 | S72: =(1+$D$72)*R72 -> 0 | T72: 0 | U72: 0 | V72: 0 | W72: 0 | X72: 0 | Y72: 0 | Z72: 0 | AA72: 0 | AB72: 0 | AC72: 0 | AD72: 0 | AE72: 0 | AF72: 0 | AG72: 0 | AH72: 0 | AI72: 0 | AJ72: 0 | AK72: 0 | AL72: 0 | AM72: 0 | AN72: 0 | AO72: 0 | AP72: 0 | AQ72: 0 | AR72: 0
B73: Cumulative paid Deferred Dev. Fee | E73: =+E62 -> 0 | F73: =+E73+F62 -> 0 | G73: 0 | H73: 0 | I73: 0 | J73: 0 | K73: 0 | L73: 0 | M73: 0 | N73: 0 | O73: 0 | P73: 0 | Q73: 0 | R73: 0 | S73: =+R73+S62 -> 0 | T73: =+S73+T62 -> 0 | U73: 0 | V73: 0 | W73: 0 | X73: 0 | Y73: 0 | Z73: 0 | AA73: 0 | AB73: 0 | AC73: 0 | AD73: 0 | AE73: 0 | AF73: 0 | AG73: 0 | AH73: 0 | AI73: 0 | AJ73: 0 | AK73: 0 | AL73: 0 | AM73: 0 | AN73: 0 | AO73: 0 | AP73: 0 | AQ73: 0 | AR73: 0
B75: Total Deferred Developer Fee budgeted for payment prior to distributions and residual receipt payments | E75: 0
B78: End of Document

Sheet DATA (hidden)
A1: Nonentitlement | B1: Entitlement | C1: Counties | D1: 0.01
A2: Alpine County | B2: Alameda | C2: Alameda | D2: 0.02 | F2: Alpine County | G2: =IF(F2=A2,"OK","NO") -> OK
A3: Alturas | B3: Alhambra | C3: Alpine | D3: 0.03 | F3: Alturas | G3: =IF(F3=A3,"OK","NO") -> OK
A4: Amador City | B4: Aliso Viejo | C4: Amador | D4: 0.04 | F4: Amador City | G4: OK
A5: Amador County | B5: Anaheim | C5: Butte | D5: 0.05 | F5: Amador County | G5: OK
A6: American Canyon | B6: Antioch | C6: Calaveras | D6: 0.06 | F6: American Canyon | G6: OK
A7: Anderson | B7: Apple Valley | C7: Colusa | D7: 0.07 | F7: Anderson | G7: =IF(F7=A7,"OK","NO") -> OK
A8: Angels Camp | B8: Bakersfield | C8: Contra Costa | D8: 0.08 | F8: Angels Camp | G8: OK
A9: Arcata | B9: Baldwin Park | C9: Del Norte | D9: 0.09 | F9: Arcata | G9: OK
A10: Artesia | B10: Bellflower | C10: El Dorado | D10: 0.1 | F10: Artesia | G10: OK
A11: Arvin | B11: Berkeley | C11: Fresno | D11: 0.11 | F11: Arvin | G11: OK
A12: Atwater | B12: Buena Park | C12: Glenn | D12: 0.12 | F12: Atwater | G12: OK
A13: Auburn | B13: Burbank | C13: Humboldt | D13: 0.13 | F13: Auburn | G13: OK
A14: Avenal | B14: Camarillo | C14: Imperial | D14: 0.14 | F14: Avenal | G14: OK
A15: Benicia | B15: Carlsbad | C15: Inyo | D15: 0.15 | F15: Benicia | G15: OK
A16: Biggs | B16: Carson | C16: Kern | D16: 0.16 | F16: Biggs | G16: OK
A17: Bishop | B17: Cathedral City | C17: Kings | D17: 0.17 | F17: Bishop | G17: OK
A18: Blue Lake | B18: Cerritos | C18: Lake | D18: 0.18 | F18: Blue Lake | G18: OK
A19: Brawley | B19: Chico | C19: Lassen | D19: 0.19 | F19: Brawley | G19: OK
A20: Butte County | B20: Chino | C20: Los Angeles | D20: 0.2 | F20: Butte County | G20: OK
A21: Calaveras County | B21: Chino Hills | C21: Madera | D21: 0.21 | F21: Calaveras County | G21: OK
A22: Calexico | B22: Chula Vista | C22: Marin | D22: 0.22 | F22: Calexico | G22: OK
A23: Calimesa | B23: Citrus Heights | C23: Mariposa | D23: 0.23 | F23: Calimesa | G23: OK
A24: Calipatria | B24: Clovis City | C24: Mendocino | D24: 0.24 | F24: Calipatria | G24: OK
A25: Calistoga | B25: Compton | C25: Merced | D25: 0.25 | F25: Calistoga | G25: OK
A26: Capitola | B26: Concord | C26: Modoc | D26: 0.26 | F26: Capitola | G26: OK
A27: Carmel-by-the-Sea | B27: Corona | C27: Mono | D27: 0.27 | F27: Carmel-by-the-Sea | G27: OK
A28: Chowchilla | B28: Costa Mesa | C28: Monterey | D28: 0.28 | F28: Chowchilla | G28: OK
A29: Clearlake | B29: Cupertino City | C29: Napa | D29: 0.29 | F29: Clearlake | G29: OK
A30: Coalinga | B30: Daly City | C30: Nevada | D30: 0.3 | F30: Coalinga | G30: OK
A31: Colfax | B31: Davis | C31: Orange | D31: 0.31 | F31: Colfax | G31: OK
A32: Colusa | B32: Delano City | C32: Placer | D32: 0.32 | F32: Colusa | G32: OK
A33: Colusa County | B33: Downey | C33: Plumas | D33: 0.33 | F33: Colusa County | G33: OK
A34: Corcoran | B34: El Cajon | C34: Riverside | D34: 0.34 | F34: Corcoran | G34: OK
A35: Corning | B35: El Centro | C35: Sacramento | D35: 0.35 | F35: Corning | G35: OK
A36: Crescent City | B36: Elk Grove | C36: San Benito | D36: 0.36 | F36: Crescent City | G36: =IF(F36=A36,"OK","NO") -> OK
A37: Del Norte County | B37: El Monte | C37: San Bernardino | D37: 0.37 | F37: Del Norte County | G37: OK
A38: Dinuba | B38: Encinitas | C38: San Diego | D38: 0.38 | F38: Dinuba | G38: OK
A39: Dixon | B39: Escondido | C39: San Francisco | D39: 0.39 | F39: Dixon | G39: OK
A40: Dorris | B40: Fairfield | C40: San Joaquin | D40: 0.4 | F40: Dorris | G40: OK
A41: Dos Palos | B41: Fontana | C41: San Luis Obispo | D41: 0.41 | F41: Dos Palos | G41: OK
A42: Dunsmuir | B42: Fountain Valley | C42: San Mateo | D42: 0.42 | F42: Dunsmuir | G42: OK
A43: El Centro (Colonia Only) | B43: Fremont | C43: Santa Barbara | D43: 0.43 | F43: El Centro (Colonia Only) | G43: OK
A44: El Dorado County | B44: Fresno | C44: Santa Clara | D44: 0.44 | F44: El Dorado County | G44: OK
A45: Etna | B45: Fullerton | C45: Santa Cruz | D45: 0.45 | F45: Etna | G45: OK
A46: Eureka | B46: Gardena | C46: Shasta | D46: 0.46 | F46: Eureka | G46: OK
A47: Exeter | B47: Garden Grove | C47: Sierra | D47: 0.47 | F47: Exeter | G47: OK
A48: Farmersville | B48: Gilroy City | C48: Siskiyou | D48: 0.48 | F48: Farmersville | G48: OK
A49: Ferndale | B49: Glendale | C49: Solano | D49: 0.49 | F49: Ferndale | G49: OK
A50: Firebaugh | B50: Glendora City | C50: Sonoma | D50: 0.5 | F50: Firebaugh | G50: =IF(F50=A50,"OK","NO") -> OK
A51: Fort Bragg | B51: Goleta | C51: Stanislaus | F51: Fort Bragg | G51: OK
A52: Fort Jones | B52: Hanford | C52: Sutter | F52: Fort Jones | G52: OK
A53: Fortuna | B53: Hawthorne | C53: Tehama | F53: Fortuna | G53: OK
A54: Fowler | B54: Hayward | C54: Trinity | F54: Fowler | G54: OK
A55: Glenn County | B55: Hemet | C55: Tulare | F55: Glenn County | G55: OK
A56: Grass Valley | B56: Hesperia | C56: Tuolumne | F56: Grass Valley | G56: OK
A57: Greenfield | B57: Huntington Beach | C57: Ventura | F57: Greenfield | G57: OK
A58: Gridley | B58: Huntington Park | C58: Yolo | F58: Gridley | G58: OK
A59: Grover Beach | B59: Indio City | C59: Yuba | F59: Grover Beach | G59: OK
A60: Guadalupe | B60: Inglewood | F60: Guadalupe | G60: OK
A61: Gustine | B61: Irvine | F61: Gustine | G61: OK
A62: Hidden Hills | B62: Laguna Niguel | F62: Hidden Hills | G62: OK
A63: Hollister | B63: La Habra | F63: Hollister | G63: OK
A64: Holtville | B64: Lake Forest | F64: Holtville | G64: OK
A65: Humboldt County | B65: Lake Elsinore | F65: Humboldt County | G65: OK
A66: Huron | B66: Lakewood | F66: Huron | G66: OK
A67: Imperial | B67: La Mesa | F67: Imperial | G67: =IF(F67=A67,"OK","NO") -> OK
A68: Imperial County | B68: Lancaster | F68: Imperial County | G68: OK
A69: Indian Wells | B69: Livermore | F69: Indian Wells | G69: =IF(F69=A69,"OK","NO") -> OK
A70: Industry | B70: Lodi | F70: Industry | G70: OK
A71: Inyo County | B71: Lompoc | F71: Inyo County | G71: OK
A72: Ione | B72: Long Beach | F72: Ione | G72: OK
A73: Jackson | B73: Los Angeles | F73: Jackson | G73: OK
A74: King City | B74: Lynwood | F74: King City | G74: OK
A75: Kings County | B75: Madera | F75: Kings County | G75: OK
A76: Lake County | B76: Menifee | F76: Lake County | G76: OK
A77: Lakeport | B77: Merced | F77: Lakeport | G77: OK
A78: Lassen County | B78: Milpitas City | F78: Lassen County | G78: OK
A79: Lemoore | B79: Mission Viejo | F79: Lemoore | G79: =IF(F79=A79,"OK","NO") -> OK
A80: Lincoln | B80: Modesto | F80: Lincoln | G80: =IF(F80=A80,"OK","NO") -> OK
B81: Montebello | G81: OK
A82: Live Oak | B82: Monterey | F82: Live Oak | G82: OK
A83: Livingston | B83: Monterey Park | F83: Livingston | G83: OK
A84: Loomis | B84: Moreno Valley | F84: Loomis | G84: OK
A85: Los Banos | B85: Mountain View | F85: Los Banos | G85: OK
A86: Loyalton | B86: Napa City | F86: Loyalton | G86: OK
A87: Madera County | B87: National City | F87: Madera County | G87: OK
A88: Mammoth Lakes | B88: Newport Beach | F88: Mammoth Lakes | G88: OK
A89: Maricopa | B89: Norwalk | F89: Maricopa | G89: OK
A90: Marina | B90: Oakland | F90: Marina | G90: OK
A91: Mariposa County | B91: Oceanside | F91: Mariposa County | G91: OK
A92: Marysville | B92: Ontario | F92: Marysville | G92: OK
A93: McFarland | B93: Orange | F93: McFarland | G93: OK
A94: Mendocino County | B94: Oxnard | F94: Mendocino County | G94: OK
A95: Merced County | B95: Palmdale | F95: Merced County | G95: OK
A96: Modoc County | B96: Palm Desert | F96: Modoc County | G96: OK
A97: Mono County | B97: Palm Springs | F97: Mono County | G97: OK
A98: Montague | B98: Palo Alto | F98: Montague | G98: OK
A99: Mount Shasta | B99: Paradise | F99: Mount Shasta | G99: OK
A100: Napa County | B100: Paramount City | F100: Napa County | G100: OK
A101: Nevada City | B101: Pasadena | F101: Nevada City | G101: OK
A102: Nevada County | B102: Perris City | F102: Nevada County | G102: OK
A103: Orange Cove | B103: Petaluma | F103: Orange Cove | G103: OK
A104: Orland | B104: Pico Rivera | F104: Orland | G104: OK
A105: Oroville | B105: Pittsburg | F105: Oroville | G105: OK
A106: Pacific Grove | B106: Placentia | F106: Pacific Grove | G106: OK
A107: Palos Verdes Estates | B107: Pleasanton City | F107: Palos Verdes | G107: NO
A108: Parlier | B108: Pomona | F108: Parlier | G108: OK
A109: Pismo Beach | B109: Porterville | F109: Pismo Beach | G109: OK
A110: Placer County | B110: Rancho Cordova City | F110: Placer County | G110: OK
A111: Placerville | B111: Rancho Cucamonga | F111: Placerville | G111: OK
A112: Plumas County | B112: Rancho Santa Margarita | F112: Plumas County | G112: OK
A113: Plymouth | B113: Redding | F113: Plymouth | G113: OK
A114: Point Arena | B114: Redondo Beach | F114: Point Arena | G114: OK
A115: Portola | B115: Redwood City | F115: Portola | G115: OK
A116: Rancho Mirage | B116: Rialto | F116: Rancho Mirage | G116: OK
A117: Red Bluff | B117: Riverside | F117: Red Bluff | G117: OK
A118: Rio Dell | B118: Rocklin City | F118: Rio Dell | G118: OK
A119: Rio Vista | B119: Rosemead | F119: Rio Vista | G119: OK
A120: Riverbank | B120: Roseville | F120: Riverbank | G120: OK
A121: San Benito County | B121: Sacramento | F121: San Benito County | G121: OK
A122: San Joaquin | B122: Salinas | F122: San Joaquin | G122: OK
A123: San Juan Bautista | B123: San Bernardino | F123: San Juan Bautista | G123: OK
A124: San Juan Capistrano | B124: San Clemente | F124: San Juan Capistrano | G124: OK
A125: Sand City | B125: San Diego | F125: Sand City | G125: OK
A126: Santa Cruz County | B126: San Francisco | F126: Santa Cruz County | G126: OK
A127: Scotts Valley | B127: San Jose | F127: Scotts Valley | G127: OK
A128: Shasta County | B128: San Leandro | F128: Shasta County | G128: OK
A129: Shasta Lake | B129: San Marcos City | F129: Shasta Lake | G129: OK
A130: Sierra County | B130: San Mateo | F130: Sierra County | G130: OK
A131: Siskiyou County | B131: Santa Ana | F131: Siskiyou County | G131: OK
A132: Solano County | B132: Santa Barbara | F132: Solano County | G132: OK
A133: Soledad | B133: Santa Clara | F133: Soledad | G133: OK
A134: Sonora | B134: Santa Clarita | F134: Sonora | G134: OK
A135: South Lake Tahoe | B135: Santa Cruz | F135: South Lake Tahoe | G135: OK
A136: St. Helena | B136: Santa Maria | F136: St. Helena | G136: OK
A137: Suisun City | B137: Santa Monica | F137: Suisun City | G137: OK
A138: Susanville | B138: Santa Rosa | F138: Susanville | G138: OK
A139: Sutter County | B139: Santee | F139: Sutter County | G139: OK
A140: Sutter Creek | B140: Seaside | F140: Sutter Creek | G140: OK
A141: Taft | B141: Simi Valley | F141: Taft | G141: OK
A142: Tehama | B142: South Gate | F142: Tehama | G142: OK
A143: Tehama County | B143: South San Francisco | F143: Tehama County | G143: OK
A144: Trinidad | B144: Stockton | F144: Trinidad | G144: =IF(F144=A144,"OK","NO") -> OK
A145: Trinity County | B145: Sunnyvale | F145: Trinity County | G145: OK
A146: Truckee | B146: Temecula | F146: Truckee | G146: OK
A147: Tulare County | B147: Thousand Oaks | F147: Tulare County | G147: OK
A148: Tulelake | B148: Torrance | F148: Tulelake | G148: OK
A149: Tuolumne County | B149: Tulare | F149: Tuolumne County | G149: OK
A150: Ukiah | B150: Turlock | F150: Ukiah | G150: OK
A151: Vernon | B151: Tustin | F151: Vernon | G151: OK
A152: Wasco | B152: Union City | F152: Wasco | G152: OK
A153: Weed | B153: Upland | F153: Weed | G153: OK
A154: Westmorland | B154: Vacaville | F154: Westmorland | G154: OK
A155: Wheatland | B155: Vallejo | F155: Wheatland | G155: OK
A156: Williams | B156: San Buenaventura | F156: Williams | G156: OK
A157: Willits | B157: Victorville | F157: Willits | G157: OK
A158: Willows | B158: Visalia | F158: Willows | G158: OK
A159: Winters | B159: Vista | F159: Winters | G159: OK
A160: Woodlake | B160: Walnut Creek | F160: Woodlake | G160: OK
A161: Yolo County | B161: Watsonville | F161: Yolo County | G161: OK
A162: Yountville | B162: West Covina | F162: Yountville | G162: OK
A163: Yreka | B163: Westminster | F163: Yreka | G163: OK
A164: Yuba County | B164: West Sacramento | F164: Yuba County | G164: OK
B165: Whittier
B166: Woodland
B167: Yorba Linda
B168: Yuba City
B169: Alameda County
B170: Contra Costa County
B171: Fresno County
B172: Kern County
B173: Los Angeles County
B174: Marin County
B175: Monterey County
B176: Orange County
B177: Riverside County
B178: Sacramento County
B179: San Bernardino County
B180: San Diego County
B181: San Joaquin County
B182: San Luis Obispo County
B183: San Mateo County
B184: Santa Barbara County
B185: Santa Clara County
B186: Sonoma County
B187: Stanislaus County
B188: Ventura County

Sheet High-Cost Verification (hidden)
B2: 2025 TCAC Threshold Basis Limit (TBL) for HCD Developer Fee UMR §8312(b)&(c) and HCD High Cost Test for HCD Limits on Development Costs 2017 UMR §8311(a) & (b) Complete all yellow shaded cells. | AR2: 2025 BASIS LIMITS
AR3: County | AS3: SRO & STUDIO | AT3: 1 BEDROOM | AU3: 2 BEDROOMS | AV3: 3 BEDROOMS | AW3: 4+ BEDROOMS
B4: Project Name: | F4: =IF(ProjectName>0,ProjectName,"") ->  | U4: County: | W4: =IF(County>0,County,"") ->  | AC4: Project's Proposed Tax Credits: | AK4: =IF(Taxcredit>0,Taxcredit,"") ->  | AR4: Alameda | AS4: 473390 | AT4: 545814 | AU4: 658400 | AV4: 842752 | AW4: 938878
B5: HCD Phase: | F5: ='Developer Fee'!$F$5 -> Origination | AR5: Alpine | AS5: 352022 | AT5: 405878 | AU5: 489600 | AV5: 626688 | AW5: 698170
AR6: Amador | AS6: 352022 | AT6: 405878 | AU6: 489600 | AV6: 626688 | AW6: 698170
B7: Unit Size | I7: 2025 TCAC Threshold Basis Limits (TBL) | N7: # of Units | P7: Basis x Number of Units | T7: TOTAL UNADJUSTED THRESHOLD BASIS LIMIT (TBL): | AH7: =SUM(P8:S12) -> 0 | AO7: 2 | AP7: 7 | AR7: Butte | AS7: 319236 | AT7: 368076 | AU7: 444000 | AV7: 568320 | AW7: 633144
B8: SRO/Studio | I8: =IF(OR(Taxcredit=0.04,Taxcredit=0.09,Taxcredit="None"),VLOOKUP($W$4,PlhaTCACTBL[],AO7),0) -> 0 | N8: =SUMIF('Unit Mix'!$B$4:$B$29,0,'Unit Mix'!$D$4:$D$29) -> 0 | P8: =IF(ISERROR(($I$8*$N$8)),0,($I$8*$N$8)) -> 0 | T8: TOTAL HCD ADJ. THRESHOLD BASIS LIMIT: | AH8: =$AH$17+$AH$18+$AH$19+$AH$20+$AH$21+$AH$50+$AH$7+$AH$22+$AH$45+IF(AF48="Yes",$AH$48,0)+$AH$53+$AH$51+$AH$52 -> 0 | AO8: =$AO$7+1 -> 3 | AP8: =$AP$7+1 -> 8 | AR8: Calaveras | AS8: 352022 | AT8: 405878 | AU8: 489600 | AV8: 626688 | AW8: 698170
B9: 1 Bedroom | I9: =IF(OR(Taxcredit=0.04,Taxcredit=0.09,Taxcredit="None"),VLOOKUP($W$4,PlhaTCACTBL[],AO8),0) -> 0 | N9: =SUMIF('Unit Mix'!$B$4:$B$29,1,'Unit Mix'!$D$4:$D$29) -> 0 | P9: =IF(ISERROR(($I$9*$N$9)),0,($I$9*$N$9)) -> 0 | T9: =IF($F$5="Perm Close","Adjusted Threshold Basis Limit multiplied by 170%:","Adjusted Threshold Basis Limit multiplied by 160%:") -> Adjusted Threshold Basis Limit multiplied by 160%: | AH9: =IF($F$5="Perm Close",$AH$8*1.7,$AH$8*1.6) -> 0 | AO9: =$AO$8+1 -> 4 | AP9: =$AP$8+1 -> 9 | AR9: Colusa | AS9: 352022 | AT9: 405878 | AU9: 489600 | AV9: 626688 | AW9: 698170
B10: 2 Bedrooms | I10: =IF(OR(Taxcredit=0.04,Taxcredit=0.09,Taxcredit="None"),VLOOKUP($W$4,PlhaTCACTBL[],AO9),0) -> 0 | N10: =SUMIF('Unit Mix'!$B$4:$B$29,2,'Unit Mix'!$D$4:$D$29) -> 0 | P10: =IF(ISERROR(($I$10*$N$10)),0,($I$10*$N$10)) -> 0 | T10: =IF($F$4="",CONCATENATE("HCD HIGH COST TEST RESULT: ",$F$4),CONCATENATE("HCD HIGH COST TEST RESULT FOR: ",$F$4)) -> HCD HIGH COST TEST RESULT: | AH10: =IF($AH$8=0,0,$AH$12/$AH$8) -> 0 | AO10: =$AO$9+1 -> 5 | AP10: =$AP$9+1 -> 10 | AR10: Contra Costa | AS10: 473390 | AT10: 545814 | AU10: 658400 | AV10: 842752 | AW10: 938878
B11: 3 Bedrooms | I11: =IF(OR(Taxcredit=0.04,Taxcredit=0.09,Taxcredit="None"),VLOOKUP($W$4,PlhaTCACTBL[],AO10),0) -> 0 | N11: =SUMIF('Unit Mix'!$B$4:$B$29,3,'Unit Mix'!$D$4:$D$29) -> 0 | P11: =IF(ISERROR(($I$11*$N$11)),0,($I$11*$N$11)) -> 0 | AO11: =$AO$10+1 -> 6 | AP11: =$AP$10+1 -> 11 | AR11: Del Norte | AS11: 352022 | AT11: 405878 | AU11: 489600 | AV11: 626688 | AW11: 698170
B12: 4+ Bedrooms | I12: =IF(OR(Taxcredit=0.04,Taxcredit=0.09,Taxcredit="None"),VLOOKUP($W$4,PlhaTCACTBL[],AO11),0) -> 0 | N12: =SUMIF('Unit Mix'!$B$4:$B$29,4,'Unit Mix'!$D$4:$D$29)+SUMIF('Unit Mix'!$B$4:$B$29,5,'Unit Mix'!$D$4:$D$29) -> 0 | P12: =IF(ISERROR(($I$12*$N$12)),0,($I$12*$N$12)) -> 0 | T12: Total Eligible Basis | AH12: =SUM('Dev Budget'!Y126) -> 0 | AR12: El Dorado | AS12: 331890 | AT12: 382666 | AU12: 461600 | AV12: 590848 | AW12: 658242
AC13: =IF($AH$12=0,"",IF($AH$12<=$AH$9,"Costs Reasonable",IF($F$5="Perm Close","Costs too high > 170%","Costs too high > 160%"))) ->  | AR13: Fresno | AS13: 307732 | AT13: 354812 | AU13: 428000 | AV13: 547840 | AW13: 610328
B14: Manager Units in Project: | I14: =ManagerUnits -> 0 | K14: TOTAL UNITS: | O14: =SUM($N$8:$O$12) -> 0 | AR14: Glenn | AS14: 352022 | AT14: 405878 | AU14: 489600 | AV14: 626688 | AW14: 698170
AR15: Humboldt | AS15: 352022 | AT15: 405878 | AU15: 489600 | AV15: 626688 | AW15: 698170
B16: ADJUSTMENTS Cal Code of Reg §10327(c)(5)(A-F) | AR16: Imperial | AS16: 324988 | AT16: 374708 | AU16: 452000 | AV16: 578560 | AW16: 644552
B17: (A) | C17: Adjustment for Projects paid in whole or part out of public funds subject to a legal requirement for the payment of state or federal prevailing wages or financed in part by a labor-affiliated organization requiring the employment of construction workers who are paid at least state or federal prevailing wages (20%). | AH17: =ROUND(IF($AF$17="yes",$AH$7*0.2,0),0) -> 0 | AR17: Inyo | AS17: 352022 | AT17: 405878 | AU17: 489600 | AV17: 626688 | AW17: 698170
C18: For Projects certifies that (1) they are subject to a Project labor agreement within the meaning of §2500(b)(1) of the Public Contract Code, or (2) they will use a skilled and trained workforce as defined by §25536.7 of the Health and Safety Code to perform all onsite work within an apprenticeable occupation in the building and construction trades (5%). | AH18: =ROUND(IF($AF$18="yes",$AH$7*0.05,0),0) -> 0 | AR18: Kern | AS18: 307732 | AT18: 354812 | AU18: 428000 | AV18: 547840 | AW18: 610328
B19: (B) | C19: For New construction Projects required to provide parking beneath residential units (not "tuck under" parking) or through construction of an on-site parking structure of two or more levels (10%). | AH19: =ROUND(IF($AF$19="yes",$AH$7*0.1,0),0) -> 0 | AR19: Kings | AS19: 307732 | AT19: 354812 | AU19: 428000 | AV19: 547840 | AW19: 610328
B20: (C) | C20: For Projects where a day care center is part of the development (2%). | AF20: Yes | AH20: =ROUND(IF($AF$20="yes",$AH$7*0.02,0),0) -> 0 | AR20: Lake | AS20: 352022 | AT20: 405878 | AU20: 489600 | AV20: 626688 | AW20: 698170
B21: (D) | C21: For Projects where 100 percent of the units are for Special Needs populations (2%). | AH21: =ROUND(IF($AF$21="yes",$AH$7*0.02,0),0) -> 0 | AR21: Lassen | AS21: 352022 | AT21: 405878 | AU21: 489600 | AV21: 626688 | AW21: 698170
B22: (E) | C22: Project applying under §10325 or §10326 of the TCAC regulations that includes one or more of the features below (up to 20%). | AF22: Yes | AH22: =IF(SUM($AF$23:$AG$44)>0.005,MIN(0.2,SUM($AF$23:$AG$44))*$AH$7,0) -> 0 | AR22: Los Angeles | AS22: 437727 | AT22: 504695 | AU22: 608800 | AV22: 779264 | AW22: 868149
C23: (1) All electric. Twenty percent (20%) | AR23: Madera | AS23: 307732 | AT23: 354812 | AU23: 428000 | AV23: 547840 | AW23: 610328
AF24: =IF($AF$23="Yes",0.2,0) -> 0 | AR24: Marin | AS24: 384234 | AT24: 443018 | AU24: 534400 | AV24: 684032 | AW24: 762054
C25: (2) For rehabilitation projects, electric ready as defined in Section 160.9 of the 2022 Building Energy Efficiency Standards. Fifteen percent (15%) | AR25: Mariposa | AS25: 352022 | AT25: 405878 | AU25: 489600 | AV25: 626688 | AW25: 698170
AF26: =IF($AF$25="Yes",0.15,0) -> 0 | AR26: Mendocino | AS26: 352022 | AT26: 405878 | AU26: 489600 | AV26: 626688 | AW26: 698170
C27: (3) Project shall have onsite renewable generation estimated to produce 50% or more of annual tenant electricity use. If the combined available roof area of the Project structures, including carports, is insufficient for provision of 50% of annual electricity use, then the Project shall have onsite renewable generation based on at least 90% of the available solar accessible roof area. Available solar accessible area is defined as roof area less north facing roof area for sloped roofs, equipment, solar thermal hot water and required local or state fire department set-backs and access routes. A Project not availing itself of the 90% roof area exception may also receive an increase under paragraph (2) only if the renewable generation used to calculate each basis increase does not overlap (5%). | AR27: Merced | AS27: 307732 | AT27: 354812 | AU27: 428000 | AV27: 547840 | AW27: 610328
AF28: =IF($AF$27="Yes",0.05,0) -> 0 | AR28: Modoc | AS28: 352022 | AT28: 405878 | AU28: 489600 | AV28: 626688 | AW28: 698170
C29: (4) Project shall have onsite renewable generation estimated to produce 75% or more of annual common area electricity use. If the combined available roof area of the Project structures, including carports, is insufficient for provision of 75% of annual electricity use, then the Project shall have onsite renewable generation based on at least 90% of the available solar accessible roof area. Available solar accessible area is defined as roof area less north facing roof area for sloped roofs, equipment, solar thermal hot water and required local or state fire department set-backs and access routes. A Project not availing itself of the 90% roof area exception may also receive an increase under paragraph (1) only if the renewable generation used to calculate each basis increase does not overlap (2%). | AR29: Mono | AS29: 352022 | AT29: 405878 | AU29: 489600 | AV29: 626688 | AW29: 698170
AF30: =IF($AF$29="Yes",0.02,0) -> 0 | AR30: Monterey | AS30: 404366 | AT30: 466230 | AU30: 562400 | AV30: 719872 | AW30: 801982
C31: (5) Newly constructed Project buildings shall be 15% or more energy efficient than the 2019 Energy Efficiency Standards (California Code of Regulations, Part 6 of Title 24) by at least 5 EDR points for energy efficiency alone (not counting solar); except that if the local building department has determined that building permit applications submitted on or before December 31, 2019 are complete, then newly constructed Project buildings shall be fifteen percent (15%) or more energy efficient than the 2016 Energy Efficiency Standards (California Code of Regulations, Part 6 of Title 24) (4%). | AR31: Napa | AS31: 384234 | AT31: 443018 | AU31: 534400 | AV31: 684032 | AW31: 762054
AF32: =IF($AF$31="Yes",0.04,0) -> 0 | AR32: Nevada | AS32: 352022 | AT32: 405878 | AU32: 489600 | AV32: 626688 | AW32: 698170
C33: (6) Rehab Project buildings shall have 80% decrease in estimated annual energy use (or improvement in energy efficiency) in the HERS II post rehabilitation (4%). | AR33: Orange | AS33: 396888 | AT33: 457608 | AU33: 552000 | AV33: 706560 | AW33: 787152
AF34: =IF($AF$33="Yes",0.04,0) -> 0 | AR34: Placer | AS34: 331890 | AT34: 382666 | AU34: 461600 | AV34: 590848 | AW34: 658242
C35: (7) Irrigate only with reclaimed water, greywater, or rainwater (excepting water used for Community Gardens) or irrigate with reclaimed water, grey water, or rainwater in an amount that annually equals or exceeds 20,000 gallons or 300 gallons per unit, whichever is less (1%). | AR35: Plumas | AS35: 352022 | AT35: 405878 | AU35: 489600 | AV35: 626688 | AW35: 698170
AF36: =IF($AF$35="Yes",0.01,0) -> 0 | AR36: Riverside | AS36: 324988 | AT36: 374708 | AU36: 452000 | AV36: 578560 | AW36: 644552
C37: (8) Community Gardens of at least 60 square feet per unit. Permanent site improvements that provide a viable growing space within the Project including solar access, fencing, watering systems, secure storage space for tools, and pedestrian access (1%). | AR37: Sacramento | AS37: 331890 | AT37: 382666 | AU37: 461600 | AV37: 590848 | AW37: 658242
AF38: =IF($AF$37="Yes",0.01,0) -> 0 | AR38: San Benito | AS38: 352022 | AT38: 405878 | AU38: 489600 | AV38: 626688 | AW38: 698170
C39: (9) Install bamboo, stained concrete, cork, salvaged or FSC-Certified wood, natural linoleum, natural rubber, or ceramic tile in all kitchens, living rooms, and bathrooms (where no VOC adhesives or backing is also used) (1%). | AR39: San Bernardino | AS39: 324988 | AT39: 374708 | AU39: 452000 | AV39: 578560 | AW39: 644552
AF40: =IF($AF$39="Yes",0.01,0) -> 0 | AR40: San Diego | AS40: 353173 | AT40: 407205 | AU40: 491200 | AV40: 628736 | AW40: 700451
C41: (10) Install bamboo, stained concrete, cork, salvaged or FSC-Certified wood, or natural linoleum, natural rubber, or ceramic tile in all interior floor space other than units (where no VOC adhesives or backing is also used) (2%). | AR41: San Francisco | AS41: 689665 | AT41: 795177 | AU41: 959200 | AV41: 1227776 | AW41: 1367819
AF42: =IF($AF$41="Yes",0.02,0) -> 0 | AR42: San Joaquin | AS42: 307732 | AT42: 354812 | AU42: 428000 | AV42: 547840 | AW42: 610328
C43: (11) For new construction Projects only, meet all requirements of the U.S. Environmental Protection Agency Indoor Air Plus Program (2%). | AR43: San Luis Obispo | AS43: 404366 | AT43: 466230 | AU43: 562400 | AV43: 719872 | AW43: 801982
AF44: =IF($AF$43="Yes",0.02,0) -> 0 | AR44: San Mateo | AS44: 532060 | AT44: 613460 | AU44: 740000 | AV44: 947200 | AW44: 1055240
B45: (F) | C45: Project requires seismic upgrading of existing structures, and/or requires toxic or other environmental mitigation as certified by the Project architect/ engineer (lesser of costs or 15% basis adjustment). | AH45: =IF($AF$45="Yes",MIN($AB$47,$AH$7*0.15),0) -> 0 | AR45: Santa Barbara | AS45: 404366 | AT45: 466230 | AU45: 562400 | AV45: 719872 | AW45: 801982
AR46: Santa Clara | AS46: 532060 | AT46: 613460 | AU46: 740000 | AV46: 947200 | AW46: 1055240
C47: If Yes, select type of work: | R47: Enter Certified Costs of Work: | AR47: Santa Cruz | AS47: 404366 | AT47: 466230 | AU47: 562400 | AV47: 719872 | AW47: 801982
B48: (G) | C48: Local development impact fees required to be paid to local government entities. Certification from local entities assessing fees also required. WAIVED IMPACT FEES ARE INELIGIBLE. | AR48: Shasta | AS48: 319236 | AT48: 368076 | AU48: 444000 | AV48: 568320 | AW48: 633144
AF49: =IF($AF$48="yes","Please Enter Amount Above:",0) -> 0 | AR49: Sierra | AS49: 352022 | AT49: 405878 | AU49: 489600 | AV49: 626688 | AW49: 698170
B50: (H) | C50: Projects where at least 95% of the Project's upper floor units are serviced by an elevator (10%). | AH50: =ROUND(IF($AF$50="yes",($AH$7*0.1),0),0) -> 0 | AR50: Siskiyou | AS50: 352022 | AT50: 405878 | AU50: 489600 | AV50: 626688 | AW50: 698170
B51: (I) | C51: Projects wherein at least 95% of the building(s) is constructed as Type I as defined in the California Building Code, in which case, the Type III 10% increase below is not allowed (15%). | AH51: =ROUND(IF(AF51="Yes",(AH7*0.15),0),0) -> 0 | AR51: Solano | AS51: 384234 | AT51: 443018 | AU51: 534400 | AV51: 684032 | AW51: 762054
B52: (J) | C52: Projects wherein at least 95% of the building(s) is constructed as (1) a Type III as defined in the California Building Code, or (2) a Type III/Type I combination, in which case, the Type I 15% increase above is not be allowed (10%). | AH52: =ROUND(IF(AND(AF51="Yes",AF52="Yes"),0,IF(AF52="Yes",(AH7*0.1),0)),0) -> 0 | AR52: Sonoma | AS52: 384234 | AT52: 443018 | AU52: 534400 | AV52: 684032 | AW52: 762054
B53: (K) | C53: Projects within a county with an unadjusted 9% threshold basis limit for a 2-bedroom unit equal or less than $500,000 and within a census tract designated on the TCAC/HCD Opportunity Map as Highest or High Resource (10%). | AF53: =IF(AND($F$55="Yes",OR($Y$55="Highest Resource",$Y$55="High Resource")),"Yes","No") -> No | AH53: =ROUND(IF(AND($F$55="Yes",OR($Y$55="High Resource",$Y$55="Highest Resource"),$AF$53="Yes"),$AH$7*0.1,0),0) -> 0 | AR53: Stanislaus | AS53: 307732 | AT53: 354812 | AU53: 428000 | AV53: 547840 | AW53: 610328
AR54: Sutter | AS54: 331890 | AT54: 382666 | AU54: 461600 | AV54: 590848 | AW54: 658242
C55: County Eligibility: | F55: =IFERROR(IF(VLOOKUP($W$4,$AR$3:$AW$61,$AO$9,FALSE)<=500000,"Yes","No"),"") ->  | H55: TCAC/HCD Opportunity Area Map Tract ID #: | S55: Opportunity Map Resource Level: | AR55: Tehama | AS55: 352022 | AT55: 405878 | AU55: 489600 | AV55: 626688 | AW55: 698170
AR56: Trinity | AS56: 352022 | AT56: 405878 | AU56: 489600 | AV56: 626688 | AW56: 698170
AR57: Tulare | AS57: 307732 | AT57: 354812 | AU57: 428000 | AV57: 547840 | AW57: 610328
AR58: Tuolumne | AS58: 352022 | AT58: 405878 | AU58: 489600 | AV58: 626688 | AW58: 698170
AR59: Ventura | AS59: 404366 | AT59: 466230 | AU59: 562400 | AV59: 719872 | AW59: 801982
AR60: Yolo | AS60: 331890 | AT60: 382666 | AU60: 461600 | AV60: 590848 | AW60: 658242
AR61: Yuba | AS61: 331890 | AT61: 382666 | AU61: 461600 | AV61: 590848 | AW61: 658242
B67: End of Document
C153: End of Document

Sheet Developer Fee (hidden)
B2: HCD 2025 Developer Fee Calculator
B3: TCAC regulations - 12/11/2024
B4: Project Name: | F4: =IF(ProjectName>0,ProjectName,"") -> 
B5: Project Phase: | F5: Origination
B7: ADMINISTRATIVE NOTICE NO. 24-03
B8: Does the proposed Project have a previous HCD award?
B9: Applicant must use the Developer Fee calculations already in place from its previous HCD award, do not alter those previous calculations when entering data at the following sheets in this Application; "Dev Sources", "Dev Budget SU", and "Cash Flow".
B12: Developer Fee Summary | AE12: TCAC Project #
AA14: HCD Limit | AE14: Project Amt.
B16: =IF(LEFT($H$24,1)="9","Maximum Total Developer Fee - 1e","Maximum Total Developer Fee - 2d") -> Maximum Total Developer Fee - 2d | AA16: =IF(vmDF="",0,IF(AND(vmProjectDevType<>"New Construction",vmDF="No Tax Credits"),$AJ$78,IF(AND(vmProjectDevType="New Construction",vmDF="No Tax Credits"),MIN($L$22,$AJ$35),IF(LEFT(vmDF,1)="9",$AJ$35,$AJ$39)))) -> 0 | AE16: =$L$22 -> 0 | AI16: =MAX(0,ROUND($AE$16,0)-ROUND($AA$16,0)) -> 0
B17: =IF(LEFT($H$24,1)="9","Max Developer Fee payable from development funding sources - 1e",IF(_xlfn.SINGLE(vmDF)="No Tax Credits","Max Developer Fee payable from development funding sources","Max Developer Fee payable from development funding sources - lesser of 1e & 2d")) -> Max Developer Fee payable from development funding sources - lesser of 1e & 2d | AA17: =IF(vmDF="",0,IF(AND(vmProjectDevType<>"New Construction",vmDF="No Tax Credits"),AJ78,IF(vmDF="No Tax Credits",MAX(MIN($AJ$35,$AA$16)),IF(LEFT(vmDF,1)="9",$AJ$35,$AJ$54)))) -> 1000000 | AE17: =MAX(0,$AE$16-$Y$22-$AI$22) -> 0 | AI17: =MAX(0,ROUND($AE$17,0)-ROUND($AA$17,0)) -> 0
B18: Deferred Developer Fee payable on a priority basis from available Cash Flow | AA18: =IF(vmDF="",0,IF(vmDF="No Tax Credits",MAX(0,MIN($AA$16,2200000)-$AA$17),SUM($AA$16-$AA$17))) -> -1000000 | AE18: =IF(vmDF="No Tax Credits",MAX(0,MIN($AA$16,$AE$16-$Y$22,2200000)-$AE$17),MAX(0,MIN($AA$16,$AE$16-$Y$22)-$AE$17)) -> 0
B19: Deferred Developer Fee payable exclusively from Sponsor Distributions | AA19: =IF(vmDF="",0,$AA$16-$AA$17-$AA$18) -> 0 | AE19: =MAX(0,$AE$16-$AE$17-$AE$18-$Y$22) -> 0
B22: Total Budgeted or Actual Developer Fee: | L22: ='Dev Budget'!W123 -> 0 | P22: Developer Fee Contributed as Capital: | AC22: Deferred Developer Fee:
B24: Proposed Project Type: | H24: 4% Credits New Construction | Q24: Project's type of construction: | X24: =IF($H$24="No Tax Credits","",MID($H$24,12,26)) -> New Construction
B26: 15 Low-Income Special Needs Units | K26: 15 | O26: Total Special Needs Units | X26: =SUM('Unit Mix'!I4:I29) -> 0
B27: 25% of Project's Low-Income Units | K27: =ROUNDUP(SUMIFS(UnitsTbls[Total Units],UnitsTbls[% of Area Median Income ],"<=80%")*0.25,0) -> 0 | O27: Qualifies for Special Needs increase | X27: =$X$26>=MAX($K$26,$K$27) -> FALSE
AD30: Developer Fee Limit | AJ30: =IF(X27,2800000,2500000) -> 2500000
C32: Project's Unadjusted Eligible Basis (excluding Developer Fee) - §10327(c)(2)(A) | AC32: ='Dev Budget'!$X$124-'Dev Budget'!$X$123 -> 0 | AG32: 0.15 | AJ32: =$AC$32*AG32 -> 0
C33: Project's Unadjusted Eligible Acquisition Basis (excluding Developer Fee) - §10327(c)(2)(A) | AC33: ='Dev Budget'!$Y$124-'Dev Budget'!$Y$123 -> 0 | AG33: =IF(RIGHT(vmDF,14)="Adaptive Reuse",15%,5%) -> 0.05 | AJ33: =IF(AND(vmProjectDevType="New Construction",vmDF="No Tax Credits"),AC33*AG33,$AC$33*AG33*(OR($X$24="Acq. Rehabilitation",RIGHT(vmDF,14)="Adaptive Reuse"))) -> 0
C34: Project's Non-Residential Costs (excluding Developer Fee) - §10327(c)(2)(A) | AC34: ='Dev Budget'!$T$124-'Dev Budget'!$T$123 -> 0 | AG34: 0.15 | AJ34: =$AC$34*AG34 -> 0
C35: Maximum Developer Fee - per §10327(c)(2)(A) | AJ35: =MIN($AJ$30,SUM($AJ$32:$AM$34)) -> 0
B39: Developer Fee Limit | AJ39: =SUM(AJ43:AM48) -> 0
B41: Project qualifies for general partner experience pursuant to CDLAC §5230(f)(1)(B), TCAC §10327(c)(2)(E)?
C43: New Construction & Rehab - Unadjusted Eligible Basis (exclude Developer Fee) - §10327(c)(2)(B)(i) | AC43: ='Dev Budget'!$X$124-'Dev Budget'!$X$123 -> 0 | AG43: =IF(OR($AL$41=FALSE,$AL$41=""),15%,20%) -> 0.15 | AJ43: =$AC$43*AG43 -> 0
C44: Basis for non-residential Project costs (exclude Developer Fee) - §10327(c)(2)(B)(ii) | AC44: ='Dev Budget'!$T$124-'Dev Budget'!$T$123 -> 0 | AG44: 0.15 | AJ44: =$AC$44*AG44 -> 0
C45: =IF(OR($F$5="",$J$30="Acq. Rehabilitation"),"Acq/Rehab - at-risk development meeting the requirements of §10325(g)(4) - §10327(c)(2)(B)(ii)","Not Applicable") -> Not Applicable
C46: =IF(AND($F$5<>"",$J$30<>"Acq. Rehabilitation"),"Not Applicable","Acq/Rehab non-resyndication - hard construction costs per unit at least $50,000 per unit - §10327(c)(2)(B)(ii)") -> Not Applicable
C47: =IF(OR($F$5="",$J$30="Acq. Rehabilitation"),"Acq/Rehab non-resyndication - 30% or more of units restricted to 50% AMI or less - §10327(c)(2)(B)(ii)","Not Applicable") -> Not Applicable
C48: =IF(OR($F$5="",$J$30="Acq. Rehabilitation"),"Acq/Rehab - Unadj. Eligible Acq. Basis - §10327(c)(2)(B)(ii) = 15% if c1, c2 or c3 is Yes","Not Applicable") -> Not Applicable | AC48: =IF(OR($F$5="",$X$24<>"Acq. Rehabilitation"),0,'Dev Budget'!$T$124-'Dev Budget'!$T$123) -> 0 | AG48: 0.05 | AJ48: =$AC$48*$AG$48 -> 0
C50: Developer Fee - per §10327(c)(2)(B) | AJ50: =MIN(SUM($AJ$43+$AJ$44+$AJ$48,0),_xlfn.IFS(BIPOC,3000000,$X$27,2800000,TRUE,2500000)) -> 0
N52: =IF(X27,7%,5%) -> 0.05 | O52: of project’s unadjusted eligible basis in excess of | Z52: 6666667 | AD52: plus | AE52: 1000000 | AI52: = | AJ52: =ROUNDDOWN(MAX(0,$N$52*(IF(SUM(AC43:AF48)>0,(SUM(AC43:AF48)-$Z$52)))+$AE$52),0) -> 1000000
V54: Maximum Cash-Out Developer Fee per §10327(c)(2)(B)(iii) | AJ54: =ROUNDDOWN(MIN(MAX($AJ$50,$AJ$52),6000000),0) -> 1000000
B57: UMR §8312(a)(2-3) for Projects without tax credits Max HCD Developer Fee
B58: (choose only one in the "a", "b", or "c", subsections)
B60: (a) | C60: Substantial rehab projects UMR §8312(a)(1)
C61: substantial rehab = construction cost for rehab work (excluding contractor profit and overhead) in excess of $48,000 per unit
C62: Number of units (include manager's unit)
C63: Number of units (include manager's unit) | Q63: 35000 | T63: each | V63: =IF($Q$62>29,$Q$63*30,+$Q$62*$Q$63) -> 0
C64: Units in excess of 30 at: | Q64: 13500 | T64: each | V64: =IF($Q$62<30,0,($Q$62-30)*$Q$64) -> 0
C65: Total substantial rehab | V65: =+$V$63+$V$64 -> 0
B67: (b) | C67: Acquisition and rehab projects UMR §8312(a)(2)
C68: with construction cost for rehab work (excluding contractor profit and overhead) between $11,500 - $38,000 per unit
C69: Number of units (include manager's unit)
C70: First 30 units at: | Q70: 16000 | T70: each | V70: =IF($Q$69>29,$Q$70*30,+$Q$69*$Q$70) -> 0
C71: Units in excess of 30 at: | Q71: 7500 | T71: each | V71: =IF($Q$69<30,0,($Q$69-30)*$Q$71) -> 0
C72: Total acquisition and non-substantial rehab | V72: =+$V$70+$V$71 -> 0
B74: (c) | C74: All other projects UMR §8312(a)(3)
C75: Number of units (include manager's unit)
C76: Total other at: | Q76: 2000 | T76: per unit | V76: =+$Q$75*$Q$76 -> 0
B78: Maximum allowable Developer Fee | AJ78: =IF(vmDF="No Tax Credits",MIN(MAX($V$65,$V$72,$V$76)),0) -> 0
B80: End of Document

Sheet Selection Criteria - Scoring (hidden)
B2: Selection Criteria §403(a)
B3: 100 Points Max (points in blue shaded cells) | AG3: Total Score | AL3: =AL4+AL10+AL26 -> 0
B4: (1) Priority - 25 Points Max | AL4: =SUM(AL5:AM6)+MAX(AL7,AL8,AL9) -> 0
B5: (A) Population: Is the Applicant a county that has a population of 200,000 or less within the unincorporated areas of the county? - 5 points | AL5: =IF(AJ5="Yes",5,0) -> 0
B6: (B) Prior Award: Did the Applicant receive an award based on the formula specified in 42 USC, Section 5306 in 2016? 5 points | AL6: =IF(AJ6="No",5,0) -> 0
B7: (C)(i) Assistance for Homeless Persons through Program Activities: Application will assist persons experiencing or At risk of homelessness, including but not limited to, through programs providing rapid rehousing, or rental assistance, or operating assistance to navigation centers? - 15 points; OR | AL7: =IF(AJ7="Yes",15,0) -> 0
B8: (C)(ii) Assistance for Homeless Persons through Development of Navigation Centers: Application is for construction of a navigation center(s)? - 15 points; OR | AL8: =IF(AJ8="Yes",15,0) -> 0
B9: (C)(ii) Assistance for Homeless Persons through Rental Projects: Application is for the new construction, rehabilitation, or preservation of permanent or transitional rental housing in which all or at least 10% of the units are restricted to occupancy by tenants who are homeless or At risk of homelessness? - 15 points | AL9: =IF(AJ9="Yes",15,0) -> 0
B10: (2) Evaluation Criteria - 75 Points Max | AL10: =AL11+AL12 -> 0
B11: (A) Community Need: Select the rate (percentage) of households experiencing the most severe housing need according to the most recent HUD CHAS dataset in the Applicant Local Government - 30 points max | AL11: =IF(AJ11="",0,IF(AJ11>=0.36,30,IF(AJ11>=0.2,20,10))) -> 0
B12: (B) Applicant Administrative Experience: (i) Applicants with prior experience in the past five years from the NOFA date administering local, state or federal affordable housing or community development programs or who have entered into a contract with an entity with prior experience in the past five years from the NOFA date in the implementation of local, state, or federal affordable housing or community development programs - 15 points max NOTE: Data must be entered in all fields to earn points. | AL12: =IF(AN12>=9,15,IF(AN12>=6,10,IF(AN12>=3,5,0))) -> 0 | AN12: =SUM(AN14:AN25) -> 0
B13: Name of Affordable Housing or Community Development Program | M13: Program Type | P13: Program Description | Z13: Who Administers the Program | AE13: If Contracted with an Entity, enter Entity Name | AK13: Date Completed | AN13: 2025-05-01 | AO13: =DATE(YEAR(AN13)-5,MONTH(AN13),DAY(AN13)) -> 2020-05-01
B14: 1 | AN14: =IF(AND(C14<>"",P14<>"",AK14<>"",AK14>$AO$13,AK14<$AN$13),1,0) -> 0
B15: 2 | AN15: =IF(AND(C15<>"",P15<>"",AK15<>"",AK15>$AO$13,AK15<$AN$13),1,0) -> 0
B16: 3 | AN16: 0
B17: 4 | AN17: 0
B18: 5 | AN18: 0
B19: 6 | AN19: 0
B20: 7 | AN20: 0
B21: 8 | AN21: 0
B22: 9 | AN22: 0
B23: 10 | AN23: 0
B24: 11 | AN24: 0
B25: 12 | AN25: 0
B26: (C) Demonstrated Capacity: 30 points max NOTE: Data must be entered in all fields below to earn points. | AL26: =MAX(AL27,AL38,AL47) -> 0
B27: (i)(a) Sponsor experience in affordable housing development and ownership in the past five years from the NOFA date - 30 points max; OR | AL27: =IF(AN28>=6,30,IF(AN28>=4,20,IF(AN28>=2,10,0))) -> 0
B28: Name of Affordable Rental Housing Development | M28: Project Address and City | V28: Currently owned by the Co-Applicant | AB28: Had comprehensive development responsibilities | AH28: Project Units | AK28: Date Completed | AN28: =SUM(AN29:AN36) -> 0
B29: 1 | AN29: =IF(AND(V29="Yes",AB29="Yes",AK29<>""),1,0) -> 0
B30: 2 | AN30: =IF(AND(V30="Yes",AB30="Yes",AK30<>""),1,0) -> 0
B31: 3 | AN31: =IF(AND(V31="Yes",AB31="Yes",AK31<>""),1,0) -> 0
B32: 4 | AN32: =IF(AND(V32="Yes",AB32="Yes",AK32<>""),1,0) -> 0
B33: 5 | AN33: 0
B34: 6 | AN34: 0
B35: 7 | AN35: 0
B36: 8 | AN36: 0
B37: File Name: | E37: RHD Comp1, RHD Comp2, RHD Comp3, etc… | M37: Document with Notice of Completion, Placed in Service, Certificate of Occupancy or equivalent. | AG37: Uploaded to HCD?
B38: (i)(b) Navigation center development and ownership experience of Applicant or Co-Applicant (for development and operation of these facilities) in the past five years from the NOFA date - 30 points max; OR | AL38: =IF(AN39=3,30,IF(AN39=4,30,IF(AN39=5,30,IF(AN39=2,20,IF(AN39=1,10,0))))) -> 0
B39: Name of Navigation Center | M39: Project Address and City | V39: Currently operated by the Applicant or Co-Applicant | AB39: Had comprehensive development responsibilities | AH39: Project Beds | AK39: Date Completed | AN39: =SUM(AN40:AN44) -> 0
B40: 1 | AN40: =IF(AND(V40="Yes",AB40="Yes",AK40<>"",AK40>$AO$13,AK40<$AN$13),1,0) -> 0
B41: 2 | AN41: =IF(AND(V41="Yes",AB41="Yes",AK41<>"",AK41>$AO$13,AK41<$AN$13),1,0) -> 0
B42: 3 | AN42: 0
B43: 4 | AN43: 0
B44: 5 | AN44: =IF(AND(V44="Yes",AB44="Yes",AK44<>"",AK44>$AO$13,AK44<$AN$13),1,0) -> 0
B45: File Name: | E45: NC1, NC2, NC3 | M45: Narrative description of Development/Operating Experience to document experience for each project listed above. | AG45: Uploaded to HCD?
B46: File Name: | E46: NC Comp1, NC Comp2, NC Comp3, etc… | M46: Document with Notice of Completion, Placed in Service, Certificate of Occupancy or equivalent. | AG46: Uploaded to HCD?
B47: (i)(c) Program Operator experience (for non-development Activities) in the past five years from the NOFA date - 30 points max | AL47: =IF(AP47>=9,30,IF(AO47+AP47>=6,20,IF(AN47+AO47+AP47>=3,10,0))) -> 0 | AN47: =SUM(AN49:AN60) -> 0 | AO47: =SUM(AO49:AO60) -> 0 | AP47: =SUM(AP49:AP60) -> 0
B48: Name and Description of Program that Applicant or Co-Applicant has Operated | Y48: Program Address and City | AH48: Total Program Funding Amount | AN48: Less than $750,000 | AO48: Between $750,000 and $1,000,000 | AP48: More than $1,000,000
B49: 1 | AN49: =IF(AND(C49<>"",AH49=$AN$48),1,0) -> 0 | AO49: =IF(AND(C49<>"",AH49=$AO$48),1,0) -> 0 | AP49: =IF(AND(C49<>"",AH49=$AP$48),1,0) -> 0
B50: 2 | AN50: =IF(AND(C50<>"",AH50=$AN$48),1,0) -> 0 | AO50: =IF(AND(C50<>"",AH50=$AO$48),1,0) -> 0 | AP50: =IF(AND(C50<>"",AH50=$AP$48),1,0) -> 0
B51: 3 | AN51: 0 | AO51: 0 | AP51: 0
B52: 4 | AN52: 0 | AO52: 0 | AP52: 0
B53: 5 | AN53: 0 | AO53: 0 | AP53: 0
B54: 6 | AN54: 0 | AO54: 0 | AP54: 0
B55: 7 | AN55: 0 | AO55: 0 | AP55: 0
B56: 8 | AN56: =IF(AND(C56<>"",AH56=$AN$48),1,0) -> 0 | AO56: =IF(AND(C56<>"",AH56=$AO$48),1,0) -> 0 | AP56: =IF(AND(C56<>"",AH56=$AP$48),1,0) -> 0
B57: 9 | AN57: 0 | AO57: 0 | AP57: 0
B58: 10 | AN58: 0 | AO58: 0 | AP58: 0
B59: 11 | AN59: 0 | AO59: 0 | AP59: 0
B60: 12 | AN60: 0 | AO60: 0 | AP60: 0
B61: File Name: | E61: Operator1, Operator2, Operator3, etc. | M61: Narrative description of Program Operating Experience to document experience for each program listed above. | AG61: Uploaded to HCD?
B63: End of Document

Sheet Certifications & Legal Status (hidden)
B2: Certifications
B3: State of California
B4: On behalf of the entity identified in the signature block below, I certify that:
B5: 1. The information, statements and attachments included in this application are, to the best of my knowledge and belief, true and correct.
B6: 2. I possess the legal authority to submit this application on behalf of the entity identified in the signature block.
B7: 3. The following is a complete disclosure of all identities of interest -- of all persons or entities, including affiliates, that will provide goods or services to the Project either (a) in one or more capacity or (b) that qualify as a "Related Party" to any person or entity that will provide goods or services to the project. "Related Party" is defined in Section 10302 of the California Code of Regulations (TCAC Regulations):
B9: 4. As of the date of application, the Project, or the real property on which the Project is proposed (Property) is not part to or the subject of any claim or action at the State or Federal appellate level.
B10: 5. I have disclosed and described below any claim or action undertaken which affects or potentially affects the feasibility of the Project.
B11: 6. The identified public owner of the facility which is responsible for the long-term operation and maintenance of the Project has approved the technical feasibility of the proposed Project.
B12: In addition, I acknowledge that all information in this application and attachments is public, and may be disclosed by the State.
B14: Printed Name and Title of Signatory | V14: Signature | AL14: Date
B16: Legal Disclosure
B17: For purposes of the following questions, and with the exceptions noted below, the term “applicant” shall include the applicant and joint applicant, and any subsidiary of the applicant or joint applicant if the subsidiary is involved in (for example, as a guarantor) or will be benefited by the application or the Project.
B18: In addition to each of these entities themselves, the term “applicant” shall also include the direct and indirect holders of more than ten percent (10%) of the ownership interests in the entity, as well as the officers, directors, principals and senior executives of the entity if the entity is a corporation, the general and limited partners of the entity if the entity is a partnership, and the members or managers of the entity if the entity is a limited liability company. For projects using tax-exempt bonds, it shall also include the individual who will be executing the bond purchase agreement.
B19: The following questions must be responded to for each entity and person qualifying as an "applicant," or "joint applicant" as defined above.
B20: Exceptions:
B21: Public entity applicants without an ownership interest in the proposed project, including but not limited to cities, counties, and joint powers authorities with 100 or more members, are not required to respond to this questionnaire.
B22: Members of the boards of directors of non-profit corporations, including officers of the boards, are also not required to respond. However, chief executive officers (Executive Directors, Chief Executive Officers, Presidents or their equivalent) must respond, as must chief financial officers (Treasurers, Chief Financial Officers, or their equivalent).
B23: Civil Matters
B24: 1. Has the applicant filed a bankruptcy or receivership case or had a bankruptcy or receivership action commenced against it, defaulted on a loan or been foreclosed against in past ten years?
B25: 2. Is the applicant currently a party to, or been notified that it may become a party to, any civil litigation that may materially and adversely affect (a) the financial condition of the applicant’s business, or (b) the project that is the subject of the application?
B26: 3. Have there been any administrative or civil settlements, decisions, or judgments against the applicant within the past ten years that materially and adversely affected (a) the financial condition of the applicant’s business, or (b) the project that is the subject of the application?
B27: 4. Is the applicant currently subject to, or been notified that it may become subject to, any civil or administrative proceeding, examination, or investigation by a local, state or federal licensing or accreditation agency, a local, state or federal taxing authority, or a local, state or federal regulatory or enforcement agency?
B28: 5. In the past ten years, has the applicant been subject to any civil or administrative proceeding, examination, or investigation by a local, state or federal licensing or accreditation agency, a local, state or federal taxing authority, or a local, state or federal regulatory or enforcement agency that resulted in a settlement, decision, or judgment?
B29: Criminal Matters
B30: 6. Is the applicant currently a party to, or the subject of, or been notified that it may become a party to or the subject of, any criminal litigation, proceeding, charge, complaint, examination or investigation, of any kind, involving, or that could result in, felony charges against the applicant?
B31: 7. Is the applicant currently a party to, or the subject of, or been notified that it may become a party to or the subject of, any criminal litigation, proceeding, charge, complaint, examination or investigation, of any kind, involving, or that could result in, misdemeanor charges against the applicant for matters relating to the conduct of the applicant’s business?
B32: 8. Is the applicant currently a party to, or the subject of, or been notified that it may become a party to or the subject of, any criminal litigation, proceeding, charge, complaint, examination or investigation, of any kind, involving, or that could result in, criminal charges (whether felony or misdemeanor) against the applicant for any financial or fraud related crime?
B33: 9. Is the applicant currently a party to, or the subject of, or been notified that it may become a party to or the subject of, any criminal litigation, proceeding, charge, complaint, examination or investigation, of any kind, that could materially affect the financial condition of the applicant’s business?
B34: 10. Within the past ten years, has the applicant been convicted of any felony?
B35: 11. Within the past ten years, has the applicant been convicted of any misdemeanor related to the conduct of the applicant’s business?
B36: 12. Within the past ten years, has the applicant been convicted of any misdemeanor for any financial or fraud related crime?
B37: Please provide a letter of explanation if you responded "Yes" to any of the questions above.
B39: Printed Name of Applicant or Joint Applicant | V39: Signature of Applicant or Joint Applicant | AL39: Date
B42: Printed Name of Signatory | V42: Printed Title of Signatory

Sheet Env & Land Use (hidden)
B2: Verification of Environmental Review & Land Use Entitlements
B3: TO THE APPLICANT: Submit this form to the Agency or Department of local government responsible for administration of the items listed. This form may be submitted to more than one Agency or Department, if necessary. Applicants need only submit one completed form per locality. If the NEPA Responsible Entity is not a local government, submit a copy of this form to the appropriate NEPA Responsible Entity. If an item is not required, include the reason why in the box provided.
B4: Applicant
B5: Entity Name | AB5: Applicant Type
B6: Address | Y6: City | AF6: State | AI6: Zip
B7: Rental Project or Navigation Center
B8: Project Name | X8: Project County
B9: Address | Y9: City | AF9: State | AI9: Zip
B10: Census Tract | L10: APN | U10: Census Tract | AE10: APN
B11: Environmental Review
B12: To the Local Jurisdiction or NEPA Responsible Entity: The Applicant named above will submit an application to the State of California, Department of Housing and Community Development, requesting funding for the project named above under the PLHA Program. Projects will be evaluated based upon readiness. Please answer the following questions:
B13: Is this Rental Project or Navigation Center approved "by-right"?
B14: This form must be completed in its entirety regardless of the answer to the preceding question.
B15: All Environmental Clearances NEPA and California Environmental Quality Act (CEQA) necessary to begin construction: | L15: Not Required for this Project | P15: Has a Negative Declaration been issued? | T15: Final Date of Public Comment Period | Y15: Date(s) EIR Certified / Notice of Determination filed | AD15: Date Appeal Period Ends | AI15: Have any appeals been filed?
B16: NEPA
B17: CEQA
B18: In the box below, explain why any items are not required and include documentation, if applicable:
B20: Signature Block for Environmental Review
B21: I certify that the information on this form is true and correct to the best of my knowledge. | Z21: Date:
B22: Printed name of party completing form: | U22: Signature of party completing form:
B23: Title of party completing form: | U23: Agency and/or Dept. name:
B24: Agency/Dept. Address | W24: City | AF24: State | AI24: Zip
B25: File Name: | E25: Auth to Use Grant Funds | M25: For National Environmental Policy Act (NEPA) only, provide a copy of the HUD 7015.16 "Authority To Use Grant Funds" or clarify current status of the issuance of HUD form. | AG25: Uploaded to HCD?
B26: File Name: | E26: Environmental | M26: Provide a copy of all environmental clearances or Notice of Exemption. | AG26: Uploaded to HCD?
B27: File Name: | E27: Environmental Verify | M27: Provide a PDF copy of this worksheet with the wet signature of the person(s) completing the Environmental Review. | AG27: Uploaded to HCD?
B28: Land Use Entitlements (indicate below the status of the following local approvals)
B29: All necessary and discretionary public land use approvals except building permits and other ministerial approvals are: | O29: Not Required for this Project | T29: Project is consistent with local planning documents & zoning ordinances | AB29: An Application has been submitted, accepted and deemed complete for processing. | AK29: Date Approved
B30: General Plan Amendment:
B31: Site Plan Review:
B32: Zoning Approval:
B33: Conditional Use Permits:
B34: Density Bonus:
B35: Other Variances:
B36: Other Variances:
B37: Other Variances:
B38: Other Variances:
B39: Other Variances:
B40: In the box below, explain why any items are not required and include documentation, if applicable:
B42: Signature Block for Land Use Entitlements
B43: I certify that the information on this form is true and correct to the best of my knowledge. | Z43: Date:
B44: Printed name of party completing form: | U44: Signature of party completing form:
B45: Title of party completing form: | U45: Agency and/or Dept. name:
B46: Agency/Dept. Address | W46: City | AD46: State | AI46: Zip
B47: File Name: | E47: Land Use Verify | M47: Provide a PDF copy of this sheet with the wet signature of the person(s) completing the Land Use Entitlements section. | AG47: Uploaded to HCD?

Sheet Sponsor Org Docs (hidden)
B2: Entity Organizational Documents
B4: Organizational Documents
B5: The following is intended as a brief summary of legal documents commonly required to verify the legal authority of the private entity or entities applying to HCD for an Award of funds and does not apply to public applicants. Documents required to apply for funds (threshold requirements) are legally distinct from those required to enter into a standard agreement or to receive bonus points. For projects receiving an Award of HCD funds, additional documents, or corrections, may be required prior to execution of the Standard Agreement.
B7: Organizational Charts
B8: Complete organizational charts are required for the Sponsor/Recipient, Borrower, MGP and AGP (if different from the Sponsor).
B10: Corporate Entities
B11: Articles of Incorporation (Corp. Code §154, 200 and 202) as certified by the CA Secretary of State. Bylaws and any amendments thereto (Corp. Code §207(b), 211 and 212). Certificate of Amendment of Articles of Incorporation (Corp. Code §900-910 (general stock), §5810-5820 (public benefit and religious corporations), §7810-7820 (mutual benefit corporations), or §12500-12510 (general cooperative corporations)) as applicable. Restated Articles of Incorporation (Corp. Code §901, 906, 910 (general stock), §5811, 5815, 5819 (public benefit and religious corporations), §7811, 7815 and 7819 (mutual benefit corporations) and §12501, 12506 and 12510 (general cooperative corporations)) as applicable. Statement of Information (CA Secretary of State form SI-100 or SI-200). Shareholder Agreements (Corp. Code §186) if applicable. Certificate of Good Standing certified by Secretary of State. Certificate of Good Standing must be dated 30 days or less from the application due date.
B13: Limited Liability Companies
B14: Articles of Organization (CA Secretary of State form LLC-1). Certificate of Amendment (CA Secretary of State form LLC-2) if applicable. Restated Articles of Organization (CA Secretary of State form LLC-10) if applicable. Certificate of Correction (CA Secretary of State form LLC-11) if applicable. Statement of Information (CA Secretary of State form LLC-12 or LLC-12NC). Operating Agreement (Corp. Code §17707.02(s) and 17701.10). Certificate of Good Standing certified by Secretary of State. Certificate of Good Standing must be dated 30 days or less from the application due date.
B16: Limited Partnerships
B17: Certificate of Limited Partnership (CA Secretary of State form LP-1). Amendment to Certificate of Limited Partnership (CA Secretary of State form LP-2) if applicable. Certificate of Correction (CA Secretary of State form LP-2) if applicable. Limited Partnership Agreement (CA Corp. Code §15901.02(x) and 15901.10). Amended and Restated Limited Partnership Agreement. Certificate of Good Standing certified by Secretary of State.
B19: Tribal Entity
B20: Tribe Formation Documents (Constitution, Charters, etc.). Federal Register of Indian Entities Recognized (81 Fed Reg. 26826) if applicable. BIA Federal Acknowledgment Petitioner List (CFR Section 83.1 of Title 25) if applicable. Contact List maintained by the Native American Heritage Commission (GC Section 65352.3) if applicable.
B22: End of Document

Sheet Application Support (hidden)
B2: Application Development Team (ADT) Support Form
B3: For application related issues/questions only complete the "yellow" cells in the form below and email a copy to: appsupport@hcd.ca.gov & cplha@hcd.ca.gov . A member of the Application Development Team will respond to your request ASAP.
B4: Full Name: | X4: Date Requested: | AF4: Application Version Date:
B5: Organization: | Q5: Email: | AD5: Contact Phone:
B6: Justification: | AO6: PLHA Coverpage
B7: Issue # | D7: Program Name & Round | K7: Section | Q7: Cell# | S7: Update/Comment | AE7: Urgency | AH7: ADT Status | AK7: Status Date | AO7: Overview
B8: 1 | AO8: Legislative Contacts
B9: 2 | AO9: Annual Operating Budget
B10: 3 | AO10: Development Info
B11: 4 | AO11: Dev Budget - Navigation Center
B12: 5 | AO12: Rental Development Team
B13: 6 | AO13: Unit Mix
B14: 7 | AO14: Dev Sources
B15: 8 | AO15: Dev Budget
B16: 9 | AO16: TBL and HIgh Cost Test
B17: 10 | AO17: Dev Fee 2021
B18: 11 | AO18: Supportive Services Costs
B19: 12 | AO19: Operating
B20: 13 | AO20: Reserves
B21: 14 | AO21: Cash Flow
B22: 15 | AO22: Certifications & Legal Status
AO23: Env & Land Use
B24: End of Document | AO24: Selection Criteria - Scoring

Sheet Rent Limits (hidden)
A1: County | B1: 1 Person | C1: 2 Person | D1: 3 Person | E1: 4 Person | F1: 5 Person | G1: 6 Person | H1: 7 Person | I1: 8 Person | J1: 0 | K1: 1 | L1: 2 | M1: 3 | N1: 4 | O1: 5 | Q1: 2025 Income Limits
A2: Alameda15% AMI | B2: =B9*2*0.15 -> 16785 | C2: =C9*2*0.15 -> 19185 | D2: =D9*2*0.15 -> 21585 | E2: =E9*2*0.15 -> 23970 | F2: =F9*2*0.15 -> 25890 | G2: =G9*2*0.15 -> 27810 | H2: 29730 | I2: 31650 | J2: =TRUNC(B2/12*0.3) -> 419 | K2: =TRUNC((B2+C2)/2/12*0.3) -> 449 | L2: =TRUNC((D2)/12*0.3) -> 539 | M2: =TRUNC(((E2+F2)/2)/12*0.3) -> 623 | N2: =TRUNC(G2/12*0.3) -> 695 | O2: =TRUNC(((H2+I2)/2)/12*0.3) -> 767 | Q2: Alameda50% AMI | R2: 55950 | S2: 63950 | T2: 71950 | U2: 79900 | V2: 86300 | W2: 92700 | X2: 99100 | Y2: 105500
A3: Alameda20% AMI | B3: =B9*2*0.2 -> 22380 | C3: =C9*2*0.2 -> 25580 | D3: 28780 | E3: 31960 | F3: 34520 | G3: 37080 | H3: 39640 | I3: 42200 | J3: 559 | K3: 599 | L3: 719 | M3: 831 | N3: 927 | O3: 1023 | Q3: Alpine50% AMI | R3: 40400 | S3: 46150 | T3: 51900 | U3: 57700 | V3: 62300 | W3: 66950 | X3: 71550 | Y3: 76150
A4: Alameda25% AMI | B4: =B9*2*0.25 -> 27975 | C4: =C9*2*0.25 -> 31975 | D4: 35975 | E4: 39950 | F4: 43150 | G4: 46350 | H4: 49550 | I4: 52750 | J4: 699 | K4: 749 | L4: 899 | M4: 1038 | N4: 1158 | O4: 1278 | Q4: Amador50% AMI | R4: 38500 | S4: 44000 | T4: 49500 | U4: 54950 | V4: 59350 | W4: 63750 | X4: 68150 | Y4: 72550
A5: Alameda30% AMI | B5: =B9*2*0.3 -> 33570 | C5: =C9*2*0.3 -> 38370 | D5: 43170 | E5: 47940 | F5: 51780 | G5: 55620 | H5: 59460 | I5: 63300 | J5: 839 | K5: 899 | L5: 1079 | M5: 1246 | N5: 1390 | O5: 1534 | Q5: Butte50% AMI | R5: 32900 | S5: 37600 | T5: 42300 | U5: 46950 | V5: 50750 | W5: 54500 | X5: 58250 | Y5: 62000
A6: Alameda35% AMI | B6: =B9*2*0.35 -> 39165 | C6: =C9*2*0.35 -> 44765 | D6: 50365 | E6: 55930 | F6: 60410 | G6: 64890 | H6: 69370 | I6: 73850 | J6: 979 | K6: 1049 | L6: 1259 | M6: 1454 | N6: 1622 | O6: 1790 | Q6: Calaveras50% AMI | R6: 35550 | S6: 40600 | T6: 45700 | U6: 50750 | V6: 54850 | W6: 58900 | X6: 62950 | Y6: 67000
A7: Alameda40% AMI | B7: =B9*2*0.4 -> 44760 | C7: =C9*2*0.4 -> 51160 | D7: 57560 | E7: 63920 | F7: 69040 | G7: 74160 | H7: 79280 | I7: 84400 | J7: 1119 | K7: 1199 | L7: 1439 | M7: 1662 | N7: 1854 | O7: 2046 | Q7: Colusa50% AMI | R7: 33600 | S7: 38400 | T7: 43200 | U7: 48000 | V7: 51850 | W7: 55700 | X7: 59500 | Y7: 63400
A8: Alameda45% AMI | B8: =B9*2*0.45 -> 50355 | C8: =C9*2*0.45 -> 57555 | D8: 64755 | E8: 71910 | F8: 77670 | G8: 83430 | H8: 89190 | I8: 94950 | J8: 1258 | K8: 1348 | L8: 1618 | M8: 1869 | N8: 2085 | O8: 2301 | Q8: Contra Costa50% AMI | R8: 55950 | S8: 63950 | T8: 71950 | U8: 79900 | V8: 86300 | W8: 92700 | X8: 99100 | Y8: 105500
A9: Alameda50% AMI | B9: =VLOOKUP(A9,$Q$2:$Y$59,2,FALSE) -> 55950 | C9: =VLOOKUP(A9,$Q$2:$Y$59,3,FALSE) -> 63950 | D9: =VLOOKUP(A9,$Q$2:$Y$59,4,FALSE) -> 71950 | E9: =VLOOKUP(A9,$Q$2:$Y$59,5,FALSE) -> 79900 | F9: =VLOOKUP(A9,$Q$2:$Y$59,6,FALSE) -> 86300 | G9: =VLOOKUP(A9,$Q$2:$Y$59,7,FALSE) -> 92700 | H9: =VLOOKUP(A9,$Q$2:$Y$59,8,FALSE) -> 99100 | I9: =VLOOKUP(A9,$Q$2:$Y$59,9,FALSE) -> 105500 | J9: =TRUNC(B9/12*0.3) -> 1398 | K9: =TRUNC((B9+C9)/2/12*0.3) -> 1498 | L9: =TRUNC((D9)/12*0.3) -> 1798 | M9: =TRUNC(((E9+F9)/2)/12*0.3) -> 2077 | N9: =TRUNC(G9/12*0.3) -> 2317 | O9: =TRUNC(((H9+I9)/2)/12*0.3) -> 2557 | Q9: Del Norte50% AMI | R9: 32900 | S9: 37600 | T9: 42300 | U9: 46950 | V9: 50750 | W9: 54500 | X9: 58250 | Y9: 62000
A10: Alameda55% AMI | B10: =B9*2*0.55 -> 61545 | C10: =C9*2*0.55 -> 70345 | D10: 79145 | E10: 87890 | F10: 94930 | G10: 101970 | H10: 109010 | I10: 116050 | J10: =TRUNC(B10/12*0.3) -> 1538 | K10: =TRUNC((B10+C10)/2/12*0.3) -> 1648 | L10: =TRUNC((D10)/12*0.3) -> 1978 | M10: =TRUNC(((E10+F10)/2)/12*0.3) -> 2285 | N10: =TRUNC(G10/12*0.3) -> 2549 | O10: =TRUNC(((H10+I10)/2)/12*0.3) -> 2813 | Q10: El Dorado50% AMI | R10: 45050 | S10: 51450 | T10: 57900 | U10: 64300 | V10: 69450 | W10: 74600 | X10: 79750 | Y10: 84900
A11: Alameda60% AMI | B11: =B9*2*0.6 -> 67140 | C11: =C9*2*0.6 -> 76740 | D11: 86340 | E11: 95880 | F11: 103560 | G11: 111240 | H11: 118920 | I11: 126600 | J11: 1678 | K11: 1798 | L11: 2158 | M11: 2493 | N11: 2781 | O11: 3069 | Q11: Fresno50% AMI | R11: 32900 | S11: 37600 | T11: 42300 | U11: 46950 | V11: 50750 | W11: 54500 | X11: 58250 | Y11: 62000
A12: Alameda65% AMI | B12: =B9*2*0.65 -> 72735 | C12: =C9*2*0.65 -> 83135 | D12: 93535 | E12: 103870 | F12: 112190 | G12: 120510 | H12: 128830 | I12: 137150 | J12: 1818 | K12: 1948 | L12: 2338 | M12: 2700 | N12: 3012 | O12: 3324 | Q12: Glenn50% AMI | R12: 32900 | S12: 37600 | T12: 42300 | U12: 46950 | V12: 50750 | W12: 54500 | X12: 58250 | Y12: 62000
A13: Alameda70% AMI | B13: =B9*2*0.7 -> 78330 | C13: =C9*2*0.7 -> 89530 | D13: 100730 | E13: 111860 | F13: 120820 | G13: 129780 | H13: 138740 | I13: 147700 | J13: 1958 | K13: 2098 | L13: 2518 | M13: 2908 | N13: 3244 | O13: 3580 | Q13: Humboldt50% AMI | R13: 32900 | S13: 37600 | T13: 42300 | U13: 46950 | V13: 50750 | W13: 54500 | X13: 58250 | Y13: 62000
A14: Alameda75% AMI | B14: =B9*2*0.75 -> 83925 | C14: =C9*2*0.75 -> 95925 | D14: 107925 | E14: 119850 | F14: 129450 | G14: 139050 | H14: 148650 | I14: 158250 | J14: 2098 | K14: 2248 | L14: 2698 | M14: 3116 | N14: 3476 | O14: 3836 | Q14: Imperial50% AMI | R14: 32900 | S14: 37600 | T14: 42300 | U14: 46950 | V14: 50750 | W14: 54500 | X14: 58250 | Y14: 62000
A15: Alameda80% AMI | B15: =B9*2*0.8 -> 89520 | C15: =C9*2*0.8 -> 102320 | D15: 115120 | E15: 127840 | F15: 138080 | G15: 148320 | H15: 158560 | I15: 168800 | J15: 2238 | K15: 2398 | L15: 2878 | M15: 3324 | N15: 3708 | O15: 4092 | Q15: Inyo50% AMI | R15: 33600 | S15: 38400 | T15: 43200 | U15: 48000 | V15: 51850 | W15: 55700 | X15: 59500 | Y15: 63400
A16: Alameda90% AMI | B16: =B9*2*0.9 -> 100710 | C16: =C9*2*0.9 -> 115110 | D16: 129510 | E16: 143820 | F16: 155340 | G16: 166860 | H16: 178380 | I16: 189900 | J16: 2517 | K16: 2697 | L16: 3237 | M16: 3739 | N16: 4171 | O16: 4603 | Q16: Kern50% AMI | R16: 32900 | S16: 37600 | T16: 42300 | U16: 46950 | V16: 50750 | W16: 54500 | X16: 58250 | Y16: 62000
A17: Alameda100% AMI | B17: =B9*2 -> 111900 | C17: =C9*2 -> 127900 | D17: 143900 | E17: 159800 | F17: 172600 | G17: 185400 | H17: 198200 | I17: 211000 | J17: =J9*2 -> 2796 | K17: =K9*2 -> 2996 | L17: 3596 | M17: 4154 | N17: 4634 | O17: 5114 | Q17: Kings50% AMI | R17: 32900 | S17: 37600 | T17: 42300 | U17: 46950 | V17: 50750 | W17: 54500 | X17: 58250 | Y17: 62000
A18: Alameda110% AMI | B18: =B9*2*1.1 -> 123090 | C18: =C9*2*1.1 -> 140690 | D18: 158290 | E18: 175780 | F18: 189860 | G18: 203940 | H18: 218020 | I18: 232100 | J18: 3077 | K18: 3297 | L18: 3957 | M18: 4570 | N18: 5098 | O18: 5626 | Q18: Lake50% AMI | R18: 32900 | S18: 37600 | T18: 42300 | U18: 46950 | V18: 50750 | W18: 54500 | X18: 58250 | Y18: 62000
A19: Alameda120% AMI | B19: =B9*2*1.2 -> 134280 | C19: =C9*2*1.2 -> 153480 | D19: 172680 | E19: 191760 | F19: 207120 | G19: 222480 | H19: 237840 | I19: 253200 | J19: 3357 | K19: 3597 | L19: 4317 | M19: 4986 | N19: 5562 | O19: 6138 | Q19: Lassen50% AMI | R19: 32900 | S19: 37600 | T19: 42300 | U19: 46950 | V19: 50750 | W19: 54500 | X19: 58250 | Y19: 62000
A20: Alpine15% AMI | B20: =B27*2*0.15 -> 12120 | C20: =C27*2*0.15 -> 13845 | D20: =D27*2*0.15 -> 15570 | E20: =E27*2*0.15 -> 17310 | F20: =F27*2*0.15 -> 18690 | G20: =G27*2*0.15 -> 20085 | H20: 21465 | I20: 22845 | J20: 303 | K20: 324 | L20: 389 | M20: 450 | N20: 502 | O20: 553 | Q20: Los Angeles50% AMI | R20: 53000 | S20: 60600 | T20: 68150 | U20: 75750 | V20: 81800 | W20: 87850 | X20: 93900 | Y20: 100000
A21: Alpine20% AMI | B21: =B27*2*0.2 -> 16160 | C21: =C27*2*0.2 -> 18460 | D21: 20760 | E21: 23080 | F21: 24920 | G21: 26780 | H21: 28620 | I21: 30460 | J21: 404 | K21: 432 | L21: 519 | M21: 600 | N21: 669 | O21: 738 | Q21: Madera50% AMI | R21: 32900 | S21: 37600 | T21: 42300 | U21: 46950 | V21: 50750 | W21: 54500 | X21: 58250 | Y21: 62000
A22: Alpine25% AMI | B22: =B27*2*0.25 -> 20200 | C22: =C27*2*0.25 -> 23075 | D22: 25950 | E22: 28850 | F22: 31150 | G22: 33475 | H22: 35775 | I22: 38075 | J22: 505 | K22: 540 | L22: 648 | M22: 750 | N22: 836 | O22: 923 | Q22: Marin50% AMI | R22: 67700 | S22: 77400 | T22: 87050 | U22: 96700 | V22: 104450 | W22: 112200 | X22: 119950 | Y22: 127650
A23: Alpine30% AMI | B23: =B27*2*0.3 -> 24240 | C23: =C27*2*0.3 -> 27690 | D23: 31140 | E23: 34620 | F23: 37380 | G23: 40170 | H23: 42930 | I23: 45690 | J23: 606 | K23: 649 | L23: 778 | M23: 900 | N23: 1004 | O23: 1107 | Q23: Mariposa50% AMI | R23: 32900 | S23: 37600 | T23: 42300 | U23: 46950 | V23: 50750 | W23: 54500 | X23: 58250 | Y23: 62000
A24: Alpine35% AMI | B24: =B27*2*0.35 -> 28280 | C24: =C27*2*0.35 -> 32305 | D24: 36330 | E24: 40390 | F24: 43610 | G24: 46865 | H24: 50085 | I24: 53305 | J24: 707 | K24: 757 | L24: 908 | M24: 1050 | N24: 1171 | O24: 1292 | Q24: Mendocino50% AMI | R24: 32900 | S24: 37600 | T24: 42300 | U24: 46950 | V24: 50750 | W24: 54500 | X24: 58250 | Y24: 62000
A25: Alpine40% AMI | B25: =B27*2*0.4 -> 32320 | C25: =C27*2*0.4 -> 36920 | D25: 41520 | E25: 46160 | F25: 49840 | G25: 53560 | H25: 57240 | I25: 60920 | J25: 808 | K25: 865 | L25: 1038 | M25: 1200 | N25: 1339 | O25: 1477 | Q25: Merced50% AMI | R25: 32900 | S25: 37600 | T25: 42300 | U25: 46950 | V25: 50750 | W25: 54500 | X25: 58250 | Y25: 62000
A26: Alpine45% AMI | B26: =B27*2*0.45 -> 36360 | C26: =C27*2*0.45 -> 41535 | D26: 46710 | E26: 51930 | F26: 56070 | G26: 60255 | H26: 64395 | I26: 68535 | J26: 909 | K26: 973 | L26: 1167 | M26: 1350 | N26: 1506 | O26: 1661 | Q26: Modoc50% AMI | R26: 32900 | S26: 37600 | T26: 42300 | U26: 46950 | V26: 50750 | W26: 54500 | X26: 58250 | Y26: 62000
A27: Alpine50% AMI | B27: =VLOOKUP(A27,$Q$2:$Y$59,2,FALSE) -> 40400 | C27: =VLOOKUP(A27,$Q$2:$Y$59,3,FALSE) -> 46150 | D27: =VLOOKUP(A27,$Q$2:$Y$59,4,FALSE) -> 51900 | E27: =VLOOKUP(A27,$Q$2:$Y$59,5,FALSE) -> 57700 | F27: =VLOOKUP(A27,$Q$2:$Y$59,6,FALSE) -> 62300 | G27: =VLOOKUP(A27,$Q$2:$Y$59,7,FALSE) -> 66950 | H27: =VLOOKUP(A27,$Q$2:$Y$59,8,FALSE) -> 71550 | I27: =VLOOKUP(A27,$Q$2:$Y$59,9,FALSE) -> 76150 | J27: =TRUNC(B27/12*0.3) -> 1010 | K27: =TRUNC((B27+C27)/2/12*0.3) -> 1081 | L27: =TRUNC((D27)/12*0.3) -> 1297 | M27: =TRUNC(((E27+F27)/2)/12*0.3) -> 1500 | N27: =TRUNC(G27/12*0.3) -> 1673 | O27: =TRUNC(((H27+I27)/2)/12*0.3) -> 1846 | Q27: Mono50% AMI | R27: 35700 | S27: 40850 | T27: 45900 | U27: 51050 | V27: 55100 | W27: 59200 | X27: 63300 | Y27: 67350
A28: Alpine55% AMI | B28: =B27*2*0.55 -> 44440 | C28: =C27*2*0.55 -> 50765 | D28: 57090 | E28: 63470 | F28: 68530 | G28: 73645 | H28: 78705 | I28: 83765 | J28: =TRUNC(B28/12*0.3) -> 1111 | K28: =TRUNC((B28+C28)/2/12*0.3) -> 1190 | L28: =TRUNC((D28)/12*0.3) -> 1427 | M28: =TRUNC(((E28+F28)/2)/12*0.3) -> 1650 | N28: =TRUNC(G28/12*0.3) -> 1841 | O28: =TRUNC(((H28+I28)/2)/12*0.3) -> 2030 | Q28: Monterey50% AMI | R28: 50600 | S28: 57850 | T28: 65100 | U28: 72300 | V28: 78100 | W28: 83850 | X28: 89650 | Y28: 95450
A29: Alpine60% AMI | B29: =B27*2*0.6 -> 48480 | C29: =C27*2*0.6 -> 55380 | D29: 62280 | E29: 69240 | F29: 74760 | G29: 80340 | H29: 85860 | I29: 91380 | J29: 1212 | K29: 1298 | L29: 1557 | M29: 1800 | N29: 2008 | O29: 2215 | Q29: Napa50% AMI | R29: 56100 | S29: 64100 | T29: 72150 | U29: 80150 | V29: 86600 | W29: 93000 | X29: 99400 | Y29: 105800
A30: Alpine65% AMI | B30: =B27*2*0.65 -> 52520 | C30: =C27*2*0.65 -> 59995 | D30: 67470 | E30: 75010 | F30: 80990 | G30: 87035 | H30: 93015 | I30: 98995 | J30: 1313 | K30: 1406 | L30: 1686 | M30: 1950 | N30: 2175 | O30: 2400 | Q30: Nevada50% AMI | R30: 39850 | S30: 45500 | T30: 51200 | U30: 56900 | V30: 61450 | W30: 66000 | X30: 70600 | Y30: 75150
A31: Alpine70% AMI | B31: =B27*2*0.7 -> 56560 | C31: =C27*2*0.7 -> 64610 | D31: 72660 | E31: 80780 | F31: 87220 | G31: 93730 | H31: 100170 | I31: 106610 | J31: 1414 | K31: 1514 | L31: 1816 | M31: 2100 | N31: 2343 | O31: 2584 | Q31: Orange50% AMI | R31: 59250 | S31: 67700 | T31: 76150 | U31: 84600 | V31: 91400 | W31: 98150 | X31: 104950 | Y31: 111700
A32: Alpine75% AMI | B32: =B27*2*0.75 -> 60600 | C32: =C27*2*0.75 -> 69225 | D32: 77850 | E32: 86550 | F32: 93450 | G32: 100425 | H32: 107325 | I32: 114225 | J32: 1515 | K32: 1622 | L32: 1946 | M32: 2250 | N32: 2510 | O32: 2769 | Q32: Placer50% AMI | R32: 45050 | S32: 51450 | T32: 57900 | U32: 64300 | V32: 69450 | W32: 74600 | X32: 79750 | Y32: 84900
A33: Alpine80% AMI | B33: =B27*2*0.8 -> 64640 | C33: =C27*2*0.8 -> 73840 | D33: 83040 | E33: 92320 | F33: 99680 | G33: 107120 | H33: 114480 | I33: 121840 | J33: 1616 | K33: 1731 | L33: 2076 | M33: 2400 | N33: 2678 | O33: 2954 | Q33: Plumas50% AMI | R33: 33400 | S33: 38150 | T33: 42900 | U33: 47650 | V33: 51500 | W33: 55300 | X33: 59100 | Y33: 62900
A34: Alpine90% AMI | B34: =B27*2*0.9 -> 72720 | C34: =C27*2*0.9 -> 83070 | D34: 93420 | E34: 103860 | F34: 112140 | G34: 120510 | H34: 128790 | I34: 137070 | J34: 1818 | K34: 1947 | L34: 2335 | M34: 2700 | N34: 3012 | O34: 3323 | Q34: Riverside50% AMI | R34: 39200 | S34: 44750 | T34: 50350 | U34: 55950 | V34: 60450 | W34: 64900 | X34: 69400 | Y34: 73850
A35: Alpine100% AMI | B35: =B27*2 -> 80800 | C35: =C27*2 -> 92300 | D35: 103800 | E35: 115400 | F35: 124600 | G35: 133900 | H35: 143100 | I35: 152300 | J35: =J27*2 -> 2020 | K35: =K27*2 -> 2162 | L35: 2594 | M35: 3000 | N35: 3346 | O35: 3692 | Q35: Sacramento50% AMI | R35: 45050 | S35: 51450 | T35: 57900 | U35: 64300 | V35: 69450 | W35: 74600 | X35: 79750 | Y35: 84900
A36: Alpine110% AMI | B36: =B27*2*1.1 -> 88880 | C36: =C27*2*1.1 -> 101530 | D36: 114180 | E36: 126940 | F36: 137060 | G36: 147290 | H36: 157410 | I36: 167530 | J36: =TRUNC(B36/12*0.3) -> 2222 | K36: =TRUNC((B36+C36)/2/12*0.3) -> 2380 | L36: =TRUNC((D36)/12*0.3) -> 2854 | M36: =TRUNC(((E36+F36)/2)/12*0.3) -> 3300 | N36: =TRUNC(G36/12*0.3) -> 3682 | O36: =TRUNC(((H36+I36)/2)/12*0.3) -> 4061 | Q36: San Benito50% AMI | R36: 46800 | S36: 53450 | T36: 60150 | U36: 66800 | V36: 72150 | W36: 77500 | X36: 82850 | Y36: 88200
A37: Alpine120% AMI | B37: =B27*2*1.2 -> 96960 | C37: =C27*2*1.2 -> 110760 | D37: 124560 | E37: 138480 | F37: 149520 | G37: 160680 | H37: 171720 | I37: 182760 | J37: 2424 | K37: 2596 | L37: 3114 | M37: 3600 | N37: 4017 | O37: 4431 | Q37: San Bernardino50% AMI | R37: 39200 | S37: 44750 | T37: 50350 | U37: 55950 | V37: 60450 | W37: 64900 | X37: 69400 | Y37: 73850
A38: Amador15% AMI | B38: =B45*2*0.15 -> 11550 | C38: =C45*2*0.15 -> 13200 | D38: =D45*2*0.15 -> 14850 | E38: =E45*2*0.15 -> 16485 | F38: =F45*2*0.15 -> 17805 | G38: =G45*2*0.15 -> 19125 | H38: 20445 | I38: 21765 | J38: 288 | K38: 309 | L38: 371 | M38: 428 | N38: 478 | O38: 527 | Q38: San Diego50% AMI | R38: 57900 | S38: 66150 | T38: 74450 | U38: 82700 | V38: 89350 | W38: 95950 | X38: 102550 | Y38: 109200
A39: Amador20% AMI | B39: =B45*2*0.2 -> 15400 | C39: =C45*2*0.2 -> 17600 | D39: 19800 | E39: 21980 | F39: 23740 | G39: 25500 | H39: 27260 | I39: 29020 | J39: 385 | K39: 412 | L39: 495 | M39: 571 | N39: 637 | O39: 703 | Q39: San Francisco50% AMI | R39: 67700 | S39: 77400 | T39: 87050 | U39: 96700 | V39: 104450 | W39: 112200 | X39: 119950 | Y39: 127650
A40: Amador25% AMI | B40: =B45*2*0.25 -> 19250 | C40: =C45*2*0.25 -> 22000 | D40: 24750 | E40: 27475 | F40: 29675 | G40: 31875 | H40: 34075 | I40: 36275 | J40: 481 | K40: 515 | L40: 618 | M40: 714 | N40: 796 | O40: 879 | Q40: San Joaquin50% AMI | R40: 36650 | S40: 41850 | T40: 47100 | U40: 52300 | V40: 56500 | W40: 60700 | X40: 64900 | Y40: 69050
A41: Amador30% AMI | B41: =B45*2*0.3 -> 23100 | C41: =C45*2*0.3 -> 26400 | D41: 29700 | E41: 32970 | F41: 35610 | G41: 38250 | H41: 40890 | I41: 43530 | J41: 577 | K41: 618 | L41: 742 | M41: 857 | N41: 956 | O41: 1055 | Q41: San Luis Obispo50% AMI | R41: 48650 | S41: 55600 | T41: 62550 | U41: 69500 | V41: 75050 | W41: 80650 | X41: 86200 | Y41: 91750
A42: Amador35% AMI | B42: =B45*2*0.35 -> 26950 | C42: =C45*2*0.35 -> 30800 | D42: 34650 | E42: 38465 | F42: 41545 | G42: 44625 | H42: 47705 | I42: 50785 | J42: 673 | K42: 721 | L42: 866 | M42: 1000 | N42: 1115 | O42: 1231 | Q42: San Mateo50% AMI | R42: 67700 | S42: 77400 | T42: 87050 | U42: 96700 | V42: 104450 | W42: 112200 | X42: 119950 | Y42: 127650
A43: Amador40% AMI | B43: =B45*2*0.4 -> 30800 | C43: =C45*2*0.4 -> 35200 | D43: 39600 | E43: 43960 | F43: 47480 | G43: 51000 | H43: 54520 | I43: 58040 | J43: 770 | K43: 825 | L43: 990 | M43: 1143 | N43: 1275 | O43: 1407 | Q43: Santa Barbara50% AMI | R43: 61800 | S43: 70600 | T43: 79450 | U43: 88250 | V43: 95350 | W43: 102400 | X43: 109450 | Y43: 116500
A44: Amador45% AMI | B44: =B45*2*0.45 -> 34650 | C44: =C45*2*0.45 -> 39600 | D44: 44550 | E44: 49455 | F44: 53415 | G44: 57375 | H44: 61335 | I44: 65295 | J44: 866 | K44: 928 | L44: 1113 | M44: 1285 | N44: 1434 | O44: 1582 | Q44: Santa Clara50% AMI | R44: 70350 | S44: 80400 | T44: 90450 | U44: 100450 | V44: 108500 | W44: 116550 | X44: 124600 | Y44: 132600
A45: Amador50% AMI | B45: =VLOOKUP(A45,$Q$2:$Y$59,2,FALSE) -> 38500 | C45: =VLOOKUP(A45,$Q$2:$Y$59,3,FALSE) -> 44000 | D45: =VLOOKUP(A45,$Q$2:$Y$59,4,FALSE) -> 49500 | E45: =VLOOKUP(A45,$Q$2:$Y$59,5,FALSE) -> 54950 | F45: =VLOOKUP(A45,$Q$2:$Y$59,6,FALSE) -> 59350 | G45: =VLOOKUP(A45,$Q$2:$Y$59,7,FALSE) -> 63750 | H45: =VLOOKUP(A45,$Q$2:$Y$59,8,FALSE) -> 68150 | I45: =VLOOKUP(A45,$Q$2:$Y$59,9,FALSE) -> 72550 | J45: =TRUNC(B45/12*0.3) -> 962 | K45: =TRUNC((B45+C45)/2/12*0.3) -> 1031 | L45: =TRUNC((D45)/12*0.3) -> 1237 | M45: =TRUNC(((E45+F45)/2)/12*0.3) -> 1428 | N45: =TRUNC(G45/12*0.3) -> 1593 | O45: =TRUNC(((H45+I45)/2)/12*0.3) -> 1758 | Q45: Santa Cruz50% AMI | R45: 69250 | S45: 79100 | T45: 89000 | U45: 98900 | V45: 106800 | W45: 114700 | X45: 122650 | Y45: 130550
A46: Amador55% AMI | B46: =B45*2*0.55 -> 42350 | C46: =C45*2*0.55 -> 48400 | D46: 54450 | E46: 60445 | F46: 65285 | G46: 70125 | H46: 74965 | I46: 79805 | J46: =TRUNC(B46/12*0.3) -> 1058 | K46: =TRUNC((B46+C46)/2/12*0.3) -> 1134 | L46: =TRUNC((D46)/12*0.3) -> 1361 | M46: =TRUNC(((E46+F46)/2)/12*0.3) -> 1571 | N46: =TRUNC(G46/12*0.3) -> 1753 | O46: =TRUNC(((H46+I46)/2)/12*0.3) -> 1934 | Q46: Shasta50% AMI | R46: 34050 | S46: 38900 | T46: 43800 | U46: 48650 | V46: 52550 | W46: 56450 | X46: 60350 | Y46: 64250
A47: Amador60% AMI | B47: =B45*2*0.6 -> 46200 | C47: =C45*2*0.6 -> 52800 | D47: 59400 | E47: 65940 | F47: 71220 | G47: 76500 | H47: 81780 | I47: 87060 | J47: 1155 | K47: 1237 | L47: 1485 | M47: 1714 | N47: 1912 | O47: 2110 | Q47: Sierra50% AMI | R47: 32900 | S47: 37600 | T47: 42300 | U47: 46950 | V47: 50750 | W47: 54500 | X47: 58250 | Y47: 62000
A48: Amador65% AMI | B48: =B45*2*0.65 -> 50050 | C48: =C45*2*0.65 -> 57200 | D48: 64350 | E48: 71435 | F48: 77155 | G48: 82875 | H48: 88595 | I48: 94315 | J48: 1251 | K48: 1340 | L48: 1608 | M48: 1857 | N48: 2071 | O48: 2286 | Q48: Siskiyou50% AMI | R48: 32900 | S48: 37600 | T48: 42300 | U48: 46950 | V48: 50750 | W48: 54500 | X48: 58250 | Y48: 62000
A49: Amador70% AMI | B49: =B45*2*0.7 -> 53900 | C49: =C45*2*0.7 -> 61600 | D49: 69300 | E49: 76930 | F49: 83090 | G49: 89250 | H49: 95410 | I49: 101570 | J49: 1347 | K49: 1443 | L49: 1732 | M49: 2000 | N49: 2231 | O49: 2462 | Q49: Solano50% AMI | R49: 48100 | S49: 54950 | T49: 61850 | U49: 68700 | V49: 74200 | W49: 79700 | X49: 85200 | Y49: 90700
A50: Amador75% AMI | B50: =B45*2*0.75 -> 57750 | C50: =C45*2*0.75 -> 66000 | D50: 74250 | E50: 82425 | F50: 89025 | G50: 95625 | H50: 102225 | I50: 108825 | J50: 1443 | K50: 1546 | L50: 1856 | M50: 2143 | N50: 2390 | O50: 2638 | Q50: Sonoma50% AMI | R50: 52850 | S50: 60400 | T50: 67950 | U50: 75500 | V50: 81550 | W50: 87600 | X50: 93650 | Y50: 99700
A51: Amador80% AMI | B51: =B45*2*0.8 -> 61600 | C51: =C45*2*0.8 -> 70400 | D51: 79200 | E51: 87920 | F51: 94960 | G51: 102000 | H51: 109040 | I51: 116080 | J51: 1540 | K51: 1650 | L51: 1980 | M51: 2286 | N51: 2550 | O51: 2814 | Q51: Stanislaus50% AMI | R51: 34500 | S51: 39400 | T51: 44350 | U51: 49250 | V51: 53200 | W51: 57150 | X51: 61100 | Y51: 65050
A52: Amador90% AMI | B52: =B45*2*0.9 -> 69300 | C52: =C45*2*0.9 -> 79200 | D52: 89100 | E52: 98910 | F52: 106830 | G52: 114750 | H52: 122670 | I52: 130590 | J52: 1732 | K52: 1856 | L52: 2227 | M52: 2571 | N52: 2868 | O52: 3165 | Q52: Sutter50% AMI | R52: 33600 | S52: 38400 | T52: 43200 | U52: 48000 | V52: 51850 | W52: 55700 | X52: 59500 | Y52: 63400
A53: Amador100% AMI | B53: =B45*2 -> 77000 | C53: =C45*2 -> 88000 | D53: 99000 | E53: 109900 | F53: 118700 | G53: 127500 | H53: 136300 | I53: 145100 | J53: =J45*2 -> 1924 | K53: =K45*2 -> 2062 | L53: 2474 | M53: 2856 | N53: 3186 | O53: 3516 | Q53: Tehama50% AMI | R53: 32900 | S53: 37600 | T53: 42300 | U53: 46950 | V53: 50750 | W53: 54500 | X53: 58250 | Y53: 62000
A54: Amador110% AMI | B54: =B45*2*1.1 -> 84700 | C54: =C45*2*1.1 -> 96800 | D54: 108900 | E54: 120890 | F54: 130570 | G54: 140250 | H54: 149930 | I54: 159610 | J54: =TRUNC(B54/12*0.3) -> 2117 | K54: =TRUNC((B54+C54)/2/12*0.3) -> 2268 | L54: =TRUNC((D54)/12*0.3) -> 2722 | M54: =TRUNC(((E54+F54)/2)/12*0.3) -> 3143 | N54: =TRUNC(G54/12*0.3) -> 3506 | O54: =TRUNC(((H54+I54)/2)/12*0.3) -> 3869 | Q54: Trinity50% AMI | R54: 32900 | S54: 37600 | T54: 42300 | U54: 46950 | V54: 50750 | W54: 54500 | X54: 58250 | Y54: 62000
A55: Amador120% AMI | B55: =B45*2*1.2 -> 92400 | C55: =C45*2*1.2 -> 105600 | D55: 118800 | E55: 131880 | F55: 142440 | G55: 153000 | H55: 163560 | I55: 174120 | J55: 2310 | K55: 2475 | L55: 2970 | M55: 3429 | N55: 3825 | O55: 4221 | Q55: Tulare50% AMI | R55: 32900 | S55: 37600 | T55: 42300 | U55: 46950 | V55: 50750 | W55: 54500 | X55: 58250 | Y55: 62000
A56: Butte15% AMI | B56: =B63*2*0.15 -> 9870 | C56: =C63*2*0.15 -> 11280 | D56: =D63*2*0.15 -> 12690 | E56: =E63*2*0.15 -> 14085 | F56: =F63*2*0.15 -> 15225 | G56: =G63*2*0.15 -> 16350 | H56: 17475 | I56: 18600 | J56: 246 | K56: 264 | L56: 317 | M56: 366 | N56: 408 | O56: 450 | Q56: Tuolumne50% AMI | R56: 35600 | S56: 40650 | T56: 45750 | U56: 50800 | V56: 54900 | W56: 58950 | X56: 63000 | Y56: 67100
A57: Butte20% AMI | B57: =B63*2*0.2 -> 13160 | C57: =C63*2*0.2 -> 15040 | D57: 16920 | E57: 18780 | F57: 20300 | G57: 21800 | H57: 23300 | I57: 24800 | J57: 329 | K57: 352 | L57: 423 | M57: 488 | N57: 545 | O57: 601 | Q57: Ventura50% AMI | R57: 52400 | S57: 59900 | T57: 67400 | U57: 74850 | V57: 80850 | W57: 86850 | X57: 92850 | Y57: 98850
A58: Butte25% AMI | B58: =B63*2*0.25 -> 16450 | C58: =C63*2*0.25 -> 18800 | D58: 21150 | E58: 23475 | F58: 25375 | G58: 27250 | H58: 29125 | I58: 31000 | J58: 411 | K58: 440 | L58: 528 | M58: 610 | N58: 681 | O58: 751 | Q58: Yolo50% AMI | R58: 44100 | S58: 50400 | T58: 56650 | U58: 62950 | V58: 68000 | W58: 73050 | X58: 78100 | Y58: 83100
A59: Butte30% AMI | B59: =B63*2*0.3 -> 19740 | C59: =C63*2*0.3 -> 22560 | D59: 25380 | E59: 28170 | F59: 30450 | G59: 32700 | H59: 34950 | I59: 37200 | J59: 493 | K59: 528 | L59: 634 | M59: 732 | N59: 817 | O59: 901 | Q59: Yuba50% AMI | R59: 33600 | S59: 38400 | T59: 43200 | U59: 48000 | V59: 51850 | W59: 55700 | X59: 59500 | Y59: 63400
A60: Butte35% AMI | B60: =B63*2*0.35 -> 23030 | C60: =C63*2*0.35 -> 26320 | D60: 29610 | E60: 32865 | F60: 35525 | G60: 38150 | H60: 40775 | I60: 43400 | J60: 575 | K60: 616 | L60: 740 | M60: 854 | N60: 953 | O60: 1052
A61: Butte40% AMI | B61: =B63*2*0.4 -> 26320 | C61: =C63*2*0.4 -> 30080 | D61: 33840 | E61: 37560 | F61: 40600 | G61: 43600 | H61: 46600 | I61: 49600 | J61: 658 | K61: 705 | L61: 846 | M61: 977 | N61: 1090 | O61: 1202
A62: Butte45% AMI | B62: =B63*2*0.45 -> 29610 | C62: =C63*2*0.45 -> 33840 | D62: 38070 | E62: 42255 | F62: 45675 | G62: 49050 | H62: 52425 | I62: 55800 | J62: 740 | K62: 793 | L62: 951 | M62: 1099 | N62: 1226 | O62: 1352
A63: Butte50% AMI | B63: =VLOOKUP(A63,$Q$2:$Y$59,2,FALSE) -> 32900 | C63: =VLOOKUP(A63,$Q$2:$Y$59,3,FALSE) -> 37600 | D63: =VLOOKUP(A63,$Q$2:$Y$59,4,FALSE) -> 42300 | E63: =VLOOKUP(A63,$Q$2:$Y$59,5,FALSE) -> 46950 | F63: =VLOOKUP(A63,$Q$2:$Y$59,6,FALSE) -> 50750 | G63: =VLOOKUP(A63,$Q$2:$Y$59,7,FALSE) -> 54500 | H63: =VLOOKUP(A63,$Q$2:$Y$59,8,FALSE) -> 58250 | I63: =VLOOKUP(A63,$Q$2:$Y$59,9,FALSE) -> 62000 | J63: =TRUNC(B63/12*0.3) -> 822 | K63: =TRUNC((B63+C63)/2/12*0.3) -> 881 | L63: =TRUNC((D63)/12*0.3) -> 1057 | M63: =TRUNC(((E63+F63)/2)/12*0.3) -> 1221 | N63: =TRUNC(G63/12*0.3) -> 1362 | O63: =TRUNC(((H63+I63)/2)/12*0.3) -> 1503
A64: Butte55% AMI | B64: =B63*2*0.55 -> 36190 | C64: =C63*2*0.55 -> 41360 | D64: 46530 | E64: 51645 | F64: 55825 | G64: 59950 | H64: 64075 | I64: 68200 | J64: =TRUNC(B64/12*0.3) -> 904 | K64: =TRUNC((B64+C64)/2/12*0.3) -> 969 | L64: =TRUNC((D64)/12*0.3) -> 1163 | M64: =TRUNC(((E64+F64)/2)/12*0.3) -> 1343 | N64: =TRUNC(G64/12*0.3) -> 1498 | O64: =TRUNC(((H64+I64)/2)/12*0.3) -> 1653
A65: Butte60% AMI | B65: =B63*2*0.6 -> 39480 | C65: =C63*2*0.6 -> 45120 | D65: 50760 | E65: 56340 | F65: 60900 | G65: 65400 | H65: 69900 | I65: 74400 | J65: 987 | K65: 1057 | L65: 1269 | M65: 1465 | N65: 1635 | O65: 1803
A66: Butte65% AMI | B66: =B63*2*0.65 -> 42770 | C66: =C63*2*0.65 -> 48880 | D66: 54990 | E66: 61035 | F66: 65975 | G66: 70850 | H66: 75725 | I66: 80600 | J66: 1069 | K66: 1145 | L66: 1374 | M66: 1587 | N66: 1771 | O66: 1954
A67: Butte70% AMI | B67: =B63*2*0.7 -> 46060 | C67: =C63*2*0.7 -> 52640 | D67: 59220 | E67: 65730 | F67: 71050 | G67: 76300 | H67: 81550 | I67: 86800 | J67: 1151 | K67: 1233 | L67: 1480 | M67: 1709 | N67: 1907 | O67: 2104
A68: Butte75% AMI | B68: =B63*2*0.75 -> 49350 | C68: =C63*2*0.75 -> 56400 | D68: 63450 | E68: 70425 | F68: 76125 | G68: 81750 | H68: 87375 | I68: 93000 | J68: 1233 | K68: 1321 | L68: 1586 | M68: 1831 | N68: 2043 | O68: 2254
A69: Butte80% AMI | B69: =B63*2*0.8 -> 52640 | C69: =C63*2*0.8 -> 60160 | D69: 67680 | E69: 75120 | F69: 81200 | G69: 87200 | H69: 93200 | I69: 99200 | J69: 1316 | K69: 1410 | L69: 1692 | M69: 1954 | N69: 2180 | O69: 2405
A70: Butte90% AMI | B70: =B63*2*0.9 -> 59220 | C70: =C63*2*0.9 -> 67680 | D70: 76140 | E70: 84510 | F70: 91350 | G70: 98100 | H70: 104850 | I70: 111600 | J70: 1480 | K70: 1586 | L70: 1903 | M70: 2198 | N70: 2452 | O70: 2705
A71: Butte100% AMI | B71: =B63*2 -> 65800 | C71: =C63*2 -> 75200 | D71: 84600 | E71: 93900 | F71: 101500 | G71: 109000 | H71: 116500 | I71: 124000 | J71: =J63*2 -> 1644 | K71: =K63*2 -> 1762 | L71: 2114 | M71: 2442 | N71: 2724 | O71: 3006
A72: Butte110% AMI | B72: =B63*2*1.1 -> 72380 | C72: =C63*2*1.1 -> 82720 | D72: 93060 | E72: 103290 | F72: 111650 | G72: 119900 | H72: 128150 | I72: 136400 | J72: =TRUNC(B72/12*0.3) -> 1809 | K72: =TRUNC((B72+C72)/2/12*0.3) -> 1938 | L72: =TRUNC((D72)/12*0.3) -> 2326 | M72: =TRUNC(((E72+F72)/2)/12*0.3) -> 2686 | N72: =TRUNC(G72/12*0.3) -> 2997 | O72: =TRUNC(((H72+I72)/2)/12*0.3) -> 3306
A73: Butte120% AMI | B73: =B63*2*1.2 -> 78960 | C73: =C63*2*1.2 -> 90240 | D73: 101520 | E73: 112680 | F73: 121800 | G73: 130800 | H73: 139800 | I73: 148800 | J73: 1974 | K73: 2115 | L73: 2538 | M73: 2931 | N73: 3270 | O73: 3607
A74: Calaveras15% AMI | B74: =B81*2*0.15 -> 10665 | C74: =C81*2*0.15 -> 12180 | D74: =D81*2*0.15 -> 13710 | E74: =E81*2*0.15 -> 15225 | F74: =F81*2*0.15 -> 16455 | G74: =G81*2*0.15 -> 17670 | H74: 18885 | I74: 20100 | J74: 266 | K74: 285 | L74: 342 | M74: 396 | N74: 441 | O74: 487
A75: Calaveras20% AMI | B75: =B81*2*0.2 -> 14220 | C75: =C81*2*0.2 -> 16240 | D75: 18280 | E75: 20300 | F75: 21940 | G75: 23560 | H75: 25180 | I75: 26800 | J75: 355 | K75: 380 | L75: 457 | M75: 528 | N75: 589 | O75: 649
A76: Calaveras25% AMI | B76: =B81*2*0.25 -> 17775 | C76: =C81*2*0.25 -> 20300 | D76: 22850 | E76: 25375 | F76: 27425 | G76: 29450 | H76: 31475 | I76: 33500 | J76: 444 | K76: 475 | L76: 571 | M76: 660 | N76: 736 | O76: 812
A77: Calaveras30% AMI | B77: =B81*2*0.3 -> 21330 | C77: =C81*2*0.3 -> 24360 | D77: 27420 | E77: 30450 | F77: 32910 | G77: 35340 | H77: 37770 | I77: 40200 | J77: 533 | K77: 571 | L77: 685 | M77: 792 | N77: 883 | O77: 974
A78: Calaveras35% AMI | B78: =B81*2*0.35 -> 24885 | C78: =C81*2*0.35 -> 28420 | D78: 31990 | E78: 35525 | F78: 38395 | G78: 41230 | H78: 44065 | I78: 46900 | J78: 622 | K78: 666 | L78: 799 | M78: 924 | N78: 1030 | O78: 1137
A79: Calaveras40% AMI | B79: =B81*2*0.4 -> 28440 | C79: =C81*2*0.4 -> 32480 | D79: 36560 | E79: 40600 | F79: 43880 | G79: 47120 | H79: 50360 | I79: 53600 | J79: 711 | K79: 761 | L79: 914 | M79: 1056 | N79: 1178 | O79: 1299
A80: Calaveras45% AMI | B80: =B81*2*0.45 -> 31995 | C80: =C81*2*0.45 -> 36540 | D80: 41130 | E80: 45675 | F80: 49365 | G80: 53010 | H80: 56655 | I80: 60300 | J80: 799 | K80: 856 | L80: 1028 | M80: 1188 | N80: 1325 | O80: 1461
A81: Calaveras50% AMI | B81: =VLOOKUP(A81,$Q$2:$Y$59,2,FALSE) -> 35550 | C81: =VLOOKUP(A81,$Q$2:$Y$59,3,FALSE) -> 40600 | D81: =VLOOKUP(A81,$Q$2:$Y$59,4,FALSE) -> 45700 | E81: =VLOOKUP(A81,$Q$2:$Y$59,5,FALSE) -> 50750 | F81: =VLOOKUP(A81,$Q$2:$Y$59,6,FALSE) -> 54850 | G81: =VLOOKUP(A81,$Q$2:$Y$59,7,FALSE) -> 58900 | H81: =VLOOKUP(A81,$Q$2:$Y$59,8,FALSE) -> 62950 | I81: =VLOOKUP(A81,$Q$2:$Y$59,9,FALSE) -> 67000 | J81: =TRUNC(B81/12*0.3) -> 888 | K81: =TRUNC((B81+C81)/2/12*0.3) -> 951 | L81: =TRUNC((D81)/12*0.3) -> 1142 | M81: =TRUNC(((E81+F81)/2)/12*0.3) -> 1320 | N81: =TRUNC(G81/12*0.3) -> 1472 | O81: =TRUNC(((H81+I81)/2)/12*0.3) -> 1624
A82: Calaveras55% AMI | B82: =B81*2*0.55 -> 39105 | C82: =C81*2*0.55 -> 44660 | D82: 50270 | E82: 55825 | F82: 60335 | G82: 64790 | H82: 69245 | I82: 73700 | J82: =TRUNC(B82/12*0.3) -> 977 | K82: =TRUNC((B82+C82)/2/12*0.3) -> 1047 | L82: =TRUNC((D82)/12*0.3) -> 1256 | M82: =TRUNC(((E82+F82)/2)/12*0.3) -> 1452 | N82: =TRUNC(G82/12*0.3) -> 1619 | O82: =TRUNC(((H82+I82)/2)/12*0.3) -> 1786
A83: Calaveras60% AMI | B83: =B81*2*0.6 -> 42660 | C83: =C81*2*0.6 -> 48720 | D83: 54840 | E83: 60900 | F83: 65820 | G83: 70680 | H83: 75540 | I83: 80400 | J83: 1066 | K83: 1142 | L83: 1371 | M83: 1584 | N83: 1767 | O83: 1949
A84: Calaveras65% AMI | B84: =B81*2*0.65 -> 46215 | C84: =C81*2*0.65 -> 52780 | D84: 59410 | E84: 65975 | F84: 71305 | G84: 76570 | H84: 81835 | I84: 87100 | J84: 1155 | K84: 1237 | L84: 1485 | M84: 1716 | N84: 1914 | O84: 2111
A85: Calaveras70% AMI | B85: =B81*2*0.7 -> 49770 | C85: =C81*2*0.7 -> 56840 | D85: 63980 | E85: 71050 | F85: 76790 | G85: 82460 | H85: 88130 | I85: 93800 | J85: 1244 | K85: 1332 | L85: 1599 | M85: 1848 | N85: 2061 | O85: 2274
A86: Calaveras75% AMI | B86: =B81*2*0.75 -> 53325 | C86: =C81*2*0.75 -> 60900 | D86: 68550 | E86: 76125 | F86: 82275 | G86: 88350 | H86: 94425 | I86: 100500 | J86: 1333 | K86: 1427 | L86: 1713 | M86: 1980 | N86: 2208 | O86: 2436
A87: Calaveras80% AMI | B87: =B81*2*0.8 -> 56880 | C87: =C81*2*0.8 -> 64960 | D87: 73120 | E87: 81200 | F87: 87760 | G87: 94240 | H87: 100720 | I87: 107200 | J87: 1422 | K87: 1523 | L87: 1828 | M87: 2112 | N87: 2356 | O87: 2599
A88: Calaveras90% AMI | B88: =B81*2*0.9 -> 63990 | C88: =C81*2*0.9 -> 73080 | D88: 82260 | E88: 91350 | F88: 98730 | G88: 106020 | H88: 113310 | I88: 120600 | J88: 1599 | K88: 1713 | L88: 2056 | M88: 2376 | N88: 2650 | O88: 2923
A89: Calaveras100% AMI | B89: =B81*2 -> 71100 | C89: =C81*2 -> 81200 | D89: 91400 | E89: 101500 | F89: 109700 | G89: 117800 | H89: 125900 | I89: 134000 | J89: =J81*2 -> 1776 | K89: =K81*2 -> 1902 | L89: 2284 | M89: 2640 | N89: 2944 | O89: 3248
A90: Calaveras110% AMI | B90: =B81*2*1.1 -> 78210 | C90: =C81*2*1.1 -> 89320 | D90: 100540 | E90: 111650 | F90: 120670 | G90: 129580 | H90: 138490 | I90: 147400 | J90: =TRUNC(B90/12*0.3) -> 1955 | K90: =TRUNC((B90+C90)/2/12*0.3) -> 2094 | L90: =TRUNC((D90)/12*0.3) -> 2513 | M90: =TRUNC(((E90+F90)/2)/12*0.3) -> 2904 | N90: =TRUNC(G90/12*0.3) -> 3239 | O90: =TRUNC(((H90+I90)/2)/12*0.3) -> 3573
A91: Calaveras120% AMI | B91: =B81*2*1.2 -> 85320 | C91: =C81*2*1.2 -> 97440 | D91: 109680 | E91: 121800 | F91: 131640 | G91: 141360 | H91: 151080 | I91: 160800 | J91: 2133 | K91: 2284 | L91: 2742 | M91: 3168 | N91: 3534 | O91: 3898
A92: Colusa15% AMI | B92: =B99*2*0.15 -> 10080 | C92: =C99*2*0.15 -> 11520 | D92: =D99*2*0.15 -> 12960 | E92: =E99*2*0.15 -> 14400 | F92: =F99*2*0.15 -> 15555 | G92: =G99*2*0.15 -> 16710 | H92: 17850 | I92: 19020 | J92: 252 | K92: 270 | L92: 324 | M92: 374 | N92: 417 | O92: 460
A93: Colusa20% AMI | B93: =B99*2*0.2 -> 13440 | C93: =C99*2*0.2 -> 15360 | D93: 17280 | E93: 19200 | F93: 20740 | G93: 22280 | H93: 23800 | I93: 25360 | J93: 336 | K93: 360 | L93: 432 | M93: 499 | N93: 557 | O93: 614
A94: Colusa25% AMI | B94: =B99*2*0.25 -> 16800 | C94: =C99*2*0.25 -> 19200 | D94: 21600 | E94: 24000 | F94: 25925 | G94: 27850 | H94: 29750 | I94: 31700 | J94: 420 | K94: 450 | L94: 540 | M94: 624 | N94: 696 | O94: 768
A95: Colusa30% AMI | B95: =B99*2*0.3 -> 20160 | C95: =C99*2*0.3 -> 23040 | D95: 25920 | E95: 28800 | F95: 31110 | G95: 33420 | H95: 35700 | I95: 38040 | J95: 504 | K95: 540 | L95: 648 | M95: 748 | N95: 835 | O95: 921
A96: Colusa35% AMI | B96: =B99*2*0.35 -> 23520 | C96: =C99*2*0.35 -> 26880 | D96: 30240 | E96: 33600 | F96: 36295 | G96: 38990 | H96: 41650 | I96: 44380 | J96: 588 | K96: 630 | L96: 756 | M96: 873 | N96: 974 | O96: 1075
A97: Colusa40% AMI | B97: =B99*2*0.4 -> 26880 | C97: =C99*2*0.4 -> 30720 | D97: 34560 | E97: 38400 | F97: 41480 | G97: 44560 | H97: 47600 | I97: 50720 | J97: 672 | K97: 720 | L97: 864 | M97: 998 | N97: 1114 | O97: 1229
A98: Colusa45% AMI | B98: =B99*2*0.45 -> 30240 | C98: =C99*2*0.45 -> 34560 | D98: 38880 | E98: 43200 | F98: 46665 | G98: 50130 | H98: 53550 | I98: 57060 | J98: 756 | K98: 810 | L98: 972 | M98: 1123 | N98: 1253 | O98: 1382
A99: Colusa50% AMI | B99: =VLOOKUP(A99,$Q$2:$Y$59,2,FALSE) -> 33600 | C99: =VLOOKUP(A99,$Q$2:$Y$59,3,FALSE) -> 38400 | D99: =VLOOKUP(A99,$Q$2:$Y$59,4,FALSE) -> 43200 | E99: =VLOOKUP(A99,$Q$2:$Y$59,5,FALSE) -> 48000 | F99: =VLOOKUP(A99,$Q$2:$Y$59,6,FALSE) -> 51850 | G99: =VLOOKUP(A99,$Q$2:$Y$59,7,FALSE) -> 55700 | H99: =VLOOKUP(A99,$Q$2:$Y$59,8,FALSE) -> 59500 | I99: =VLOOKUP(A99,$Q$2:$Y$59,9,FALSE) -> 63400 | J99: =TRUNC(B99/12*0.3) -> 840 | K99: =TRUNC((B99+C99)/2/12*0.3) -> 900 | L99: =TRUNC((D99)/12*0.3) -> 1080 | M99: =TRUNC(((E99+F99)/2)/12*0.3) -> 1248 | N99: =TRUNC(G99/12*0.3) -> 1392 | O99: =TRUNC(((H99+I99)/2)/12*0.3) -> 1536
A100: Colusa55% AMI | B100: =B99*2*0.55 -> 36960 | C100: =C99*2*0.55 -> 42240 | D100: 47520 | E100: 52800 | F100: 57035 | G100: 61270 | H100: 65450 | I100: 69740 | J100: =TRUNC(B100/12*0.3) -> 924 | K100: =TRUNC((B100+C100)/2/12*0.3) -> 990 | L100: =TRUNC((D100)/12*0.3) -> 1188 | M100: =TRUNC(((E100+F100)/2)/12*0.3) -> 1372 | N100: =TRUNC(G100/12*0.3) -> 1531 | O100: =TRUNC(((H100+I100)/2)/12*0.3) -> 1689
A101: Colusa60% AMI | B101: =B99*2*0.6 -> 40320 | C101: =C99*2*0.6 -> 46080 | D101: 51840 | E101: 57600 | F101: 62220 | G101: 66840 | H101: 71400 | I101: 76080 | J101: 1008 | K101: 1080 | L101: 1296 | M101: 1497 | N101: 1671 | O101: 1843
A102: Colusa65% AMI | B102: =B99*2*0.65 -> 43680 | C102: =C99*2*0.65 -> 49920 | D102: 56160 | E102: 62400 | F102: 67405 | G102: 72410 | H102: 77350 | I102: 82420 | J102: 1092 | K102: 1170 | L102: 1404 | M102: 1622 | N102: 1810 | O102: 1997
A103: Colusa70% AMI | B103: =B99*2*0.7 -> 47040 | C103: =C99*2*0.7 -> 53760 | D103: 60480 | E103: 67200 | F103: 72590 | G103: 77980 | H103: 83300 | I103: 88760 | J103: 1176 | K103: 1260 | L103: 1512 | M103: 1747 | N103: 1949 | O103: 2150
A104: Colusa75% AMI | B104: =B99*2*0.75 -> 50400 | C104: =C99*2*0.75 -> 57600 | D104: 64800 | E104: 72000 | F104: 77775 | G104: 83550 | H104: 89250 | I104: 95100 | J104: 1260 | K104: 1350 | L104: 1620 | M104: 1872 | N104: 2088 | O104: 2304
A105: Colusa80% AMI | B105: =B99*2*0.8 -> 53760 | C105: =C99*2*0.8 -> 61440 | D105: 69120 | E105: 76800 | F105: 82960 | G105: 89120 | H105: 95200 | I105: 101440 | J105: 1344 | K105: 1440 | L105: 1728 | M105: 1997 | N105: 2228 | O105: 2458
A106: Colusa90% AMI | B106: =B99*2*0.9 -> 60480 | C106: =C99*2*0.9 -> 69120 | D106: 77760 | E106: 86400 | F106: 93330 | G106: 100260 | H106: 107100 | I106: 114120 | J106: 1512 | K106: 1620 | L106: 1944 | M106: 2246 | N106: 2506 | O106: 2765
A107: Colusa100% AMI | B107: =B99*2 -> 67200 | C107: =C99*2 -> 76800 | D107: 86400 | E107: 96000 | F107: 103700 | G107: 111400 | H107: 119000 | I107: 126800 | J107: =J99*2 -> 1680 | K107: =K99*2 -> 1800 | L107: 2160 | M107: 2496 | N107: 2784 | O107: 3072
A108: Colusa110% AMI | B108: =B99*2*1.1 -> 73920 | C108: =C99*2*1.1 -> 84480 | D108: 95040 | E108: 105600 | F108: 114070 | G108: 122540 | H108: 130900 | I108: 139480 | J108: =TRUNC(B108/12*0.3) -> 1848 | K108: =TRUNC((B108+C108)/2/12*0.3) -> 1980 | L108: =TRUNC((D108)/12*0.3) -> 2376 | M108: =TRUNC(((E108+F108)/2)/12*0.3) -> 2745 | N108: =TRUNC(G108/12*0.3) -> 3063 | O108: =TRUNC(((H108+I108)/2)/12*0.3) -> 3379
A109: Colusa120% AMI | B109: =B99*2*1.2 -> 80640 | C109: =C99*2*1.2 -> 92160 | D109: 103680 | E109: 115200 | F109: 124440 | G109: 133680 | H109: 142800 | I109: 152160 | J109: 2016 | K109: 2160 | L109: 2592 | M109: 2995 | N109: 3342 | O109: 3687
A110: Contra Costa15% AMI | B110: =B117*2*0.15 -> 16785 | C110: =C117*2*0.15 -> 19185 | D110: =D117*2*0.15 -> 21585 | E110: =E117*2*0.15 -> 23970 | F110: =F117*2*0.15 -> 25890 | G110: =G117*2*0.15 -> 27810 | H110: 29730 | I110: 31650 | J110: 419 | K110: 449 | L110: 539 | M110: 623 | N110: 695 | O110: 767
A111: Contra Costa20% AMI | B111: =B117*2*0.2 -> 22380 | C111: =C117*2*0.2 -> 25580 | D111: 28780 | E111: 31960 | F111: 34520 | G111: 37080 | H111: 39640 | I111: 42200 | J111: 559 | K111: 599 | L111: 719 | M111: 831 | N111: 927 | O111: 1023
A112: Contra Costa25% AMI | B112: =B117*2*0.25 -> 27975 | C112: =C117*2*0.25 -> 31975 | D112: 35975 | E112: 39950 | F112: 43150 | G112: 46350 | H112: 49550 | I112: 52750 | J112: 699 | K112: 749 | L112: 899 | M112: 1038 | N112: 1158 | O112: 1278
A113: Contra Costa30% AMI | B113: =B117*2*0.3 -> 33570 | C113: =C117*2*0.3 -> 38370 | D113: 43170 | E113: 47940 | F113: 51780 | G113: 55620 | H113: 59460 | I113: 63300 | J113: 839 | K113: 899 | L113: 1079 | M113: 1246 | N113: 1390 | O113: 1534
A114: Contra Costa35% AMI | B114: =B117*2*0.35 -> 39165 | C114: =C117*2*0.35 -> 44765 | D114: 50365 | E114: 55930 | F114: 60410 | G114: 64890 | H114: 69370 | I114: 73850 | J114: 979 | K114: 1049 | L114: 1259 | M114: 1454 | N114: 1622 | O114: 1790
A115: Contra Costa40% AMI | B115: =B117*2*0.4 -> 44760 | C115: =C117*2*0.4 -> 51160 | D115: 57560 | E115: 63920 | F115: 69040 | G115: 74160 | H115: 79280 | I115: 84400 | J115: 1119 | K115: 1199 | L115: 1439 | M115: 1662 | N115: 1854 | O115: 2046
A116: Contra Costa45% AMI | B116: =B117*2*0.45 -> 50355 | C116: =C117*2*0.45 -> 57555 | D116: 64755 | E116: 71910 | F116: 77670 | G116: 83430 | H116: 89190 | I116: 94950 | J116: 1258 | K116: 1348 | L116: 1618 | M116: 1869 | N116: 2085 | O116: 2301
A117: Contra Costa50% AMI | B117: =VLOOKUP(A117,$Q$2:$Y$59,2,FALSE) -> 55950 | C117: =VLOOKUP(A117,$Q$2:$Y$59,3,FALSE) -> 63950 | D117: =VLOOKUP(A117,$Q$2:$Y$59,4,FALSE) -> 71950 | E117: =VLOOKUP(A117,$Q$2:$Y$59,5,FALSE) -> 79900 | F117: =VLOOKUP(A117,$Q$2:$Y$59,6,FALSE) -> 86300 | G117: =VLOOKUP(A117,$Q$2:$Y$59,7,FALSE) -> 92700 | H117: =VLOOKUP(A117,$Q$2:$Y$59,8,FALSE) -> 99100 | I117: =VLOOKUP(A117,$Q$2:$Y$59,9,FALSE) -> 105500 | J117: =TRUNC(B117/12*0.3) -> 1398 | K117: =TRUNC((B117+C117)/2/12*0.3) -> 1498 | L117: =TRUNC((D117)/12*0.3) -> 1798 | M117: =TRUNC(((E117+F117)/2)/12*0.3) -> 2077 | N117: =TRUNC(G117/12*0.3) -> 2317 | O117: =TRUNC(((H117+I117)/2)/12*0.3) -> 2557
A118: Contra Costa55% AMI | B118: =B117*2*0.55 -> 61545 | C118: =C117*2*0.55 -> 70345 | D118: 79145 | E118: 87890 | F118: 94930 | G118: 101970 | H118: 109010 | I118: 116050 | J118: =TRUNC(B118/12*0.3) -> 1538 | K118: =TRUNC((B118+C118)/2/12*0.3) -> 1648 | L118: =TRUNC((D118)/12*0.3) -> 1978 | M118: =TRUNC(((E118+F118)/2)/12*0.3) -> 2285 | N118: =TRUNC(G118/12*0.3) -> 2549 | O118: =TRUNC(((H118+I118)/2)/12*0.3) -> 2813
A119: Contra Costa60% AMI | B119: =B117*2*0.6 -> 67140 | C119: =C117*2*0.6 -> 76740 | D119: 86340 | E119: 95880 | F119: 103560 | G119: 111240 | H119: 118920 | I119: 126600 | J119: 1678 | K119: 1798 | L119: 2158 | M119: 2493 | N119: 2781 | O119: 3069
A120: Contra Costa65% AMI | B120: =B117*2*0.65 -> 72735 | C120: =C117*2*0.65 -> 83135 | D120: 93535 | E120: 103870 | F120: 112190 | G120: 120510 | H120: 128830 | I120: 137150 | J120: 1818 | K120: 1948 | L120: 2338 | M120: 2700 | N120: 3012 | O120: 3324
A121: Contra Costa70% AMI | B121: =B117*2*0.7 -> 78330 | C121: =C117*2*0.7 -> 89530 | D121: 100730 | E121: 111860 | F121: 120820 | G121: 129780 | H121: 138740 | I121: 147700 | J121: 1958 | K121: 2098 | L121: 2518 | M121: 2908 | N121: 3244 | O121: 3580
A122: Contra Costa75% AMI | B122: =B117*2*0.75 -> 83925 | C122: =C117*2*0.75 -> 95925 | D122: 107925 | E122: 119850 | F122: 129450 | G122: 139050 | H122: 148650 | I122: 158250 | J122: 2098 | K122: 2248 | L122: 2698 | M122: 3116 | N122: 3476 | O122: 3836
A123: Contra Costa80% AMI | B123: =B117*2*0.8 -> 89520 | C123: =C117*2*0.8 -> 102320 | D123: 115120 | E123: 127840 | F123: 138080 | G123: 148320 | H123: 158560 | I123: 168800 | J123: 2238 | K123: 2398 | L123: 2878 | M123: 3324 | N123: 3708 | O123: 4092
A124: Contra Costa90% AMI | B124: =B117*2*0.9 -> 100710 | C124: =C117*2*0.9 -> 115110 | D124: 129510 | E124: 143820 | F124: 155340 | G124: 166860 | H124: 178380 | I124: 189900 | J124: 2517 | K124: 2697 | L124: 3237 | M124: 3739 | N124: 4171 | O124: 4603
A125: Contra Costa100% AMI | B125: =B117*2 -> 111900 | C125: =C117*2 -> 127900 | D125: 143900 | E125: 159800 | F125: 172600 | G125: 185400 | H125: 198200 | I125: 211000 | J125: =J117*2 -> 2796 | K125: =K117*2 -> 2996 | L125: 3596 | M125: 4154 | N125: 4634 | O125: 5114
A126: Contra Costa110% AMI | B126: =B117*2*1.1 -> 123090 | C126: =C117*2*1.1 -> 140690 | D126: 158290 | E126: 175780 | F126: 189860 | G126: 203940 | H126: 218020 | I126: 232100 | J126: =TRUNC(B126/12*0.3) -> 3077 | K126: =TRUNC((B126+C126)/2/12*0.3) -> 3297 | L126: =TRUNC((D126)/12*0.3) -> 3957 | M126: =TRUNC(((E126+F126)/2)/12*0.3) -> 4570 | N126: =TRUNC(G126/12*0.3) -> 5098 | O126: =TRUNC(((H126+I126)/2)/12*0.3) -> 5626
A127: Contra Costa120% AMI | B127: =B117*2*1.2 -> 134280 | C127: =C117*2*1.2 -> 153480 | D127: 172680 | E127: 191760 | F127: 207120 | G127: 222480 | H127: 237840 | I127: 253200 | J127: 3357 | K127: 3597 | L127: 4317 | M127: 4986 | N127: 5562 | O127: 6138
A128: Del Norte15% AMI | B128: =B135*2*0.15 -> 9870 | C128: =C135*2*0.15 -> 11280 | D128: =D135*2*0.15 -> 12690 | E128: =E135*2*0.15 -> 14085 | F128: =F135*2*0.15 -> 15225 | G128: =G135*2*0.15 -> 16350 | H128: 17475 | I128: 18600 | J128: 246 | K128: 264 | L128: 317 | M128: 366 | N128: 408 | O128: 450
A129: Del Norte20% AMI | B129: =B135*2*0.2 -> 13160 | C129: =C135*2*0.2 -> 15040 | D129: 16920 | E129: 18780 | F129: 20300 | G129: 21800 | H129: 23300 | I129: 24800 | J129: 329 | K129: 352 | L129: 423 | M129: 488 | N129: 545 | O129: 601
A130: Del Norte25% AMI | B130: =B135*2*0.25 -> 16450 | C130: =C135*2*0.25 -> 18800 | D130: 21150 | E130: 23475 | F130: 25375 | G130: 27250 | H130: 29125 | I130: 31000 | J130: 411 | K130: 440 | L130: 528 | M130: 610 | N130: 681 | O130: 751
A131: Del Norte30% AMI | B131: =B135*2*0.3 -> 19740 | C131: =C135*2*0.3 -> 22560 | D131: 25380 | E131: 28170 | F131: 30450 | G131: 32700 | H131: 34950 | I131: 37200 | J131: 493 | K131: 528 | L131: 634 | M131: 732 | N131: 817 | O131: 901
A132: Del Norte35% AMI | B132: =B135*2*0.35 -> 23030 | C132: =C135*2*0.35 -> 26320 | D132: 29610 | E132: 32865 | F132: 35525 | G132: 38150 | H132: 40775 | I132: 43400 | J132: 575 | K132: 616 | L132: 740 | M132: 854 | N132: 953 | O132: 1052
A133: Del Norte40% AMI | B133: =B135*2*0.4 -> 26320 | C133: =C135*2*0.4 -> 30080 | D133: 33840 | E133: 37560 | F133: 40600 | G133: 43600 | H133: 46600 | I133: 49600 | J133: 658 | K133: 705 | L133: 846 | M133: 977 | N133: 1090 | O133: 1202
A134: Del Norte45% AMI | B134: =B135*2*0.45 -> 29610 | C134: =C135*2*0.45 -> 33840 | D134: 38070 | E134: 42255 | F134: 45675 | G134: 49050 | H134: 52425 | I134: 55800 | J134: 740 | K134: 793 | L134: 951 | M134: 1099 | N134: 1226 | O134: 1352
A135: Del Norte50% AMI | B135: =VLOOKUP(A135,$Q$2:$Y$59,2,FALSE) -> 32900 | C135: =VLOOKUP(A135,$Q$2:$Y$59,3,FALSE) -> 37600 | D135: =VLOOKUP(A135,$Q$2:$Y$59,4,FALSE) -> 42300 | E135: =VLOOKUP(A135,$Q$2:$Y$59,5,FALSE) -> 46950 | F135: =VLOOKUP(A135,$Q$2:$Y$59,6,FALSE) -> 50750 | G135: =VLOOKUP(A135,$Q$2:$Y$59,7,FALSE) -> 54500 | H135: =VLOOKUP(A135,$Q$2:$Y$59,8,FALSE) -> 58250 | I135: =VLOOKUP(A135,$Q$2:$Y$59,9,FALSE) -> 62000 | J135: =TRUNC(B135/12*0.3) -> 822 | K135: =TRUNC((B135+C135)/2/12*0.3) -> 881 | L135: =TRUNC((D135)/12*0.3) -> 1057 | M135: =TRUNC(((E135+F135)/2)/12*0.3) -> 1221 | N135: =TRUNC(G135/12*0.3) -> 1362 | O135: =TRUNC(((H135+I135)/2)/12*0.3) -> 1503
A136: Del Norte55% AMI | B136: =B135*2*0.55 -> 36190 | C136: =C135*2*0.55 -> 41360 | D136: 46530 | E136: 51645 | F136: 55825 | G136: 59950 | H136: 64075 | I136: 68200 | J136: =TRUNC(B136/12*0.3) -> 904 | K136: =TRUNC((B136+C136)/2/12*0.3) -> 969 | L136: =TRUNC((D136)/12*0.3) -> 1163 | M136: =TRUNC(((E136+F136)/2)/12*0.3) -> 1343 | N136: =TRUNC(G136/12*0.3) -> 1498 | O136: =TRUNC(((H136+I136)/2)/12*0.3) -> 1653
A137: Del Norte60% AMI | B137: =B135*2*0.6 -> 39480 | C137: =C135*2*0.6 -> 45120 | D137: 50760 | E137: 56340 | F137: 60900 | G137: 65400 | H137: 69900 | I137: 74400 | J137: 987 | K137: 1057 | L137: 1269 | M137: 1465 | N137: 1635 | O137: 1803
A138: Del Norte65% AMI | B138: =B135*2*0.65 -> 42770 | C138: =C135*2*0.65 -> 48880 | D138: 54990 | E138: 61035 | F138: 65975 | G138: 70850 | H138: 75725 | I138: 80600 | J138: 1069 | K138: 1145 | L138: 1374 | M138: 1587 | N138: 1771 | O138: 1954
A139: Del Norte70% AMI | B139: =B135*2*0.7 -> 46060 | C139: =C135*2*0.7 -> 52640 | D139: 59220 | E139: 65730 | F139: 71050 | G139: 76300 | H139: 81550 | I139: 86800 | J139: 1151 | K139: 1233 | L139: 1480 | M139: 1709 | N139: 1907 | O139: 2104
A140: Del Norte75% AMI | B140: =B135*2*0.75 -> 49350 | C140: =C135*2*0.75 -> 56400 | D140: 63450 | E140: 70425 | F140: 76125 | G140: 81750 | H140: 87375 | I140: 93000 | J140: 1233 | K140: 1321 | L140: 1586 | M140: 1831 | N140: 2043 | O140: 2254
A141: Del Norte80% AMI | B141: =B135*2*0.8 -> 52640 | C141: =C135*2*0.8 -> 60160 | D141: 67680 | E141: 75120 | F141: 81200 | G141: 87200 | H141: 93200 | I141: 99200 | J141: 1316 | K141: 1410 | L141: 1692 | M141: 1954 | N141: 2180 | O141: 2405
A142: Del Norte90% AMI | B142: =B135*2*0.9 -> 59220 | C142: =C135*2*0.9 -> 67680 | D142: 76140 | E142: 84510 | F142: 91350 | G142: 98100 | H142: 104850 | I142: 111600 | J142: 1480 | K142: 1586 | L142: 1903 | M142: 2198 | N142: 2452 | O142: 2705
A143: Del Norte100% AMI | B143: =B135*2 -> 65800 | C143: =C135*2 -> 75200 | D143: 84600 | E143: 93900 | F143: 101500 | G143: 109000 | H143: 116500 | I143: 124000 | J143: =J135*2 -> 1644 | K143: =K135*2 -> 1762 | L143: 2114 | M143: 2442 | N143: 2724 | O143: 3006
A144: Del Norte110% AMI | B144: =B135*2*1.1 -> 72380 | C144: =C135*2*1.1 -> 82720 | D144: 93060 | E144: 103290 | F144: 111650 | G144: 119900 | H144: 128150 | I144: 136400 | J144: =TRUNC(B144/12*0.3) -> 1809 | K144: =TRUNC((B144+C144)/2/12*0.3) -> 1938 | L144: =TRUNC((D144)/12*0.3) -> 2326 | M144: =TRUNC(((E144+F144)/2)/12*0.3) -> 2686 | N144: =TRUNC(G144/12*0.3) -> 2997 | O144: =TRUNC(((H144+I144)/2)/12*0.3) -> 3306
A145: Del Norte120% AMI | B145: =B135*2*1.2 -> 78960 | C145: =C135*2*1.2 -> 90240 | D145: 101520 | E145: 112680 | F145: 121800 | G145: 130800 | H145: 139800 | I145: 148800 | J145: 1974 | K145: 2115 | L145: 2538 | M145: 2931 | N145: 3270 | O145: 3607
A146: El Dorado15% AMI | B146: =B153*2*0.15 -> 13515 | C146: =C153*2*0.15 -> 15435 | D146: =D153*2*0.15 -> 17370 | E146: =E153*2*0.15 -> 19290 | F146: =F153*2*0.15 -> 20835 | G146: =G153*2*0.15 -> 22380 | H146: 23925 | I146: 25470 | J146: 337 | K146: 361 | L146: 434 | M146: 501 | N146: 559 | O146: 617
A147: El Dorado20% AMI | B147: =B153*2*0.2 -> 18020 | C147: =C153*2*0.2 -> 20580 | D147: 23160 | E147: 25720 | F147: 27780 | G147: 29840 | H147: 31900 | I147: 33960 | J147: 450 | K147: 482 | L147: 579 | M147: 668 | N147: 746 | O147: 823
A148: El Dorado25% AMI | B148: =B153*2*0.25 -> 22525 | C148: =C153*2*0.25 -> 25725 | D148: 28950 | E148: 32150 | F148: 34725 | G148: 37300 | H148: 39875 | I148: 42450 | J148: 563 | K148: 603 | L148: 723 | M148: 835 | N148: 932 | O148: 1029
A149: El Dorado30% AMI | B149: =B153*2*0.3 -> 27030 | C149: =C153*2*0.3 -> 30870 | D149: 34740 | E149: 38580 | F149: 41670 | G149: 44760 | H149: 47850 | I149: 50940 | J149: 675 | K149: 723 | L149: 868 | M149: 1003 | N149: 1119 | O149: 1234
A150: El Dorado35% AMI | B150: =B153*2*0.35 -> 31535 | C150: =C153*2*0.35 -> 36015 | D150: 40530 | E150: 45010 | F150: 48615 | G150: 52220 | H150: 55825 | I150: 59430 | J150: 788 | K150: 844 | L150: 1013 | M150: 1170 | N150: 1305 | O150: 1440
A151: El Dorado40% AMI | B151: =B153*2*0.4 -> 36040 | C151: =C153*2*0.4 -> 41160 | D151: 46320 | E151: 51440 | F151: 55560 | G151: 59680 | H151: 63800 | I151: 67920 | J151: 901 | K151: 965 | L151: 1158 | M151: 1337 | N151: 1492 | O151: 1646
A152: El Dorado45% AMI | B152: =B153*2*0.45 -> 40545 | C152: =C153*2*0.45 -> 46305 | D152: 52110 | E152: 57870 | F152: 62505 | G152: 67140 | H152: 71775 | I152: 76410 | J152: 1013 | K152: 1085 | L152: 1302 | M152: 1504 | N152: 1678 | O152: 1852
A153: El Dorado50% AMI | B153: =VLOOKUP(A153,$Q$2:$Y$59,2,FALSE) -> 45050 | C153: =VLOOKUP(A153,$Q$2:$Y$59,3,FALSE) -> 51450 | D153: =VLOOKUP(A153,$Q$2:$Y$59,4,FALSE) -> 57900 | E153: =VLOOKUP(A153,$Q$2:$Y$59,5,FALSE) -> 64300 | F153: =VLOOKUP(A153,$Q$2:$Y$59,6,FALSE) -> 69450 | G153: =VLOOKUP(A153,$Q$2:$Y$59,7,FALSE) -> 74600 | H153: =VLOOKUP(A153,$Q$2:$Y$59,8,FALSE) -> 79750 | I153: =VLOOKUP(A153,$Q$2:$Y$59,9,FALSE) -> 84900 | J153: =TRUNC(B153/12*0.3) -> 1126 | K153: =TRUNC((B153+C153)/2/12*0.3) -> 1206 | L153: =TRUNC((D153)/12*0.3) -> 1447 | M153: =TRUNC(((E153+F153)/2)/12*0.3) -> 1671 | N153: =TRUNC(G153/12*0.3) -> 1865 | O153: =TRUNC(((H153+I153)/2)/12*0.3) -> 2058
A154: El Dorado55% AMI | B154: =B153*2*0.55 -> 49555 | C154: =C153*2*0.55 -> 56595 | D154: 63690 | E154: 70730 | F154: 76395 | G154: 82060 | H154: 87725 | I154: 93390 | J154: =TRUNC(B154/12*0.3) -> 1238 | K154: =TRUNC((B154+C154)/2/12*0.3) -> 1326 | L154: =TRUNC((D154)/12*0.3) -> 1592 | M154: =TRUNC(((E154+F154)/2)/12*0.3) -> 1839 | N154: =TRUNC(G154/12*0.3) -> 2051 | O154: =TRUNC(((H154+I154)/2)/12*0.3) -> 2263
A155: El Dorado60% AMI | B155: =B153*2*0.6 -> 54060 | C155: =C153*2*0.6 -> 61740 | D155: 69480 | E155: 77160 | F155: 83340 | G155: 89520 | H155: 95700 | I155: 101880 | J155: 1351 | K155: 1447 | L155: 1737 | M155: 2006 | N155: 2238 | O155: 2469
A156: El Dorado65% AMI | B156: =B153*2*0.65 -> 58565 | C156: =C153*2*0.65 -> 66885 | D156: 75270 | E156: 83590 | F156: 90285 | G156: 96980 | H156: 103675 | I156: 110370 | J156: 1464 | K156: 1568 | L156: 1881 | M156: 2173 | N156: 2424 | O156: 2675
A157: El Dorado70% AMI | B157: =B153*2*0.7 -> 63070 | C157: =C153*2*0.7 -> 72030 | D157: 81060 | E157: 90020 | F157: 97230 | G157: 104440 | H157: 111650 | I157: 118860 | J157: 1576 | K157: 1688 | L157: 2026 | M157: 2340 | N157: 2611 | O157: 2881
A158: El Dorado75% AMI | B158: =B153*2*0.75 -> 67575 | C158: =C153*2*0.75 -> 77175 | D158: 86850 | E158: 96450 | F158: 104175 | G158: 111900 | H158: 119625 | I158: 127350 | J158: 1689 | K158: 1809 | L158: 2171 | M158: 2507 | N158: 2797 | O158: 3087
A159: El Dorado80% AMI | B159: =B153*2*0.8 -> 72080 | C159: =C153*2*0.8 -> 82320 | D159: 92640 | E159: 102880 | F159: 111120 | G159: 119360 | H159: 127600 | I159: 135840 | J159: 1802 | K159: 1930 | L159: 2316 | M159: 2675 | N159: 2984 | O159: 3293
A160: El Dorado90% AMI | B160: =B153*2*0.9 -> 81090 | C160: =C153*2*0.9 -> 92610 | D160: 104220 | E160: 115740 | F160: 125010 | G160: 134280 | H160: 143550 | I160: 152820 | J160: 2027 | K160: 2171 | L160: 2605 | M160: 3009 | N160: 3357 | O160: 3704
A161: El Dorado100% AMI | B161: =B153*2 -> 90100 | C161: =C153*2 -> 102900 | D161: 115800 | E161: 128600 | F161: 138900 | G161: 149200 | H161: 159500 | I161: 169800 | J161: =J153*2 -> 2252 | K161: =K153*2 -> 2412 | L161: 2894 | M161: 3342 | N161: 3730 | O161: 4116
A162: El Dorado110% AMI | B162: =B153*2*1.1 -> 99110 | C162: =C153*2*1.1 -> 113190 | D162: 127380 | E162: 141460 | F162: 152790 | G162: 164120 | H162: 175450 | I162: 186780 | J162: =TRUNC(B162/12*0.3) -> 2477 | K162: =TRUNC((B162+C162)/2/12*0.3) -> 2653 | L162: =TRUNC((D162)/12*0.3) -> 3184 | M162: =TRUNC(((E162+F162)/2)/12*0.3) -> 3678 | N162: =TRUNC(G162/12*0.3) -> 4103 | O162: =TRUNC(((H162+I162)/2)/12*0.3) -> 4527
A163: El Dorado120% AMI | B163: =B153*2*1.2 -> 108120 | C163: =C153*2*1.2 -> 123480 | D163: 138960 | E163: 154320 | F163: 166680 | G163: 179040 | H163: 191400 | I163: 203760 | J163: 2703 | K163: 2895 | L163: 3474 | M163: 4012 | N163: 4476 | O163: 4939
A164: Fresno15% AMI | B164: =B171*2*0.15 -> 9870 | C164: =C171*2*0.15 -> 11280 | D164: =D171*2*0.15 -> 12690 | E164: =E171*2*0.15 -> 14085 | F164: =F171*2*0.15 -> 15225 | G164: =G171*2*0.15 -> 16350 | H164: 17475 | I164: 18600 | J164: 246 | K164: 264 | L164: 317 | M164: 366 | N164: 408 | O164: 450
A165: Fresno20% AMI | B165: =B171*2*0.2 -> 13160 | C165: =C171*2*0.2 -> 15040 | D165: 16920 | E165: 18780 | F165: 20300 | G165: 21800 | H165: 23300 | I165: 24800 | J165: 329 | K165: 352 | L165: 423 | M165: 488 | N165: 545 | O165: 601
A166: Fresno25% AMI | B166: =B171*2*0.25 -> 16450 | C166: =C171*2*0.25 -> 18800 | D166: 21150 | E166: 23475 | F166: 25375 | G166: 27250 | H166: 29125 | I166: 31000 | J166: 411 | K166: 440 | L166: 528 | M166: 610 | N166: 681 | O166: 751
A167: Fresno30% AMI | B167: =B171*2*0.3 -> 19740 | C167: =C171*2*0.3 -> 22560 | D167: 25380 | E167: 28170 | F167: 30450 | G167: 32700 | H167: 34950 | I167: 37200 | J167: 493 | K167: 528 | L167: 634 | M167: 732 | N167: 817 | O167: 901
A168: Fresno35% AMI | B168: =B171*2*0.35 -> 23030 | C168: =C171*2*0.35 -> 26320 | D168: 29610 | E168: 32865 | F168: 35525 | G168: 38150 | H168: 40775 | I168: 43400 | J168: 575 | K168: 616 | L168: 740 | M168: 854 | N168: 953 | O168: 1052
A169: Fresno40% AMI | B169: =B171*2*0.4 -> 26320 | C169: =C171*2*0.4 -> 30080 | D169: 33840 | E169: 37560 | F169: 40600 | G169: 43600 | H169: 46600 | I169: 49600 | J169: 658 | K169: 705 | L169: 846 | M169: 977 | N169: 1090 | O169: 1202
A170: Fresno45% AMI | B170: =B171*2*0.45 -> 29610 | C170: =C171*2*0.45 -> 33840 | D170: 38070 | E170: 42255 | F170: 45675 | G170: 49050 | H170: 52425 | I170: 55800 | J170: 740 | K170: 793 | L170: 951 | M170: 1099 | N170: 1226 | O170: 1352
A171: Fresno50% AMI | B171: =VLOOKUP(A171,$Q$2:$Y$59,2,FALSE) -> 32900 | C171: =VLOOKUP(A171,$Q$2:$Y$59,3,FALSE) -> 37600 | D171: =VLOOKUP(A171,$Q$2:$Y$59,4,FALSE) -> 42300 | E171: =VLOOKUP(A171,$Q$2:$Y$59,5,FALSE) -> 46950 | F171: =VLOOKUP(A171,$Q$2:$Y$59,6,FALSE) -> 50750 | G171: =VLOOKUP(A171,$Q$2:$Y$59,7,FALSE) -> 54500 | H171: =VLOOKUP(A171,$Q$2:$Y$59,8,FALSE) -> 58250 | I171: =VLOOKUP(A171,$Q$2:$Y$59,9,FALSE) -> 62000 | J171: =TRUNC(B171/12*0.3) -> 822 | K171: =TRUNC((B171+C171)/2/12*0.3) -> 881 | L171: =TRUNC((D171)/12*0.3) -> 1057 | M171: =TRUNC(((E171+F171)/2)/12*0.3) -> 1221 | N171: =TRUNC(G171/12*0.3) -> 1362 | O171: =TRUNC(((H171+I171)/2)/12*0.3) -> 1503
A172: Fresno55% AMI | B172: =B171*2*0.55 -> 36190 | C172: =C171*2*0.55 -> 41360 | D172: 46530 | E172: 51645 | F172: 55825 | G172: 59950 | H172: 64075 | I172: 68200 | J172: =TRUNC(B172/12*0.3) -> 904 | K172: =TRUNC((B172+C172)/2/12*0.3) -> 969 | L172: =TRUNC((D172)/12*0.3) -> 1163 | M172: =TRUNC(((E172+F172)/2)/12*0.3) -> 1343 | N172: =TRUNC(G172/12*0.3) -> 1498 | O172: =TRUNC(((H172+I172)/2)/12*0.3) -> 1653
A173: Fresno60% AMI | B173: =B171*2*0.6 -> 39480 | C173: =C171*2*0.6 -> 45120 | D173: 50760 | E173: 56340 | F173: 60900 | G173: 65400 | H173: 69900 | I173: 74400 | J173: 987 | K173: 1057 | L173: 1269 | M173: 1465 | N173: 1635 | O173: 1803
A174: Fresno65% AMI | B174: =B171*2*0.65 -> 42770 | C174: =C171*2*0.65 -> 48880 | D174: 54990 | E174: 61035 | F174: 65975 | G174: 70850 | H174: 75725 | I174: 80600 | J174: 1069 | K174: 1145 | L174: 1374 | M174: 1587 | N174: 1771 | O174: 1954
A175: Fresno70% AMI | B175: =B171*2*0.7 -> 46060 | C175: =C171*2*0.7 -> 52640 | D175: 59220 | E175: 65730 | F175: 71050 | G175: 76300 | H175: 81550 | I175: 86800 | J175: 1151 | K175: 1233 | L175: 1480 | M175: 1709 | N175: 1907 | O175: 2104
A176: Fresno75% AMI | B176: =B171*2*0.75 -> 49350 | C176: =C171*2*0.75 -> 56400 | D176: 63450 | E176: 70425 | F176: 76125 | G176: 81750 | H176: 87375 | I176: 93000 | J176: 1233 | K176: 1321 | L176: 1586 | M176: 1831 | N176: 2043 | O176: 2254
A177: Fresno80% AMI | B177: =B171*2*0.8 -> 52640 | C177: =C171*2*0.8 -> 60160 | D177: 67680 | E177: 75120 | F177: 81200 | G177: 87200 | H177: 93200 | I177: 99200 | J177: 1316 | K177: 1410 | L177: 1692 | M177: 1954 | N177: 2180 | O177: 2405
A178: Fresno90% AMI | B178: =B171*2*0.9 -> 59220 | C178: =C171*2*0.9 -> 67680 | D178: 76140 | E178: 84510 | F178: 91350 | G178: 98100 | H178: 104850 | I178: 111600 | J178: 1480 | K178: 1586 | L178: 1903 | M178: 2198 | N178: 2452 | O178: 2705
A179: Fresno100% AMI | B179: =B171*2 -> 65800 | C179: =C171*2 -> 75200 | D179: 84600 | E179: 93900 | F179: 101500 | G179: 109000 | H179: 116500 | I179: 124000 | J179: =J171*2 -> 1644 | K179: =K171*2 -> 1762 | L179: 2114 | M179: 2442 | N179: 2724 | O179: 3006
A180: Fresno110% AMI | B180: =B171*2*1.1 -> 72380 | C180: =C171*2*1.1 -> 82720 | D180: 93060 | E180: 103290 | F180: 111650 | G180: 119900 | H180: 128150 | I180: 136400 | J180: =TRUNC(B180/12*0.3) -> 1809 | K180: =TRUNC((B180+C180)/2/12*0.3) -> 1938 | L180: =TRUNC((D180)/12*0.3) -> 2326 | M180: =TRUNC(((E180+F180)/2)/12*0.3) -> 2686 | N180: =TRUNC(G180/12*0.3) -> 2997 | O180: =TRUNC(((H180+I180)/2)/12*0.3) -> 3306
A181: Fresno120% AMI | B181: =B171*2*1.2 -> 78960 | C181: =C171*2*1.2 -> 90240 | D181: 101520 | E181: 112680 | F181: 121800 | G181: 130800 | H181: 139800 | I181: 148800 | J181: 1974 | K181: 2115 | L181: 2538 | M181: 2931 | N181: 3270 | O181: 3607
A182: Glenn15% AMI | B182: =B189*2*0.15 -> 9870 | C182: =C189*2*0.15 -> 11280 | D182: =D189*2*0.15 -> 12690 | E182: =E189*2*0.15 -> 14085 | F182: =F189*2*0.15 -> 15225 | G182: =G189*2*0.15 -> 16350 | H182: 17475 | I182: 18600 | J182: 246 | K182: 264 | L182: 317 | M182: 366 | N182: 408 | O182: 450
A183: Glenn20% AMI | B183: =B189*2*0.2 -> 13160 | C183: =C189*2*0.2 -> 15040 | D183: 16920 | E183: 18780 | F183: 20300 | G183: 21800 | H183: 23300 | I183: 24800 | J183: 329 | K183: 352 | L183: 423 | M183: 488 | N183: 545 | O183: 601
A184: Glenn25% AMI | B184: =B189*2*0.25 -> 16450 | C184: =C189*2*0.25 -> 18800 | D184: 21150 | E184: 23475 | F184: 25375 | G184: 27250 | H184: 29125 | I184: 31000 | J184: 411 | K184: 440 | L184: 528 | M184: 610 | N184: 681 | O184: 751
A185: Glenn30% AMI | B185: =B189*2*0.3 -> 19740 | C185: =C189*2*0.3 -> 22560 | D185: 25380 | E185: 28170 | F185: 30450 | G185: 32700 | H185: 34950 | I185: 37200 | J185: 493 | K185: 528 | L185: 634 | M185: 732 | N185: 817 | O185: 901
A186: Glenn35% AMI | B186: =B189*2*0.35 -> 23030 | C186: =C189*2*0.35 -> 26320 | D186: 29610 | E186: 32865 | F186: 35525 | G186: 38150 | H186: 40775 | I186: 43400 | J186: 575 | K186: 616 | L186: 740 | M186: 854 | N186: 953 | O186: 1052
A187: Glenn40% AMI | B187: =B189*2*0.4 -> 26320 | C187: =C189*2*0.4 -> 30080 | D187: 33840 | E187: 37560 | F187: 40600 | G187: 43600 | H187: 46600 | I187: 49600 | J187: 658 | K187: 705 | L187: 846 | M187: 977 | N187: 1090 | O187: 1202
A188: Glenn45% AMI | B188: =B189*2*0.45 -> 29610 | C188: =C189*2*0.45 -> 33840 | D188: 38070 | E188: 42255 | F188: 45675 | G188: 49050 | H188: 52425 | I188: 55800 | J188: 740 | K188: 793 | L188: 951 | M188: 1099 | N188: 1226 | O188: 1352
A189: Glenn50% AMI | B189: =VLOOKUP(A189,$Q$2:$Y$59,2,FALSE) -> 32900 | C189: =VLOOKUP(A189,$Q$2:$Y$59,3,FALSE) -> 37600 | D189: =VLOOKUP(A189,$Q$2:$Y$59,4,FALSE) -> 42300 | E189: =VLOOKUP(A189,$Q$2:$Y$59,5,FALSE) -> 46950 | F189: =VLOOKUP(A189,$Q$2:$Y$59,6,FALSE) -> 50750 | G189: =VLOOKUP(A189,$Q$2:$Y$59,7,FALSE) -> 54500 | H189: =VLOOKUP(A189,$Q$2:$Y$59,8,FALSE) -> 58250 | I189: =VLOOKUP(A189,$Q$2:$Y$59,9,FALSE) -> 62000 | J189: =TRUNC(B189/12*0.3) -> 822 | K189: =TRUNC((B189+C189)/2/12*0.3) -> 881 | L189: =TRUNC((D189)/12*0.3) -> 1057 | M189: =TRUNC(((E189+F189)/2)/12*0.3) -> 1221 | N189: =TRUNC(G189/12*0.3) -> 1362 | O189: =TRUNC(((H189+I189)/2)/12*0.3) -> 1503
A190: Glenn55% AMI | B190: =B189*2*0.55 -> 36190 | C190: =C189*2*0.55 -> 41360 | D190: 46530 | E190: 51645 | F190: 55825 | G190: 59950 | H190: 64075 | I190: 68200 | J190: =TRUNC(B190/12*0.3) -> 904 | K190: =TRUNC((B190+C190)/2/12*0.3) -> 969 | L190: =TRUNC((D190)/12*0.3) -> 1163 | M190: =TRUNC(((E190+F190)/2)/12*0.3) -> 1343 | N190: =TRUNC(G190/12*0.3) -> 1498 | O190: =TRUNC(((H190+I190)/2)/12*0.3) -> 1653
A191: Glenn60% AMI | B191: =B189*2*0.6 -> 39480 | C191: =C189*2*0.6 -> 45120 | D191: 50760 | E191: 56340 | F191: 60900 | G191: 65400 | H191: 69900 | I191: 74400 | J191: 987 | K191: 1057 | L191: 1269 | M191: 1465 | N191: 1635 | O191: 1803
A192: Glenn65% AMI | B192: =B189*2*0.65 -> 42770 | C192: =C189*2*0.65 -> 48880 | D192: 54990 | E192: 61035 | F192: 65975 | G192: 70850 | H192: 75725 | I192: 80600 | J192: 1069 | K192: 1145 | L192: 1374 | M192: 1587 | N192: 1771 | O192: 1954
A193: Glenn70% AMI | B193: =B189*2*0.7 -> 46060 | C193: =C189*2*0.7 -> 52640 | D193: 59220 | E193: 65730 | F193: 71050 | G193: 76300 | H193: 81550 | I193: 86800 | J193: 1151 | K193: 1233 | L193: 1480 | M193: 1709 | N193: 1907 | O193: 2104
A194: Glenn75% AMI | B194: =B189*2*0.75 -> 49350 | C194: =C189*2*0.75 -> 56400 | D194: 63450 | E194: 70425 | F194: 76125 | G194: 81750 | H194: 87375 | I194: 93000 | J194: 1233 | K194: 1321 | L194: 1586 | M194: 1831 | N194: 2043 | O194: 2254
A195: Glenn80% AMI | B195: =B189*2*0.8 -> 52640 | C195: =C189*2*0.8 -> 60160 | D195: 67680 | E195: 75120 | F195: 81200 | G195: 87200 | H195: 93200 | I195: 99200 | J195: 1316 | K195: 1410 | L195: 1692 | M195: 1954 | N195: 2180 | O195: 2405
A196: Glenn90% AMI | B196: =B189*2*0.9 -> 59220 | C196: =C189*2*0.9 -> 67680 | D196: 76140 | E196: 84510 | F196: 91350 | G196: 98100 | H196: 104850 | I196: 111600 | J196: 1480 | K196: 1586 | L196: 1903 | M196: 2198 | N196: 2452 | O196: 2705
A197: Glenn100% AMI | B197: =B189*2 -> 65800 | C197: =C189*2 -> 75200 | D197: 84600 | E197: 93900 | F197: 101500 | G197: 109000 | H197: 116500 | I197: 124000 | J197: =J189*2 -> 1644 | K197: =K189*2 -> 1762 | L197: 2114 | M197: 2442 | N197: 2724 | O197: 3006
A198: Glenn110% AMI | B198: =B189*2*1.1 -> 72380 | C198: =C189*2*1.1 -> 82720 | D198: 93060 | E198: 103290 | F198: 111650 | G198: 119900 | H198: 128150 | I198: 136400 | J198: =TRUNC(B198/12*0.3) -> 1809 | K198: =TRUNC((B198+C198)/2/12*0.3) -> 1938 | L198: =TRUNC((D198)/12*0.3) -> 2326 | M198: =TRUNC(((E198+F198)/2)/12*0.3) -> 2686 | N198: =TRUNC(G198/12*0.3) -> 2997 | O198: =TRUNC(((H198+I198)/2)/12*0.3) -> 3306
A199: Glenn120% AMI | B199: =B189*2*1.2 -> 78960 | C199: =C189*2*1.2 -> 90240 | D199: 101520 | E199: 112680 | F199: 121800 | G199: 130800 | H199: 139800 | I199: 148800 | J199: 1974 | K199: 2115 | L199: 2538 | M199: 2931 | N199: 3270 | O199: 3607
A200: Humboldt15% AMI | B200: =B207*2*0.15 -> 9870 | C200: =C207*2*0.15 -> 11280 | D200: =D207*2*0.15 -> 12690 | E200: =E207*2*0.15 -> 14085 | F200: =F207*2*0.15 -> 15225 | G200: =G207*2*0.15 -> 16350 | H200: 17475 | I200: 18600 | J200: 246 | K200: 264 | L200: 317 | M200: 366 | N200: 408 | O200: 450
... 845 more rows
